Workbook

Sheet Dashboard
A7: Summary of sheets
A8: ACTS Risk Mapping
A9: Proactive Disclosure completeneness
A10: Proactive Disclosure rate
A11: Proactive Disclosure accuracy
A12: Proactive Disclosure PE response
A13: Reactive Disclosure PE response
A14: Procurement process assessment
A15: Status of recommendations
A16: Post assurance data summary
A17: Linear progression

Sheet Summary of sheets (hidden)
A2: SHEET NAME | F2: 1. ACTS risk mapping | I2: METADATA | J2: 1. ACTS risk mapping | K2: 2. Proactive Disclosure Completeness | L2: 3. Proactive Disclosure Rate | M2: 4. Proactive Accuracy | N2: 5. Proactive PE Response | O2: 6. Reactive Disclosure Response | P2: 7. Assessment of Processes | Q2: 9. Post assurance summary | R2: 10. Tender management
D3: DRIVERS OF PERFORMANCE | F3: Assessment | G3: Elaboration | I3: Procurement Enitity/ Project | J3: =IF('1. ACTS Risk Mapping'!B3="", "missing", "complete") -> missing | K3: =IF('2. Proactive Completeness'!B2="", "missing", "complete") -> missing | L3: =IF('3. Proactive Disclosure Rate'!B2="", "missing", "complete") -> missing | M3: =IF('4. Proactive accuracy'!B2="", "missing", "complete") -> missing | N3: =IF('5. Proactive PE response'!C2="", "missing", "complete") -> missing | O3: =IF('6. Reactive PE response'!C2="", "missing", "complete") -> missing | P3: =IF('7. Assessment of processes'!B2="", "missing", "complete") -> missing | Q3: =IF('9. Post assurance summary'!C2="", "missing", "complete") -> missing | R3: =IF('10. Tender management'!C2="", "missing", "complete") -> missing
B4: CAPACITY makes it possible | D4: Finance staff & equipment | F4: =IF('1. ACTS Risk Mapping'!B6="", "missing", "complete") -> missing | G4: =IF('1. ACTS Risk Mapping'!E6="", "missing", "complete") -> missing | I4: Assessor | J4: =IF('1. ACTS Risk Mapping'!G3="", "missing", "complete") -> missing | K4: =IF('2. Proactive Completeness'!F2="", "missing", "complete") -> missing | L4: =IF('3. Proactive Disclosure Rate'!E2="", "missing", "complete") -> missing | M4: =IF('4. Proactive accuracy'!F2="", "missing", "complete") -> missing | N4: =IF('5. Proactive PE response'!F2="", "missing", "complete") -> missing | O4: =IF('6. Reactive PE response'!F2="", "missing", "complete") -> missing | P4: =IF('7. Assessment of processes'!D2="", "missing", "complete") -> missing | Q4: =IF('9. Post assurance summary'!M2="", "missing", "complete") -> missing | R4: =IF('10. Tender management'!M2="", "missing", "complete") -> missing
D5: Clear operating procedures | F5: =IF('1. ACTS Risk Mapping'!B7="", "missing", "complete") -> missing | G5: =IF('1. ACTS Risk Mapping'!E7="", "missing", "complete") -> missing | I5: Date | J5: =IF('1. ACTS Risk Mapping'!I3="", "missing", "complete") -> missing | K5: =IF('2. Proactive Completeness'!H2="", "missing", "complete") -> missing | L5: =IF('3. Proactive Disclosure Rate'!H2="", "missing", "complete") -> missing | M5: =IF('4. Proactive accuracy'!I2="", "missing", "complete") -> missing | N5: =IF('5. Proactive PE response'!I2="", "missing", "complete") -> missing | O5: =IF('6. Reactive PE response'!J2="", "missing", "complete") -> missing | P5: =IF('7. Assessment of processes'!H2="", "missing", "complete") -> missing | Q5: =IF('9. Post assurance summary'!R2="", "missing", "complete") -> missing | R5: =IF('10. Tender management'!O2="", "missing", "complete") -> missing
D6: Skills and experience | F6: =IF('1. ACTS Risk Mapping'!B8="", "missing", "complete") -> missing | G6: =IF('1. ACTS Risk Mapping'!E8="", "missing", "complete") -> missing
B7: ACCOUNTABILITY: makes it happen | D7: Quality management | F7: =IF('1. ACTS Risk Mapping'!B10="", "missing", "complete") -> missing | G7: =IF('1. ACTS Risk Mapping'!E10="", "missing", "complete") -> missing
D8: Transparency | F8: =IF('1. ACTS Risk Mapping'!B11="", "missing", "complete") -> missing | G8: =IF('1. ACTS Risk Mapping'!E11="", "missing", "complete") -> missing | I8: METADATA | J8: 11. Economic Sustainability | K8: 12. Social Sustainability | L8: 13. Institution Sustainability | M8: 14. Environment Sustainability | N8: 15. Climate Finance
D9: Performance monitoring | F9: =IF('1. ACTS Risk Mapping'!B12="", "missing", "complete") -> missing | G9: =IF('1. ACTS Risk Mapping'!E12="", "missing", "complete") -> missing | I9: Procurement Enitity/ Project | J9: =IF('11. Economic Sustainability'!B2="", "missing", "complete") -> missing | K9: =IF('12. Social Sustainability'!B2="", "missing", "complete") -> missing | L9: =IF('13. Institution Sustainability'!B2="", "missing", "complete") -> missing | M9: =IF('14. Environment Sustainability'!B2="", "missing", "complete") -> missing | N9: =IF('15. Climate Finance'!B2="", "missing", "complete") -> missing
B10: TRUST makes it flourish | D10: Shared values and vision | F10: =IF('1. ACTS Risk Mapping'!B14="", "missing", "complete") -> missing | G10: =IF('1. ACTS Risk Mapping'!E14="", "missing", "complete") -> missing | I10: Assessor | J10: =IF('11. Economic Sustainability'!E2="", "missing", "complete") -> missing | K10: =IF('12. Social Sustainability'!E2="", "missing", "complete") -> missing | L10: =IF('13. Institution Sustainability'!E2="", "missing", "complete") -> missing | M10: =IF('14. Environment Sustainability'!E2="", "missing", "complete") -> missing | N10: =IF('15. Climate Finance'!E2="", "missing", "complete") -> missing
D11: Mutual respect between stakeholders | F11: =IF('1. ACTS Risk Mapping'!B15="", "missing", "complete") -> missing | G11: =IF('1. ACTS Risk Mapping'!E15="", "missing", "complete") -> missing | I11: Date | J11: =IF('11. Economic Sustainability'!G2="", "missing", "complete") -> missing | K11: =IF('12. Social Sustainability'!G2="", "missing", "complete") -> missing | L11: =IF('13. Institution Sustainability'!G2="", "missing", "complete") -> missing | M11: =IF('14. Environment Sustainability'!G2="", "missing", "complete") -> missing | N11: =IF('15. Climate Finance'!G2="", "missing", "complete") -> missing
D12: Confidence in fair contracts and tender management processes | F12: =IF('1. ACTS Risk Mapping'!B16="", "missing", "complete") -> missing | G12: =IF('1. ACTS Risk Mapping'!E16="", "missing", "complete") -> missing
B13: Enabling institutional SETTING allows it to continue | D13: Institutional clarity | F13: =IF('1. ACTS Risk Mapping'!B18="", "missing", "complete") -> missing | G13: =IF('1. ACTS Risk Mapping'!E18="", "missing", "complete") -> missing
D14: Rule of law fairly applied | F14: =IF('1. ACTS Risk Mapping'!B19="", "missing", "complete") -> missing | G14: =IF('1. ACTS Risk Mapping'!E19="", "missing", "complete") -> missing
D15: Good performance rewarded | F15: =IF('1. ACTS Risk Mapping'!B20="", "missing", "complete") -> missing | G15: =IF('1. ACTS Risk Mapping'!E20="", "missing", "complete") -> missing
D16: Additional comments: | F16: =IF('1. ACTS Risk Mapping'!B21="", "missing", "complete") -> missing
A19: SHEET NAME | E19: 2. Proactive Disclosure Completeness | J19: 3. Proactive Disclosure Rate | O19: 4. Proactive Accuracy | Q19: 5. Proactive PE Response
B20: Project Phase | D20: Project data item | E20: Data disclosed | F20: Location of data | G20: Ease of access | H20: IDS | I20: OC4IDS | J20: Comment: Source of Data | K20: Assessors | M20: Average Assessment | N20: Adjusted Score (%) | O20: Perceived Accuracy | P20: Comment | Q20: Issue raised with PE | R20: Comment if "Other" | S20: Date raised | T20: Comment | U20: Date resolved
B21: Project Identification (7) | D21: Project reference number | E21: =IF('2. Proactive Completeness'!D4="", "missing", "complete") -> missing | F21: =IF('2. Proactive Completeness'!F4="", "missing", "complete") -> missing | G21: =IF('2. Proactive Completeness'!G4="", "missing", "complete") -> missing | H21: =IF('2. Proactive Completeness'!H4="", "missing", "complete") -> missing | I21: =IF('2. Proactive Completeness'!I4="", "missing", "complete") -> missing | J21: =IF('3. Proactive Disclosure Rate'!F5="", "missing", "complete") -> missing | K21: =IF('3. Proactive Disclosure Rate'!G5="", "missing", "complete") -> missing | L21: =IF('3. Proactive Disclosure Rate'!H5="", "missing", "complete") -> missing | M21: =IF('3. Proactive Disclosure Rate'!I5="", "missing", "complete") -> missing | N21: =IF('3. Proactive Disclosure Rate'!J5="", "missing", "complete") -> missing | O21: =IF('4. Proactive accuracy'!E4="", "missing", "complete") -> missing | P21: =IF('4. Proactive accuracy'!F4="", "missing", "complete") -> missing | Q21: =IF('5. Proactive PE response'!E4="", "missing", "complete") -> missing | R21: =IF('5. Proactive PE response'!G4="", "missing", "complete") -> missing | S21: =IF('5. Proactive PE response'!H4="", "missing", "complete") -> missing | T21: =IF('5. Proactive PE response'!I4="", "missing", "complete") -> missing | U21: =IF('5. Proactive PE response'!K4="", "missing", "complete") -> missing
D22: Project owner | E22: =IF('2. Proactive Completeness'!D5="", "missing", "complete") -> missing | F22: =IF('2. Proactive Completeness'!F5="", "missing", "complete") -> missing | G22: =IF('2. Proactive Completeness'!G5="", "missing", "complete") -> missing | H22: =IF('2. Proactive Completeness'!H5="", "missing", "complete") -> missing | I22: =IF('2. Proactive Completeness'!I5="", "missing", "complete") -> missing | J22: =IF('3. Proactive Disclosure Rate'!F6="", "missing", "complete") -> missing | K22: =IF('3. Proactive Disclosure Rate'!G6="", "missing", "complete") -> missing | L22: =IF('3. Proactive Disclosure Rate'!H6="", "missing", "complete") -> missing | M22: =IF('3. Proactive Disclosure Rate'!I6="", "missing", "complete") -> missing | N22: =IF('3. Proactive Disclosure Rate'!J6="", "missing", "complete") -> missing | O22: =IF('4. Proactive accuracy'!E5="", "missing", "complete") -> missing | P22: =IF('4. Proactive accuracy'!F5="", "missing", "complete") -> missing | Q22: =IF('5. Proactive PE response'!E5="", "missing", "complete") -> missing | R22: =IF('5. Proactive PE response'!G5="", "missing", "complete") -> missing | S22: =IF('5. Proactive PE response'!H5="", "missing", "complete") -> missing | T22: =IF('5. Proactive PE response'!I5="", "missing", "complete") -> missing | U22: =IF('5. Proactive PE response'!K5="", "missing", "complete") -> missing
D23: Sector, subsector | E23: =IF('2. Proactive Completeness'!D6="", "missing", "complete") -> missing | F23: =IF('2. Proactive Completeness'!F6="", "missing", "complete") -> missing | G23: =IF('2. Proactive Completeness'!G6="", "missing", "complete") -> missing | H23: =IF('2. Proactive Completeness'!H6="", "missing", "complete") -> missing | I23: =IF('2. Proactive Completeness'!I6="", "missing", "complete") -> missing | J23: =IF('3. Proactive Disclosure Rate'!F7="", "missing", "complete") -> missing | K23: =IF('3. Proactive Disclosure Rate'!G7="", "missing", "complete") -> missing | L23: =IF('3. Proactive Disclosure Rate'!H7="", "missing", "complete") -> missing | M23: =IF('3. Proactive Disclosure Rate'!I7="", "missing", "complete") -> missing | N23: =IF('3. Proactive Disclosure Rate'!J7="", "missing", "complete") -> missing | O23: =IF('4. Proactive accuracy'!E6="", "missing", "complete") -> missing | P23: =IF('4. Proactive accuracy'!F6="", "missing", "complete") -> missing | Q23: =IF('5. Proactive PE response'!E6="", "missing", "complete") -> missing | R23: =IF('5. Proactive PE response'!G6="", "missing", "complete") -> missing | S23: =IF('5. Proactive PE response'!H6="", "missing", "complete") -> missing | T23: =IF('5. Proactive PE response'!I6="", "missing", "complete") -> missing | U23: =IF('5. Proactive PE response'!K6="", "missing", "complete") -> missing
D24: Project name | E24: =IF('2. Proactive Completeness'!D7="", "missing", "complete") -> missing | F24: =IF('2. Proactive Completeness'!F7="", "missing", "complete") -> missing | G24: =IF('2. Proactive Completeness'!G7="", "missing", "complete") -> missing | H24: =IF('2. Proactive Completeness'!H7="", "missing", "complete") -> missing | I24: =IF('2. Proactive Completeness'!I7="", "missing", "complete") -> missing | J24: =IF('3. Proactive Disclosure Rate'!F8="", "missing", "complete") -> missing | K24: =IF('3. Proactive Disclosure Rate'!G8="", "missing", "complete") -> missing | L24: =IF('3. Proactive Disclosure Rate'!H8="", "missing", "complete") -> missing | M24: =IF('3. Proactive Disclosure Rate'!I8="", "missing", "complete") -> missing | N24: =IF('3. Proactive Disclosure Rate'!J8="", "missing", "complete") -> missing | O24: =IF('4. Proactive accuracy'!E7="", "missing", "complete") -> missing | P24: =IF('4. Proactive accuracy'!F7="", "missing", "complete") -> missing | Q24: =IF('5. Proactive PE response'!E7="", "missing", "complete") -> missing | R24: =IF('5. Proactive PE response'!G7="", "missing", "complete") -> missing | S24: =IF('5. Proactive PE response'!H7="", "missing", "complete") -> missing | T24: =IF('5. Proactive PE response'!I7="", "missing", "complete") -> missing | U24: =IF('5. Proactive PE response'!K7="", "missing", "complete") -> missing
D25: Project Location | E25: =IF('2. Proactive Completeness'!D8="", "missing", "complete") -> missing | F25: =IF('2. Proactive Completeness'!F8="", "missing", "complete") -> missing | G25: =IF('2. Proactive Completeness'!G8="", "missing", "complete") -> missing | H25: =IF('2. Proactive Completeness'!H8="", "missing", "complete") -> missing | I25: =IF('2. Proactive Completeness'!I8="", "missing", "complete") -> missing | J25: =IF('3. Proactive Disclosure Rate'!F9="", "missing", "complete") -> missing | K25: =IF('3. Proactive Disclosure Rate'!G9="", "missing", "complete") -> missing | L25: =IF('3. Proactive Disclosure Rate'!H9="", "missing", "complete") -> missing | M25: =IF('3. Proactive Disclosure Rate'!I9="", "missing", "complete") -> missing | N25: =IF('3. Proactive Disclosure Rate'!J9="", "missing", "complete") -> missing | O25: =IF('4. Proactive accuracy'!E8="", "missing", "complete") -> missing | P25: =IF('4. Proactive accuracy'!F8="", "missing", "complete") -> missing | Q25: =IF('5. Proactive PE response'!E8="", "missing", "complete") -> missing | R25: =IF('5. Proactive PE response'!G8="", "missing", "complete") -> missing | S25: =IF('5. Proactive PE response'!H8="", "missing", "complete") -> missing | T25: =IF('5. Proactive PE response'!I8="", "missing", "complete") -> missing | U25: =IF('5. Proactive PE response'!K8="", "missing", "complete") -> missing
D26: Purpose | E26: =IF('2. Proactive Completeness'!D9="", "missing", "complete") -> missing | F26: =IF('2. Proactive Completeness'!F9="", "missing", "complete") -> missing | G26: =IF('2. Proactive Completeness'!G9="", "missing", "complete") -> missing | H26: =IF('2. Proactive Completeness'!H9="", "missing", "complete") -> missing | I26: =IF('2. Proactive Completeness'!I9="", "missing", "complete") -> missing | J26: =IF('3. Proactive Disclosure Rate'!F10="", "missing", "complete") -> missing | K26: =IF('3. Proactive Disclosure Rate'!G10="", "missing", "complete") -> missing | L26: =IF('3. Proactive Disclosure Rate'!H10="", "missing", "complete") -> missing | M26: =IF('3. Proactive Disclosure Rate'!I10="", "missing", "complete") -> missing | N26: =IF('3. Proactive Disclosure Rate'!J10="", "missing", "complete") -> missing | O26: =IF('4. Proactive accuracy'!E9="", "missing", "complete") -> missing | P26: =IF('4. Proactive accuracy'!F9="", "missing", "complete") -> missing | Q26: =IF('5. Proactive PE response'!E9="", "missing", "complete") -> missing | R26: =IF('5. Proactive PE response'!G9="", "missing", "complete") -> missing | S26: =IF('5. Proactive PE response'!H9="", "missing", "complete") -> missing | T26: =IF('5. Proactive PE response'!I9="", "missing", "complete") -> missing | U26: =IF('5. Proactive PE response'!K9="", "missing", "complete") -> missing
D27: Project description | E27: =IF('2. Proactive Completeness'!D10="", "missing", "complete") -> missing | F27: =IF('2. Proactive Completeness'!F10="", "missing", "complete") -> missing | G27: =IF('2. Proactive Completeness'!G10="", "missing", "complete") -> missing | H27: =IF('2. Proactive Completeness'!H10="", "missing", "complete") -> missing | I27: =IF('2. Proactive Completeness'!I10="", "missing", "complete") -> missing | J27: =IF('3. Proactive Disclosure Rate'!F11="", "missing", "complete") -> missing | K27: =IF('3. Proactive Disclosure Rate'!G11="", "missing", "complete") -> missing | L27: =IF('3. Proactive Disclosure Rate'!H11="", "missing", "complete") -> missing | M27: =IF('3. Proactive Disclosure Rate'!I11="", "missing", "complete") -> missing | N27: =IF('3. Proactive Disclosure Rate'!J11="", "missing", "complete") -> missing | O27: =IF('4. Proactive accuracy'!E10="", "missing", "complete") -> missing | P27: =IF('4. Proactive accuracy'!F10="", "missing", "complete") -> missing | Q27: =IF('5. Proactive PE response'!E10="", "missing", "complete") -> missing | R27: =IF('5. Proactive PE response'!G10="", "missing", "complete") -> missing | S27: =IF('5. Proactive PE response'!H10="", "missing", "complete") -> missing | T27: =IF('5. Proactive PE response'!I10="", "missing", "complete") -> missing | U27: =IF('5. Proactive PE response'!K10="", "missing", "complete") -> missing
B28: Project Preparation (7) | D28: Project Scope (main output) | E28: =IF('2. Proactive Completeness'!D11="", "missing", "complete") -> missing | F28: =IF('2. Proactive Completeness'!F11="", "missing", "complete") -> missing | G28: =IF('2. Proactive Completeness'!G11="", "missing", "complete") -> missing | H28: =IF('2. Proactive Completeness'!H11="", "missing", "complete") -> missing | I28: =IF('2. Proactive Completeness'!I11="", "missing", "complete") -> missing | J28: =IF('3. Proactive Disclosure Rate'!F12="", "missing", "complete") -> missing | K28: =IF('3. Proactive Disclosure Rate'!G12="", "missing", "complete") -> missing | L28: =IF('3. Proactive Disclosure Rate'!H12="", "missing", "complete") -> missing | M28: =IF('3. Proactive Disclosure Rate'!I12="", "missing", "complete") -> missing | N28: =IF('3. Proactive Disclosure Rate'!J12="", "missing", "complete") -> missing | O28: =IF('4. Proactive accuracy'!E11="", "missing", "complete") -> missing | P28: =IF('4. Proactive accuracy'!F11="", "missing", "complete") -> missing | Q28: =IF('5. Proactive PE response'!E11="", "missing", "complete") -> missing | R28: =IF('5. Proactive PE response'!G11="", "missing", "complete") -> missing | S28: =IF('5. Proactive PE response'!H11="", "missing", "complete") -> missing | T28: =IF('5. Proactive PE response'!I11="", "missing", "complete") -> missing | U28: =IF('5. Proactive PE response'!K11="", "missing", "complete") -> missing
D29: Environmental impact | E29: =IF('2. Proactive Completeness'!D12="", "missing", "complete") -> missing | F29: =IF('2. Proactive Completeness'!F12="", "missing", "complete") -> missing | G29: =IF('2. Proactive Completeness'!G12="", "missing", "complete") -> missing | H29: =IF('2. Proactive Completeness'!H12="", "missing", "complete") -> missing | I29: =IF('2. Proactive Completeness'!I12="", "missing", "complete") -> missing | J29: =IF('3. Proactive Disclosure Rate'!F13="", "missing", "complete") -> missing | K29: =IF('3. Proactive Disclosure Rate'!G13="", "missing", "complete") -> missing | L29: =IF('3. Proactive Disclosure Rate'!H13="", "missing", "complete") -> missing | M29: =IF('3. Proactive Disclosure Rate'!I13="", "missing", "complete") -> missing | N29: =IF('3. Proactive Disclosure Rate'!J13="", "missing", "complete") -> missing | O29: =IF('4. Proactive accuracy'!E12="", "missing", "complete") -> missing | P29: =IF('4. Proactive accuracy'!F12="", "missing", "complete") -> missing | Q29: =IF('5. Proactive PE response'!E12="", "missing", "complete") -> missing | R29: =IF('5. Proactive PE response'!G12="", "missing", "complete") -> missing | S29: =IF('5. Proactive PE response'!H12="", "missing", "complete") -> missing | T29: =IF('5. Proactive PE response'!I12="", "missing", "complete") -> missing | U29: =IF('5. Proactive PE response'!K12="", "missing", "complete") -> missing
D30: Land and settlement impact | E30: =IF('2. Proactive Completeness'!D13="", "missing", "complete") -> missing | F30: =IF('2. Proactive Completeness'!F13="", "missing", "complete") -> missing | G30: =IF('2. Proactive Completeness'!G13="", "missing", "complete") -> missing | H30: =IF('2. Proactive Completeness'!H13="", "missing", "complete") -> missing | I30: =IF('2. Proactive Completeness'!I13="", "missing", "complete") -> missing | J30: =IF('3. Proactive Disclosure Rate'!F14="", "missing", "complete") -> missing | K30: =IF('3. Proactive Disclosure Rate'!G14="", "missing", "complete") -> missing | L30: =IF('3. Proactive Disclosure Rate'!H14="", "missing", "complete") -> missing | M30: =IF('3. Proactive Disclosure Rate'!I14="", "missing", "complete") -> missing | N30: =IF('3. Proactive Disclosure Rate'!J14="", "missing", "complete") -> missing | O30: =IF('4. Proactive accuracy'!E13="", "missing", "complete") -> missing | P30: =IF('4. Proactive accuracy'!F13="", "missing", "complete") -> missing | Q30: =IF('5. Proactive PE response'!E13="", "missing", "complete") -> missing | R30: =IF('5. Proactive PE response'!G13="", "missing", "complete") -> missing | S30: =IF('5. Proactive PE response'!H13="", "missing", "complete") -> missing | T30: =IF('5. Proactive PE response'!I13="", "missing", "complete") -> missing | U30: =IF('5. Proactive PE response'!K13="", "missing", "complete") -> missing
D31: Contact details | E31: =IF('2. Proactive Completeness'!D14="", "missing", "complete") -> missing | F31: =IF('2. Proactive Completeness'!F14="", "missing", "complete") -> missing | G31: =IF('2. Proactive Completeness'!G14="", "missing", "complete") -> missing | H31: =IF('2. Proactive Completeness'!H14="", "missing", "complete") -> missing | I31: =IF('2. Proactive Completeness'!I14="", "missing", "complete") -> missing | J31: =IF('3. Proactive Disclosure Rate'!F15="", "missing", "complete") -> missing | K31: =IF('3. Proactive Disclosure Rate'!G15="", "missing", "complete") -> missing | L31: =IF('3. Proactive Disclosure Rate'!H15="", "missing", "complete") -> missing | M31: =IF('3. Proactive Disclosure Rate'!I15="", "missing", "complete") -> missing | N31: =IF('3. Proactive Disclosure Rate'!J15="", "missing", "complete") -> missing | O31: =IF('4. Proactive accuracy'!E14="", "missing", "complete") -> missing | P31: =IF('4. Proactive accuracy'!F14="", "missing", "complete") -> missing | Q31: =IF('5. Proactive PE response'!E14="", "missing", "complete") -> missing | R31: =IF('5. Proactive PE response'!G14="", "missing", "complete") -> missing | S31: =IF('5. Proactive PE response'!H14="", "missing", "complete") -> missing | T31: =IF('5. Proactive PE response'!I14="", "missing", "complete") -> missing | U31: =IF('5. Proactive PE response'!K14="", "missing", "complete") -> missing
D32: Funding sources | E32: =IF('2. Proactive Completeness'!D15="", "missing", "complete") -> missing | F32: =IF('2. Proactive Completeness'!F15="", "missing", "complete") -> missing | G32: =IF('2. Proactive Completeness'!G15="", "missing", "complete") -> missing | H32: =IF('2. Proactive Completeness'!H15="", "missing", "complete") -> missing | I32: =IF('2. Proactive Completeness'!I15="", "missing", "complete") -> missing | J32: =IF('3. Proactive Disclosure Rate'!F16="", "missing", "complete") -> missing | K32: =IF('3. Proactive Disclosure Rate'!G16="", "missing", "complete") -> missing | L32: =IF('3. Proactive Disclosure Rate'!H16="", "missing", "complete") -> missing | M32: =IF('3. Proactive Disclosure Rate'!I16="", "missing", "complete") -> missing | N32: =IF('3. Proactive Disclosure Rate'!J16="", "missing", "complete") -> missing | O32: =IF('4. Proactive accuracy'!E15="", "missing", "complete") -> missing | P32: =IF('4. Proactive accuracy'!F15="", "missing", "complete") -> missing | Q32: =IF('5. Proactive PE response'!E15="", "missing", "complete") -> missing | R32: =IF('5. Proactive PE response'!G15="", "missing", "complete") -> missing | S32: =IF('5. Proactive PE response'!H15="", "missing", "complete") -> missing | T32: =IF('5. Proactive PE response'!I15="", "missing", "complete") -> missing | U32: =IF('5. Proactive PE response'!K15="", "missing", "complete") -> missing
D33: Project Budget | E33: =IF('2. Proactive Completeness'!D16="", "missing", "complete") -> missing | F33: =IF('2. Proactive Completeness'!F16="", "missing", "complete") -> missing | G33: =IF('2. Proactive Completeness'!G16="", "missing", "complete") -> missing | H33: =IF('2. Proactive Completeness'!H16="", "missing", "complete") -> missing | I33: =IF('2. Proactive Completeness'!I16="", "missing", "complete") -> missing | J33: =IF('3. Proactive Disclosure Rate'!F17="", "missing", "complete") -> missing | K33: =IF('3. Proactive Disclosure Rate'!G17="", "missing", "complete") -> missing | L33: =IF('3. Proactive Disclosure Rate'!H17="", "missing", "complete") -> missing | M33: =IF('3. Proactive Disclosure Rate'!I17="", "missing", "complete") -> missing | N33: =IF('3. Proactive Disclosure Rate'!J17="", "missing", "complete") -> missing | O33: =IF('4. Proactive accuracy'!E16="", "missing", "complete") -> missing | P33: =IF('4. Proactive accuracy'!F16="", "missing", "complete") -> missing | Q33: =IF('5. Proactive PE response'!E16="", "missing", "complete") -> missing | R33: =IF('5. Proactive PE response'!G16="", "missing", "complete") -> missing | S33: =IF('5. Proactive PE response'!H16="", "missing", "complete") -> missing | T33: =IF('5. Proactive PE response'!I16="", "missing", "complete") -> missing | U33: =IF('5. Proactive PE response'!K16="", "missing", "complete") -> missing
D34: Project budget approval date | E34: =IF('2. Proactive Completeness'!D17="", "missing", "complete") -> missing | F34: =IF('2. Proactive Completeness'!F17="", "missing", "complete") -> missing | G34: =IF('2. Proactive Completeness'!G17="", "missing", "complete") -> missing | H34: =IF('2. Proactive Completeness'!H17="", "missing", "complete") -> missing | I34: =IF('2. Proactive Completeness'!I17="", "missing", "complete") -> missing | J34: =IF('3. Proactive Disclosure Rate'!F18="", "missing", "complete") -> missing | K34: =IF('3. Proactive Disclosure Rate'!G18="", "missing", "complete") -> missing | L34: =IF('3. Proactive Disclosure Rate'!H18="", "missing", "complete") -> missing | M34: =IF('3. Proactive Disclosure Rate'!I18="", "missing", "complete") -> missing | N34: =IF('3. Proactive Disclosure Rate'!J18="", "missing", "complete") -> missing | O34: =IF('4. Proactive accuracy'!E17="", "missing", "complete") -> missing | P34: =IF('4. Proactive accuracy'!F17="", "missing", "complete") -> missing | Q34: =IF('5. Proactive PE response'!E17="", "missing", "complete") -> missing | R34: =IF('5. Proactive PE response'!G17="", "missing", "complete") -> missing | S34: =IF('5. Proactive PE response'!H17="", "missing", "complete") -> missing | T34: =IF('5. Proactive PE response'!I17="", "missing", "complete") -> missing | U34: =IF('5. Proactive PE response'!K17="", "missing", "complete") -> missing
B35: Project Completion (6) | D35: Project status (current) | E35: =IF('2. Proactive Completeness'!D18="", "missing", "complete") -> missing | F35: =IF('2. Proactive Completeness'!F18="", "missing", "complete") -> missing | G35: =IF('2. Proactive Completeness'!G18="", "missing", "complete") -> missing | H35: =IF('2. Proactive Completeness'!H18="", "missing", "complete") -> missing | I35: =IF('2. Proactive Completeness'!I18="", "missing", "complete") -> missing | J35: =IF('3. Proactive Disclosure Rate'!F19="", "missing", "complete") -> missing | K35: =IF('3. Proactive Disclosure Rate'!G19="", "missing", "complete") -> missing | L35: =IF('3. Proactive Disclosure Rate'!H19="", "missing", "complete") -> missing | M35: =IF('3. Proactive Disclosure Rate'!I19="", "missing", "complete") -> missing | N35: =IF('3. Proactive Disclosure Rate'!J19="", "missing", "complete") -> missing | O35: =IF('4. Proactive accuracy'!E18="", "missing", "complete") -> missing | P35: =IF('4. Proactive accuracy'!F18="", "missing", "complete") -> missing | Q35: =IF('5. Proactive PE response'!E18="", "missing", "complete") -> missing | R35: =IF('5. Proactive PE response'!G18="", "missing", "complete") -> missing | S35: =IF('5. Proactive PE response'!H18="", "missing", "complete") -> missing | T35: =IF('5. Proactive PE response'!I18="", "missing", "complete") -> missing | U35: =IF('5. Proactive PE response'!K18="", "missing", "complete") -> missing
D36: Completion cost (projected) | E36: =IF('2. Proactive Completeness'!D19="", "missing", "complete") -> missing | F36: =IF('2. Proactive Completeness'!F19="", "missing", "complete") -> missing | G36: =IF('2. Proactive Completeness'!G19="", "missing", "complete") -> missing | H36: =IF('2. Proactive Completeness'!H19="", "missing", "complete") -> missing | I36: =IF('2. Proactive Completeness'!I19="", "missing", "complete") -> missing | J36: =IF('3. Proactive Disclosure Rate'!F20="", "missing", "complete") -> missing | K36: =IF('3. Proactive Disclosure Rate'!G20="", "missing", "complete") -> missing | L36: =IF('3. Proactive Disclosure Rate'!H20="", "missing", "complete") -> missing | M36: =IF('3. Proactive Disclosure Rate'!I20="", "missing", "complete") -> missing | N36: =IF('3. Proactive Disclosure Rate'!J20="", "missing", "complete") -> missing | O36: =IF('4. Proactive accuracy'!E19="", "missing", "complete") -> missing | P36: =IF('4. Proactive accuracy'!F19="", "missing", "complete") -> missing | Q36: =IF('5. Proactive PE response'!E19="", "missing", "complete") -> missing | R36: =IF('5. Proactive PE response'!G19="", "missing", "complete") -> missing | S36: =IF('5. Proactive PE response'!H19="", "missing", "complete") -> missing | T36: =IF('5. Proactive PE response'!I19="", "missing", "complete") -> missing | U36: =IF('5. Proactive PE response'!K19="", "missing", "complete") -> missing
D37: Completion date (projected) | E37: =IF('2. Proactive Completeness'!D20="", "missing", "complete") -> missing | F37: =IF('2. Proactive Completeness'!F20="", "missing", "complete") -> missing | G37: =IF('2. Proactive Completeness'!G20="", "missing", "complete") -> missing | H37: =IF('2. Proactive Completeness'!H20="", "missing", "complete") -> missing | I37: =IF('2. Proactive Completeness'!I20="", "missing", "complete") -> missing | J37: =IF('3. Proactive Disclosure Rate'!F21="", "missing", "complete") -> missing | K37: =IF('3. Proactive Disclosure Rate'!G21="", "missing", "complete") -> missing | L37: =IF('3. Proactive Disclosure Rate'!H21="", "missing", "complete") -> missing | M37: =IF('3. Proactive Disclosure Rate'!I21="", "missing", "complete") -> missing | N37: =IF('3. Proactive Disclosure Rate'!J21="", "missing", "complete") -> missing | O37: =IF('4. Proactive accuracy'!E20="", "missing", "complete") -> missing | P37: =IF('4. Proactive accuracy'!F20="", "missing", "complete") -> missing | Q37: =IF('5. Proactive PE response'!E20="", "missing", "complete") -> missing | R37: =IF('5. Proactive PE response'!G20="", "missing", "complete") -> missing | S37: =IF('5. Proactive PE response'!H20="", "missing", "complete") -> missing | T37: =IF('5. Proactive PE response'!I20="", "missing", "complete") -> missing | U37: =IF('5. Proactive PE response'!K20="", "missing", "complete") -> missing
D38: Scope at completion (projected) | E38: =IF('2. Proactive Completeness'!D21="", "missing", "complete") -> missing | F38: =IF('2. Proactive Completeness'!F21="", "missing", "complete") -> missing | G38: =IF('2. Proactive Completeness'!G21="", "missing", "complete") -> missing | H38: =IF('2. Proactive Completeness'!H21="", "missing", "complete") -> missing | I38: =IF('2. Proactive Completeness'!I21="", "missing", "complete") -> missing | J38: =IF('3. Proactive Disclosure Rate'!F22="", "missing", "complete") -> missing | K38: =IF('3. Proactive Disclosure Rate'!G22="", "missing", "complete") -> missing | L38: =IF('3. Proactive Disclosure Rate'!H22="", "missing", "complete") -> missing | M38: =IF('3. Proactive Disclosure Rate'!I22="", "missing", "complete") -> missing | N38: =IF('3. Proactive Disclosure Rate'!J22="", "missing", "complete") -> missing | O38: =IF('4. Proactive accuracy'!E21="", "missing", "complete") -> missing | P38: =IF('4. Proactive accuracy'!F21="", "missing", "complete") -> missing | Q38: =IF('5. Proactive PE response'!E21="", "missing", "complete") -> missing | R38: =IF('5. Proactive PE response'!G21="", "missing", "complete") -> missing | S38: =IF('5. Proactive PE response'!H21="", "missing", "complete") -> missing | T38: =IF('5. Proactive PE response'!I21="", "missing", "complete") -> missing | U38: =IF('5. Proactive PE response'!K21="", "missing", "complete") -> missing
D39: Reasons for project changes | E39: =IF('2. Proactive Completeness'!D22="", "missing", "complete") -> missing | F39: =IF('2. Proactive Completeness'!F22="", "missing", "complete") -> missing | G39: =IF('2. Proactive Completeness'!G22="", "missing", "complete") -> missing | H39: =IF('2. Proactive Completeness'!H22="", "missing", "complete") -> missing | I39: =IF('2. Proactive Completeness'!I22="", "missing", "complete") -> missing | J39: =IF('3. Proactive Disclosure Rate'!F23="", "missing", "complete") -> missing | K39: =IF('3. Proactive Disclosure Rate'!G23="", "missing", "complete") -> missing | L39: =IF('3. Proactive Disclosure Rate'!H23="", "missing", "complete") -> missing | M39: =IF('3. Proactive Disclosure Rate'!I23="", "missing", "complete") -> missing | N39: =IF('3. Proactive Disclosure Rate'!J23="", "missing", "complete") -> missing | O39: =IF('4. Proactive accuracy'!E22="", "missing", "complete") -> missing | P39: =IF('4. Proactive accuracy'!F22="", "missing", "complete") -> missing | Q39: =IF('5. Proactive PE response'!E22="", "missing", "complete") -> missing | R39: =IF('5. Proactive PE response'!G22="", "missing", "complete") -> missing | S39: =IF('5. Proactive PE response'!H22="", "missing", "complete") -> missing | T39: =IF('5. Proactive PE response'!I22="", "missing", "complete") -> missing | U39: =IF('5. Proactive PE response'!K22="", "missing", "complete") -> missing
D40: Reference to audit and evaluation reports | E40: =IF('2. Proactive Completeness'!D23="", "missing", "complete") -> missing | F40: =IF('2. Proactive Completeness'!F23="", "missing", "complete") -> missing | G40: =IF('2. Proactive Completeness'!G23="", "missing", "complete") -> missing | H40: =IF('2. Proactive Completeness'!H23="", "missing", "complete") -> missing | I40: =IF('2. Proactive Completeness'!I23="", "missing", "complete") -> missing | J40: =IF('3. Proactive Disclosure Rate'!F24="", "missing", "complete") -> missing | K40: =IF('3. Proactive Disclosure Rate'!G24="", "missing", "complete") -> missing | L40: =IF('3. Proactive Disclosure Rate'!H24="", "missing", "complete") -> missing | M40: =IF('3. Proactive Disclosure Rate'!I24="", "missing", "complete") -> missing | N40: =IF('3. Proactive Disclosure Rate'!J24="", "missing", "complete") -> missing | O40: =IF('4. Proactive accuracy'!E23="", "missing", "complete") -> missing | P40: =IF('4. Proactive accuracy'!F23="", "missing", "complete") -> missing | Q40: =IF('5. Proactive PE response'!E23="", "missing", "complete") -> missing | R40: =IF('5. Proactive PE response'!G23="", "missing", "complete") -> missing | S40: =IF('5. Proactive PE response'!H23="", "missing", "complete") -> missing | T40: =IF('5. Proactive PE response'!I23="", "missing", "complete") -> missing | U40: =IF('5. Proactive PE response'!K23="", "missing", "complete") -> missing
A41: SHEET NAME | E41: 2. Proactive Disclosure Completeness | J41: 3. Proactive Disclosure Rate | O41: 4. Proactive Accuracy | Q41: 5. Proactive PE Response
B42: Contract Phase | D42: Contract data item | E42: Data disclosed | F42: Location of data | G42: Ease of access | H42: IDS | I42: OC4IDS | J42: Comment: Source of Data | K42: Assessor 1 | L42: Assessor 2 | M42: Average Assessment | N42: Adjusted Score (%) | O42: Perceived Accuracy | P42: Comment | Q42: Issue raised with PE | R42: Comment if "Other" | S42: Date raised | T42: Comment | U42: Date resolved
B43: Tender Management (14) | D43: Procuring entity | E43: =IF('2. Proactive Completeness'!D28="", "missing", "complete") -> missing | F43: =IF('2. Proactive Completeness'!F28="", "missing", "complete") -> missing | G43: =IF('2. Proactive Completeness'!G28="", "missing", "complete") -> missing | H43: =IF('2. Proactive Completeness'!H28="", "missing", "complete") -> missing | I43: =IF('2. Proactive Completeness'!I28="", "missing", "complete") -> missing | J43: =IF('3. Proactive Disclosure Rate'!F30="", "missing", "complete") -> missing | K43: =IF('3. Proactive Disclosure Rate'!G30="", "missing", "complete") -> missing | L43: =IF('3. Proactive Disclosure Rate'!H30="", "missing", "complete") -> missing | M43: =IF('3. Proactive Disclosure Rate'!I30="", "missing", "complete") -> missing | N43: =IF('3. Proactive Disclosure Rate'!J30="", "missing", "complete") -> missing | O43: =IF('4. Proactive accuracy'!E28="", "missing", "complete") -> missing | P43: =IF('4. Proactive accuracy'!F28="", "missing", "complete") -> missing | Q43: =IF('5. Proactive PE response'!E28="", "missing", "complete") -> missing | R43: =IF('5. Proactive PE response'!G28="", "missing", "complete") -> missing | S43: =IF('5. Proactive PE response'!H28="", "missing", "complete") -> missing | T43: =IF('5. Proactive PE response'!I28="", "missing", "complete") -> missing | U43: =IF('5. Proactive PE response'!K28="", "missing", "complete") -> missing
D44: Procuring entity contact details | E44: =IF('2. Proactive Completeness'!D29="", "missing", "complete") -> missing | F44: =IF('2. Proactive Completeness'!F29="", "missing", "complete") -> missing | G44: =IF('2. Proactive Completeness'!G29="", "missing", "complete") -> missing | H44: =IF('2. Proactive Completeness'!H29="", "missing", "complete") -> missing | I44: =IF('2. Proactive Completeness'!I29="", "missing", "complete") -> missing | J44: =IF('3. Proactive Disclosure Rate'!F31="", "missing", "complete") -> missing | K44: =IF('3. Proactive Disclosure Rate'!G31="", "missing", "complete") -> missing | L44: =IF('3. Proactive Disclosure Rate'!H31="", "missing", "complete") -> missing | M44: =IF('3. Proactive Disclosure Rate'!I31="", "missing", "complete") -> missing | N44: =IF('3. Proactive Disclosure Rate'!J31="", "missing", "complete") -> missing | O44: =IF('4. Proactive accuracy'!E29="", "missing", "complete") -> missing | P44: =IF('4. Proactive accuracy'!F29="", "missing", "complete") -> missing | Q44: =IF('5. Proactive PE response'!E29="", "missing", "complete") -> missing | R44: =IF('5. Proactive PE response'!G29="", "missing", "complete") -> missing | S44: =IF('5. Proactive PE response'!H29="", "missing", "complete") -> missing | T44: =IF('5. Proactive PE response'!I29="", "missing", "complete") -> missing | U44: =IF('5. Proactive PE response'!K29="", "missing", "complete") -> missing
D45: Procurement process | E45: =IF('2. Proactive Completeness'!D30="", "missing", "complete") -> missing | F45: =IF('2. Proactive Completeness'!F30="", "missing", "complete") -> missing | G45: =IF('2. Proactive Completeness'!G30="", "missing", "complete") -> missing | H45: =IF('2. Proactive Completeness'!H30="", "missing", "complete") -> missing | I45: =IF('2. Proactive Completeness'!I30="", "missing", "complete") -> missing | J45: =IF('3. Proactive Disclosure Rate'!F32="", "missing", "complete") -> missing | K45: =IF('3. Proactive Disclosure Rate'!G32="", "missing", "complete") -> missing | L45: =IF('3. Proactive Disclosure Rate'!H32="", "missing", "complete") -> missing | M45: =IF('3. Proactive Disclosure Rate'!I32="", "missing", "complete") -> missing | N45: =IF('3. Proactive Disclosure Rate'!J32="", "missing", "complete") -> missing | O45: =IF('4. Proactive accuracy'!E30="", "missing", "complete") -> missing | P45: =IF('4. Proactive accuracy'!F30="", "missing", "complete") -> missing | Q45: =IF('5. Proactive PE response'!E30="", "missing", "complete") -> missing | R45: =IF('5. Proactive PE response'!G30="", "missing", "complete") -> missing | S45: =IF('5. Proactive PE response'!H30="", "missing", "complete") -> missing | T45: =IF('5. Proactive PE response'!I30="", "missing", "complete") -> missing | U45: =IF('5. Proactive PE response'!K30="", "missing", "complete") -> missing
D46: Contract type | E46: =IF('2. Proactive Completeness'!D31="", "missing", "complete") -> missing | F46: =IF('2. Proactive Completeness'!F31="", "missing", "complete") -> missing | G46: =IF('2. Proactive Completeness'!G31="", "missing", "complete") -> missing | H46: =IF('2. Proactive Completeness'!H31="", "missing", "complete") -> missing | I46: =IF('2. Proactive Completeness'!I31="", "missing", "complete") -> missing | J46: =IF('3. Proactive Disclosure Rate'!F33="", "missing", "complete") -> missing | K46: =IF('3. Proactive Disclosure Rate'!G33="", "missing", "complete") -> missing | L46: =IF('3. Proactive Disclosure Rate'!H33="", "missing", "complete") -> missing | M46: =IF('3. Proactive Disclosure Rate'!I33="", "missing", "complete") -> missing | N46: =IF('3. Proactive Disclosure Rate'!J33="", "missing", "complete") -> missing | O46: =IF('4. Proactive accuracy'!E31="", "missing", "complete") -> missing | P46: =IF('4. Proactive accuracy'!F31="", "missing", "complete") -> missing | Q46: =IF('5. Proactive PE response'!E31="", "missing", "complete") -> missing | R46: =IF('5. Proactive PE response'!G31="", "missing", "complete") -> missing | S46: =IF('5. Proactive PE response'!H31="", "missing", "complete") -> missing | T46: =IF('5. Proactive PE response'!I31="", "missing", "complete") -> missing | U46: =IF('5. Proactive PE response'!K31="", "missing", "complete") -> missing
D47: Contract status (current) | E47: =IF('2. Proactive Completeness'!D32="", "missing", "complete") -> missing | F47: =IF('2. Proactive Completeness'!F32="", "missing", "complete") -> missing | G47: =IF('2. Proactive Completeness'!G32="", "missing", "complete") -> missing | H47: =IF('2. Proactive Completeness'!H32="", "missing", "complete") -> missing | I47: =IF('2. Proactive Completeness'!I32="", "missing", "complete") -> missing | J47: =IF('3. Proactive Disclosure Rate'!F34="", "missing", "complete") -> missing | K47: =IF('3. Proactive Disclosure Rate'!G34="", "missing", "complete") -> missing | L47: =IF('3. Proactive Disclosure Rate'!H34="", "missing", "complete") -> missing | M47: =IF('3. Proactive Disclosure Rate'!I34="", "missing", "complete") -> missing | N47: =IF('3. Proactive Disclosure Rate'!J34="", "missing", "complete") -> missing | O47: =IF('4. Proactive accuracy'!E32="", "missing", "complete") -> missing | P47: =IF('4. Proactive accuracy'!F32="", "missing", "complete") -> missing | Q47: =IF('5. Proactive PE response'!E32="", "missing", "complete") -> missing | R47: =IF('5. Proactive PE response'!G32="", "missing", "complete") -> missing | S47: =IF('5. Proactive PE response'!H32="", "missing", "complete") -> missing | T47: =IF('5. Proactive PE response'!I32="", "missing", "complete") -> missing | U47: =IF('5. Proactive PE response'!K32="", "missing", "complete") -> missing
D48: Number of firms tendering | E48: =IF('2. Proactive Completeness'!D33="", "missing", "complete") -> missing | F48: =IF('2. Proactive Completeness'!F33="", "missing", "complete") -> missing | G48: =IF('2. Proactive Completeness'!G33="", "missing", "complete") -> missing | H48: =IF('2. Proactive Completeness'!H33="", "missing", "complete") -> missing | I48: =IF('2. Proactive Completeness'!I33="", "missing", "complete") -> missing | J48: =IF('3. Proactive Disclosure Rate'!F35="", "missing", "complete") -> missing | K48: =IF('3. Proactive Disclosure Rate'!G35="", "missing", "complete") -> missing | L48: =IF('3. Proactive Disclosure Rate'!H35="", "missing", "complete") -> missing | M48: =IF('3. Proactive Disclosure Rate'!I35="", "missing", "complete") -> missing | N48: =IF('3. Proactive Disclosure Rate'!J35="", "missing", "complete") -> missing | O48: =IF('4. Proactive accuracy'!E33="", "missing", "complete") -> missing | P48: =IF('4. Proactive accuracy'!F33="", "missing", "complete") -> missing | Q48: =IF('5. Proactive PE response'!E33="", "missing", "complete") -> missing | R48: =IF('5. Proactive PE response'!G33="", "missing", "complete") -> missing | S48: =IF('5. Proactive PE response'!H33="", "missing", "complete") -> missing | T48: =IF('5. Proactive PE response'!I33="", "missing", "complete") -> missing | U48: =IF('5. Proactive PE response'!K33="", "missing", "complete") -> missing
D49: Cost estimate | E49: =IF('2. Proactive Completeness'!D34="", "missing", "complete") -> missing | F49: =IF('2. Proactive Completeness'!F34="", "missing", "complete") -> missing | G49: =IF('2. Proactive Completeness'!G34="", "missing", "complete") -> missing | H49: =IF('2. Proactive Completeness'!H34="", "missing", "complete") -> missing | I49: =IF('2. Proactive Completeness'!I34="", "missing", "complete") -> missing | J49: =IF('3. Proactive Disclosure Rate'!F36="", "missing", "complete") -> missing | K49: =IF('3. Proactive Disclosure Rate'!G36="", "missing", "complete") -> missing | L49: =IF('3. Proactive Disclosure Rate'!H36="", "missing", "complete") -> missing | M49: =IF('3. Proactive Disclosure Rate'!I36="", "missing", "complete") -> missing | N49: =IF('3. Proactive Disclosure Rate'!J36="", "missing", "complete") -> missing | O49: =IF('4. Proactive accuracy'!E34="", "missing", "complete") -> missing | P49: =IF('4. Proactive accuracy'!F34="", "missing", "complete") -> missing | Q49: =IF('5. Proactive PE response'!E34="", "missing", "complete") -> missing | R49: =IF('5. Proactive PE response'!G34="", "missing", "complete") -> missing | S49: =IF('5. Proactive PE response'!H34="", "missing", "complete") -> missing | T49: =IF('5. Proactive PE response'!I34="", "missing", "complete") -> missing | U49: =IF('5. Proactive PE response'!K34="", "missing", "complete") -> missing
D50: Contract administration entity | E50: =IF('2. Proactive Completeness'!D35="", "missing", "complete") -> missing | F50: =IF('2. Proactive Completeness'!F35="", "missing", "complete") -> missing | G50: =IF('2. Proactive Completeness'!G35="", "missing", "complete") -> missing | H50: =IF('2. Proactive Completeness'!H35="", "missing", "complete") -> missing | I50: =IF('2. Proactive Completeness'!I35="", "missing", "complete") -> missing | J50: =IF('3. Proactive Disclosure Rate'!F37="", "missing", "complete") -> missing | K50: =IF('3. Proactive Disclosure Rate'!G37="", "missing", "complete") -> missing | L50: =IF('3. Proactive Disclosure Rate'!H37="", "missing", "complete") -> missing | M50: =IF('3. Proactive Disclosure Rate'!I37="", "missing", "complete") -> missing | N50: =IF('3. Proactive Disclosure Rate'!J37="", "missing", "complete") -> missing | O50: =IF('4. Proactive accuracy'!E35="", "missing", "complete") -> missing | P50: =IF('4. Proactive accuracy'!F35="", "missing", "complete") -> missing | Q50: =IF('5. Proactive PE response'!E35="", "missing", "complete") -> missing | R50: =IF('5. Proactive PE response'!G35="", "missing", "complete") -> missing | S50: =IF('5. Proactive PE response'!H35="", "missing", "complete") -> missing | T50: =IF('5. Proactive PE response'!I35="", "missing", "complete") -> missing | U50: =IF('5. Proactive PE response'!K35="", "missing", "complete") -> missing
D51: Contract title | E51: =IF('2. Proactive Completeness'!D36="", "missing", "complete") -> missing | F51: =IF('2. Proactive Completeness'!F36="", "missing", "complete") -> missing | G51: =IF('2. Proactive Completeness'!G36="", "missing", "complete") -> missing | H51: =IF('2. Proactive Completeness'!H36="", "missing", "complete") -> missing | I51: =IF('2. Proactive Completeness'!I36="", "missing", "complete") -> missing | J51: =IF('3. Proactive Disclosure Rate'!F38="", "missing", "complete") -> missing | K51: =IF('3. Proactive Disclosure Rate'!G38="", "missing", "complete") -> missing | L51: =IF('3. Proactive Disclosure Rate'!H38="", "missing", "complete") -> missing | M51: =IF('3. Proactive Disclosure Rate'!I38="", "missing", "complete") -> missing | N51: =IF('3. Proactive Disclosure Rate'!J38="", "missing", "complete") -> missing | O51: =IF('4. Proactive accuracy'!E36="", "missing", "complete") -> missing | P51: =IF('4. Proactive accuracy'!F36="", "missing", "complete") -> missing | Q51: =IF('5. Proactive PE response'!E36="", "missing", "complete") -> missing | R51: =IF('5. Proactive PE response'!G36="", "missing", "complete") -> missing | S51: =IF('5. Proactive PE response'!H36="", "missing", "complete") -> missing | T51: =IF('5. Proactive PE response'!I36="", "missing", "complete") -> missing | U51: =IF('5. Proactive PE response'!K36="", "missing", "complete") -> missing
D52: Contract firm(s) | E52: =IF('2. Proactive Completeness'!D37="", "missing", "complete") -> missing | F52: =IF('2. Proactive Completeness'!F37="", "missing", "complete") -> missing | G52: =IF('2. Proactive Completeness'!G37="", "missing", "complete") -> missing | H52: =IF('2. Proactive Completeness'!H37="", "missing", "complete") -> missing | I52: =IF('2. Proactive Completeness'!I37="", "missing", "complete") -> missing | J52: =IF('3. Proactive Disclosure Rate'!F39="", "missing", "complete") -> missing | K52: =IF('3. Proactive Disclosure Rate'!G39="", "missing", "complete") -> missing | L52: =IF('3. Proactive Disclosure Rate'!H39="", "missing", "complete") -> missing | M52: =IF('3. Proactive Disclosure Rate'!I39="", "missing", "complete") -> missing | N52: =IF('3. Proactive Disclosure Rate'!J39="", "missing", "complete") -> missing | O52: =IF('4. Proactive accuracy'!E37="", "missing", "complete") -> missing | P52: =IF('4. Proactive accuracy'!F37="", "missing", "complete") -> missing | Q52: =IF('5. Proactive PE response'!E37="", "missing", "complete") -> missing | R52: =IF('5. Proactive PE response'!G37="", "missing", "complete") -> missing | S52: =IF('5. Proactive PE response'!H37="", "missing", "complete") -> missing | T52: =IF('5. Proactive PE response'!I37="", "missing", "complete") -> missing | U52: =IF('5. Proactive PE response'!K37="", "missing", "complete") -> missing
D53: Contract price | E53: =IF('2. Proactive Completeness'!D38="", "missing", "complete") -> missing | F53: =IF('2. Proactive Completeness'!F38="", "missing", "complete") -> missing | G53: =IF('2. Proactive Completeness'!G38="", "missing", "complete") -> missing | H53: =IF('2. Proactive Completeness'!H38="", "missing", "complete") -> missing | I53: =IF('2. Proactive Completeness'!I38="", "missing", "complete") -> missing | J53: =IF('3. Proactive Disclosure Rate'!F40="", "missing", "complete") -> missing | K53: =IF('3. Proactive Disclosure Rate'!G40="", "missing", "complete") -> missing | L53: =IF('3. Proactive Disclosure Rate'!H40="", "missing", "complete") -> missing | M53: =IF('3. Proactive Disclosure Rate'!I40="", "missing", "complete") -> missing | N53: =IF('3. Proactive Disclosure Rate'!J40="", "missing", "complete") -> missing | O53: =IF('4. Proactive accuracy'!E38="", "missing", "complete") -> missing | P53: =IF('4. Proactive accuracy'!F38="", "missing", "complete") -> missing | Q53: =IF('5. Proactive PE response'!E38="", "missing", "complete") -> missing | R53: =IF('5. Proactive PE response'!G38="", "missing", "complete") -> missing | S53: =IF('5. Proactive PE response'!H38="", "missing", "complete") -> missing | T53: =IF('5. Proactive PE response'!I38="", "missing", "complete") -> missing | U53: =IF('5. Proactive PE response'!K38="", "missing", "complete") -> missing
D54: Contract scope of work | E54: =IF('2. Proactive Completeness'!D39="", "missing", "complete") -> missing | F54: =IF('2. Proactive Completeness'!F39="", "missing", "complete") -> missing | G54: =IF('2. Proactive Completeness'!G39="", "missing", "complete") -> missing | H54: =IF('2. Proactive Completeness'!H39="", "missing", "complete") -> missing | I54: =IF('2. Proactive Completeness'!I39="", "missing", "complete") -> missing | J54: =IF('3. Proactive Disclosure Rate'!F41="", "missing", "complete") -> missing | K54: =IF('3. Proactive Disclosure Rate'!G41="", "missing", "complete") -> missing | L54: =IF('3. Proactive Disclosure Rate'!H41="", "missing", "complete") -> missing | M54: =IF('3. Proactive Disclosure Rate'!I41="", "missing", "complete") -> missing | N54: =IF('3. Proactive Disclosure Rate'!J41="", "missing", "complete") -> missing | O54: =IF('4. Proactive accuracy'!E39="", "missing", "complete") -> missing | P54: =IF('4. Proactive accuracy'!F39="", "missing", "complete") -> missing | Q54: =IF('5. Proactive PE response'!E39="", "missing", "complete") -> missing | R54: =IF('5. Proactive PE response'!G39="", "missing", "complete") -> missing | S54: =IF('5. Proactive PE response'!H39="", "missing", "complete") -> missing | T54: =IF('5. Proactive PE response'!I39="", "missing", "complete") -> missing | U54: =IF('5. Proactive PE response'!K39="", "missing", "complete") -> missing
D55: Contract start date | E55: =IF('2. Proactive Completeness'!D40="", "missing", "complete") -> missing | F55: =IF('2. Proactive Completeness'!F40="", "missing", "complete") -> missing | G55: =IF('2. Proactive Completeness'!G40="", "missing", "complete") -> missing | H55: =IF('2. Proactive Completeness'!H40="", "missing", "complete") -> missing | I55: =IF('2. Proactive Completeness'!I40="", "missing", "complete") -> missing | J55: =IF('3. Proactive Disclosure Rate'!F42="", "missing", "complete") -> missing | K55: =IF('3. Proactive Disclosure Rate'!G42="", "missing", "complete") -> missing | L55: =IF('3. Proactive Disclosure Rate'!H42="", "missing", "complete") -> missing | M55: =IF('3. Proactive Disclosure Rate'!I42="", "missing", "complete") -> missing | N55: =IF('3. Proactive Disclosure Rate'!J42="", "missing", "complete") -> missing | O55: =IF('4. Proactive accuracy'!E40="", "missing", "complete") -> missing | P55: =IF('4. Proactive accuracy'!F40="", "missing", "complete") -> missing | Q55: =IF('5. Proactive PE response'!E40="", "missing", "complete") -> missing | R55: =IF('5. Proactive PE response'!G40="", "missing", "complete") -> missing | S55: =IF('5. Proactive PE response'!H40="", "missing", "complete") -> missing | T55: =IF('5. Proactive PE response'!I40="", "missing", "complete") -> missing | U55: =IF('5. Proactive PE response'!K40="", "missing", "complete") -> missing
D56: Contract duration | E56: =IF('2. Proactive Completeness'!D41="", "missing", "complete") -> missing | F56: =IF('2. Proactive Completeness'!F41="", "missing", "complete") -> missing | G56: =IF('2. Proactive Completeness'!G41="", "missing", "complete") -> missing | H56: =IF('2. Proactive Completeness'!H41="", "missing", "complete") -> missing | I56: =IF('2. Proactive Completeness'!I41="", "missing", "complete") -> missing | J56: =IF('3. Proactive Disclosure Rate'!F43="", "missing", "complete") -> missing | K56: =IF('3. Proactive Disclosure Rate'!G43="", "missing", "complete") -> missing | L56: =IF('3. Proactive Disclosure Rate'!H43="", "missing", "complete") -> missing | M56: =IF('3. Proactive Disclosure Rate'!I43="", "missing", "complete") -> missing | N56: =IF('3. Proactive Disclosure Rate'!J43="", "missing", "complete") -> missing | O56: =IF('4. Proactive accuracy'!E41="", "missing", "complete") -> missing | P56: =IF('4. Proactive accuracy'!F41="", "missing", "complete") -> missing | Q56: =IF('5. Proactive PE response'!E41="", "missing", "complete") -> missing | R56: =IF('5. Proactive PE response'!G41="", "missing", "complete") -> missing | S56: =IF('5. Proactive PE response'!H41="", "missing", "complete") -> missing | T56: =IF('5. Proactive PE response'!I41="", "missing", "complete") -> missing | U56: =IF('5. Proactive PE response'!K41="", "missing", "complete") -> missing
B57: Implementation (6) | D57: Variation to contract price | E57: =IF('2. Proactive Completeness'!D42="", "missing", "complete") -> missing | F57: =IF('2. Proactive Completeness'!F42="", "missing", "complete") -> missing | G57: =IF('2. Proactive Completeness'!G42="", "missing", "complete") -> missing | H57: =IF('2. Proactive Completeness'!H42="", "missing", "complete") -> missing | I57: =IF('2. Proactive Completeness'!I42="", "missing", "complete") -> missing | J57: =IF('3. Proactive Disclosure Rate'!F44="", "missing", "complete") -> missing | K57: =IF('3. Proactive Disclosure Rate'!G44="", "missing", "complete") -> missing | L57: =IF('3. Proactive Disclosure Rate'!H44="", "missing", "complete") -> missing | M57: =IF('3. Proactive Disclosure Rate'!I44="", "missing", "complete") -> missing | N57: =IF('3. Proactive Disclosure Rate'!J44="", "missing", "complete") -> missing | O57: =IF('4. Proactive accuracy'!E42="", "missing", "complete") -> missing | P57: =IF('4. Proactive accuracy'!F42="", "missing", "complete") -> missing | Q57: =IF('5. Proactive PE response'!E42="", "missing", "complete") -> missing | R57: =IF('5. Proactive PE response'!G42="", "missing", "complete") -> missing | S57: =IF('5. Proactive PE response'!H42="", "missing", "complete") -> missing | T57: =IF('5. Proactive PE response'!I42="", "missing", "complete") -> missing | U57: =IF('5. Proactive PE response'!K42="", "missing", "complete") -> missing
D58: Escalation of contract price | E58: =IF('2. Proactive Completeness'!D43="", "missing", "complete") -> missing | F58: =IF('2. Proactive Completeness'!F43="", "missing", "complete") -> missing | G58: =IF('2. Proactive Completeness'!G43="", "missing", "complete") -> missing | H58: =IF('2. Proactive Completeness'!H43="", "missing", "complete") -> missing | I58: =IF('2. Proactive Completeness'!I43="", "missing", "complete") -> missing | J58: =IF('3. Proactive Disclosure Rate'!F45="", "missing", "complete") -> missing | K58: =IF('3. Proactive Disclosure Rate'!G45="", "missing", "complete") -> missing | L58: =IF('3. Proactive Disclosure Rate'!H45="", "missing", "complete") -> missing | M58: =IF('3. Proactive Disclosure Rate'!I45="", "missing", "complete") -> missing | N58: =IF('3. Proactive Disclosure Rate'!J45="", "missing", "complete") -> missing | O58: =IF('4. Proactive accuracy'!E43="", "missing", "complete") -> missing | P58: =IF('4. Proactive accuracy'!F43="", "missing", "complete") -> missing | Q58: =IF('5. Proactive PE response'!E43="", "missing", "complete") -> missing | R58: =IF('5. Proactive PE response'!G43="", "missing", "complete") -> missing | S58: =IF('5. Proactive PE response'!H43="", "missing", "complete") -> missing | T58: =IF('5. Proactive PE response'!I43="", "missing", "complete") -> missing | U58: =IF('5. Proactive PE response'!K43="", "missing", "complete") -> missing
D59: Variation to contract duration | E59: =IF('2. Proactive Completeness'!D44="", "missing", "complete") -> missing | F59: =IF('2. Proactive Completeness'!F44="", "missing", "complete") -> missing | G59: =IF('2. Proactive Completeness'!G44="", "missing", "complete") -> missing | H59: =IF('2. Proactive Completeness'!H44="", "missing", "complete") -> missing | I59: =IF('2. Proactive Completeness'!I44="", "missing", "complete") -> missing | J59: =IF('3. Proactive Disclosure Rate'!F46="", "missing", "complete") -> missing | K59: =IF('3. Proactive Disclosure Rate'!G46="", "missing", "complete") -> missing | L59: =IF('3. Proactive Disclosure Rate'!H46="", "missing", "complete") -> missing | M59: =IF('3. Proactive Disclosure Rate'!I46="", "missing", "complete") -> missing | N59: =IF('3. Proactive Disclosure Rate'!J46="", "missing", "complete") -> missing | O59: =IF('4. Proactive accuracy'!E44="", "missing", "complete") -> missing | P59: =IF('4. Proactive accuracy'!F44="", "missing", "complete") -> missing | Q59: =IF('5. Proactive PE response'!E44="", "missing", "complete") -> missing | R59: =IF('5. Proactive PE response'!G44="", "missing", "complete") -> missing | S59: =IF('5. Proactive PE response'!H44="", "missing", "complete") -> missing | T59: =IF('5. Proactive PE response'!I44="", "missing", "complete") -> missing | U59: =IF('5. Proactive PE response'!K44="", "missing", "complete") -> missing
D60: Variation to contract scope | E60: =IF('2. Proactive Completeness'!D45="", "missing", "complete") -> missing | F60: =IF('2. Proactive Completeness'!F45="", "missing", "complete") -> missing | G60: =IF('2. Proactive Completeness'!G45="", "missing", "complete") -> missing | H60: =IF('2. Proactive Completeness'!H45="", "missing", "complete") -> missing | I60: =IF('2. Proactive Completeness'!I45="", "missing", "complete") -> missing | J60: =IF('3. Proactive Disclosure Rate'!F47="", "missing", "complete") -> missing | K60: =IF('3. Proactive Disclosure Rate'!G47="", "missing", "complete") -> missing | L60: =IF('3. Proactive Disclosure Rate'!H47="", "missing", "complete") -> missing | M60: =IF('3. Proactive Disclosure Rate'!I47="", "missing", "complete") -> missing | N60: =IF('3. Proactive Disclosure Rate'!J47="", "missing", "complete") -> missing | O60: =IF('4. Proactive accuracy'!E45="", "missing", "complete") -> missing | P60: =IF('4. Proactive accuracy'!F45="", "missing", "complete") -> missing | Q60: =IF('5. Proactive PE response'!E45="", "missing", "complete") -> missing | R60: =IF('5. Proactive PE response'!G45="", "missing", "complete") -> missing | S60: =IF('5. Proactive PE response'!H45="", "missing", "complete") -> missing | T60: =IF('5. Proactive PE response'!I45="", "missing", "complete") -> missing | U60: =IF('5. Proactive PE response'!K45="", "missing", "complete") -> missing
D61: Reasons for price changes | E61: =IF('2. Proactive Completeness'!D46="", "missing", "complete") -> missing | F61: =IF('2. Proactive Completeness'!F46="", "missing", "complete") -> missing | G61: =IF('2. Proactive Completeness'!G46="", "missing", "complete") -> missing | H61: =IF('2. Proactive Completeness'!H46="", "missing", "complete") -> missing | I61: =IF('2. Proactive Completeness'!I46="", "missing", "complete") -> missing | J61: =IF('3. Proactive Disclosure Rate'!F48="", "missing", "complete") -> missing | K61: =IF('3. Proactive Disclosure Rate'!G48="", "missing", "complete") -> missing | L61: =IF('3. Proactive Disclosure Rate'!H48="", "missing", "complete") -> missing | M61: =IF('3. Proactive Disclosure Rate'!I48="", "missing", "complete") -> missing | N61: =IF('3. Proactive Disclosure Rate'!J48="", "missing", "complete") -> missing | O61: =IF('4. Proactive accuracy'!E46="", "missing", "complete") -> missing | P61: =IF('4. Proactive accuracy'!F46="", "missing", "complete") -> missing | Q61: =IF('5. Proactive PE response'!E46="", "missing", "complete") -> missing | R61: =IF('5. Proactive PE response'!G46="", "missing", "complete") -> missing | S61: =IF('5. Proactive PE response'!H46="", "missing", "complete") -> missing | T61: =IF('5. Proactive PE response'!I46="", "missing", "complete") -> missing | U61: =IF('5. Proactive PE response'!K46="", "missing", "complete") -> missing
D62: Reasons for scope and duration changes | E62: =IF('2. Proactive Completeness'!D47="", "missing", "complete") -> missing | F62: =IF('2. Proactive Completeness'!F47="", "missing", "complete") -> missing | G62: =IF('2. Proactive Completeness'!G47="", "missing", "complete") -> missing | H62: =IF('2. Proactive Completeness'!H47="", "missing", "complete") -> missing | I62: =IF('2. Proactive Completeness'!I47="", "missing", "complete") -> missing | J62: =IF('3. Proactive Disclosure Rate'!F49="", "missing", "complete") -> missing | K62: =IF('3. Proactive Disclosure Rate'!G49="", "missing", "complete") -> missing | L62: =IF('3. Proactive Disclosure Rate'!H49="", "missing", "complete") -> missing | M62: =IF('3. Proactive Disclosure Rate'!I49="", "missing", "complete") -> missing | N62: =IF('3. Proactive Disclosure Rate'!J49="", "missing", "complete") -> missing | O62: =IF('4. Proactive accuracy'!E47="", "missing", "complete") -> missing | P62: =IF('4. Proactive accuracy'!F47="", "missing", "complete") -> missing | Q62: =IF('5. Proactive PE response'!E47="", "missing", "complete") -> missing | R62: =IF('5. Proactive PE response'!G47="", "missing", "complete") -> missing | S62: =IF('5. Proactive PE response'!H47="", "missing", "complete") -> missing | T62: =IF('5. Proactive PE response'!I47="", "missing", "complete") -> missing | U62: =IF('5. Proactive PE response'!K47="", "missing", "complete") -> missing
A66: SHEET NAME | E66: 6. Reactive Disclosure Response | Q66: 7. Assessment of Processes
B67: Project Phase | D67: Project data item | E67: Date requested | F67: Date received | G67: Days | H67: Comment | I67: Average Assessment | J67: IDS | K67: OC4IDS | Q67: Quality Management | S67: Environmental & Social Protection | U67: Health & Safety
B68: Identification and Preparation (8) | D68: Multi-year programme & Budget | E68: =IF('6. Reactive PE response'!D4="", "missing", "complete") -> missing | F68: =IF('6. Reactive PE response'!E4="", "missing", "complete") -> missing | G68: =IF(AND(E68="missing", F68="missing"), "missing", IF(AND(E68<>"", F68<>""), "complete", _xlfn.IFS(E68="missing", "missing", F68="missing", "missing", E68="", "", F68="", ""))) -> missing | H68: =IF('6. Reactive PE response'!H4="", "missing", "complete") -> missing | I68: =IF('6. Reactive PE response'!M4="", "missing", "complete") -> missing | J68: =IF('6. Reactive PE response'!O4="", "missing", "complete") -> missing | K68: =IF('6. Reactive PE response'!P4="", "missing", "complete") -> missing | M68: Instructions to bidder | O68: Instructions to bidder | Q68: =IF('7. Assessment of processes'!C5="", "missing", "complete") -> missing | R68: =IF('7. Assessment of processes'!D5="", "missing", "complete") -> missing | S68: =IF('7. Assessment of processes'!E5="", "missing", "complete") -> missing | T68: =IF('7. Assessment of processes'!F5="", "missing", "complete") -> missing | U68: =IF('7. Assessment of processes'!G5="", "missing", "complete") -> missing | V68: =IF('7. Assessment of processes'!H5="", "missing", "complete") -> missing
D69: Project brief or Feasibility study | E69: =IF('6. Reactive PE response'!D5="", "missing", "complete") -> missing | F69: =IF('6. Reactive PE response'!E5="", "missing", "complete") -> missing | G69: =IF(AND(E69="missing", F69="missing"), "missing", IF(AND(E69<>"", F69<>""), "complete", _xlfn.IFS(E69="missing", "missing", F69="missing", "missing", E69="", "", F69="", ""))) -> missing | H69: =IF('6. Reactive PE response'!H5="", "missing", "complete") -> missing | I69: =IF('6. Reactive PE response'!M5="", "missing", "complete") -> missing | J69: =IF('6. Reactive PE response'!O5="", "missing", "complete") -> missing | K69: =IF('6. Reactive PE response'!P5="", "missing", "complete") -> missing | M69: Contract documents | O69: Contract documents | Q69: =IF('7. Assessment of processes'!C10="", "missing", "complete") -> missing | R69: =IF('7. Assessment of processes'!D10="", "missing", "complete") -> missing | S69: =IF('7. Assessment of processes'!E10="", "missing", "complete") -> missing | T69: =IF('7. Assessment of processes'!F10="", "missing", "complete") -> missing | U69: =IF('7. Assessment of processes'!G10="", "missing", "complete") -> missing | V69: =IF('7. Assessment of processes'!H10="", "missing", "complete") -> missing
D70: Environmental and social impact assessment | E70: =IF('6. Reactive PE response'!D6="", "missing", "complete") -> missing | F70: =IF('6. Reactive PE response'!E6="", "missing", "complete") -> missing | G70: =IF(AND(E70="missing", F70="missing"), "missing", IF(AND(E70<>"", F70<>""), "complete", _xlfn.IFS(E70="missing", "missing", F70="missing", "missing", E70="", "", F70="", ""))) -> missing | H70: =IF('6. Reactive PE response'!H6="", "missing", "complete") -> missing | I70: =IF('6. Reactive PE response'!M6="", "missing", "complete") -> missing | J70: =IF('6. Reactive PE response'!O6="", "missing", "complete") -> missing | K70: =IF('6. Reactive PE response'!P6="", "missing", "complete") -> missing | M70: Site visit | O70: Site visit | Q70: =IF('7. Assessment of processes'!C15="", "missing", "complete") -> missing | R70: =IF('7. Assessment of processes'!D15="", "missing", "complete") -> missing | S70: =IF('7. Assessment of processes'!E15="", "missing", "complete") -> missing | T70: =IF('7. Assessment of processes'!F15="", "missing", "complete") -> missing | U70: =IF('7. Assessment of processes'!G15="", "missing", "complete") -> missing | V70: =IF('7. Assessment of processes'!H15="", "missing", "complete") -> missing
D71: Resettlement and compensation plan | E71: =IF('6. Reactive PE response'!D6="", "missing", "complete") -> missing | F71: =IF('6. Reactive PE response'!E6="", "missing", "complete") -> missing | G71: =IF(AND(E71="missing", F71="missing"), "missing", IF(AND(E71<>"", F71<>""), "complete", _xlfn.IFS(E71="missing", "missing", F71="missing", "missing", E71="", "", F71="", ""))) -> missing | H71: =IF('6. Reactive PE response'!H7="", "missing", "complete") -> missing | I71: =IF('6. Reactive PE response'!M7="", "missing", "complete") -> missing | J71: =IF('6. Reactive PE response'!O7="", "missing", "complete") -> missing | K71: =IF('6. Reactive PE response'!P7="", "missing", "complete") -> missing
D72: Project officials and roles | E72: =IF('6. Reactive PE response'!D8="", "missing", "complete") -> missing | F72: =IF('6. Reactive PE response'!E8="", "missing", "complete") -> missing | G72: =IF(AND(E72="missing", F72="missing"), "missing", IF(AND(E72<>"", F72<>""), "complete", _xlfn.IFS(E72="missing", "missing", F72="missing", "missing", E72="", "", F72="", ""))) -> missing | H72: =IF('6. Reactive PE response'!H8="", "missing", "complete") -> missing | I72: =IF('6. Reactive PE response'!M8="", "missing", "complete") -> missing | J72: =IF('6. Reactive PE response'!O8="", "missing", "complete") -> missing | K72: =IF('6. Reactive PE response'!P8="", "missing", "complete") -> missing
D73: Financial agreement | E73: =IF('6. Reactive PE response'!D8="", "missing", "complete") -> missing | F73: =IF('6. Reactive PE response'!E8="", "missing", "complete") -> missing | G73: =IF(AND(E73="missing", F73="missing"), "missing", IF(AND(E73<>"", F73<>""), "complete", _xlfn.IFS(E73="missing", "missing", F73="missing", "missing", E73="", "", F73="", ""))) -> missing | H73: =IF('6. Reactive PE response'!H9="", "missing", "complete") -> missing | I73: =IF('6. Reactive PE response'!M9="", "missing", "complete") -> missing | J73: =IF('6. Reactive PE response'!O9="", "missing", "complete") -> missing | K73: =IF('6. Reactive PE response'!P9="", "missing", "complete") -> missing
D74: Procurement plan | E74: =IF('6. Reactive PE response'!D10="", "missing", "complete") -> missing | F74: =IF('6. Reactive PE response'!E10="", "missing", "complete") -> missing | G74: =IF(AND(E74="missing", F74="missing"), "missing", IF(AND(E74<>"", F74<>""), "complete", _xlfn.IFS(E74="missing", "missing", F74="missing", "missing", E74="", "", F74="", ""))) -> missing | H74: =IF('6. Reactive PE response'!H10="", "missing", "complete") -> missing | I74: =IF('6. Reactive PE response'!M10="", "missing", "complete") -> missing | J74: =IF('6. Reactive PE response'!O10="", "missing", "complete") -> missing | K74: =IF('6. Reactive PE response'!P10="", "missing", "complete") -> missing
D75: Project approval decision | E75: =IF('6. Reactive PE response'!D10="", "missing", "complete") -> missing | F75: =IF('6. Reactive PE response'!E10="", "missing", "complete") -> missing | G75: =IF(AND(E75="missing", F75="missing"), "missing", IF(AND(E75<>"", F75<>""), "complete", _xlfn.IFS(E75="missing", "missing", F75="missing", "missing", E75="", "", F75="", ""))) -> missing | H75: =IF('6. Reactive PE response'!H11="", "missing", "complete") -> missing | I75: =IF('6. Reactive PE response'!M11="", "missing", "complete") -> missing | J75: =IF('6. Reactive PE response'!O11="", "missing", "complete") -> missing | K75: =IF('6. Reactive PE response'!P11="", "missing", "complete") -> missing | Q75: 8. Status of recommendations
B76: Completion (6) | D76: Implementation progress reports | E76: =IF('6. Reactive PE response'!D12="", "missing", "complete") -> missing | F76: =IF('6. Reactive PE response'!E12="", "missing", "complete") -> missing | G76: =IF(AND(E76="missing", F76="missing"), "missing", IF(AND(E76<>"", F76<>""), "complete", _xlfn.IFS(E76="missing", "missing", F76="missing", "missing", E76="", "", F76="", ""))) -> missing | H76: =IF('6. Reactive PE response'!H12="", "missing", "complete") -> missing | I76: =IF('6. Reactive PE response'!M12="", "missing", "complete") -> missing | J76: =IF('6. Reactive PE response'!O12="", "missing", "complete") -> missing | K76: =IF('6. Reactive PE response'!P12="", "missing", "complete") -> missing | M76: Degree of implementation | Q76: None | R76: Low | S76: Medium | T76: High
D77: Budget amendment decision | E77: =IF('6. Reactive PE response'!D13="", "missing", "complete") -> missing | F77: =IF('6. Reactive PE response'!E13="", "missing", "complete") -> missing | G77: =IF(AND(E77="missing", F77="missing"), "missing", IF(AND(E77<>"", F77<>""), "complete", _xlfn.IFS(E77="missing", "missing", F77="missing", "missing", E77="", "", F77="", ""))) -> missing | H77: =IF('6. Reactive PE response'!H13="", "missing", "complete") -> missing | I77: =IF('6. Reactive PE response'!M13="", "missing", "complete") -> missing | J77: =IF('6. Reactive PE response'!O13="", "missing", "complete") -> missing | K77: =IF('6. Reactive PE response'!P13="", "missing", "complete") -> missing | M77: Previous recommendations made at the level of this PROJECT | Q77: =IF(OR('8. Status of recommendations'!D17=0, '8. Status of recommendations'!D17=""), "missing", "complete") -> missing | R77: =IF(OR('8. Status of recommendations'!E17=0, '8. Status of recommendations'!E17=""), "missing", "complete") -> missing | S77: =IF(OR('8. Status of recommendations'!F17=0, '8. Status of recommendations'!F17=""), "missing", "complete") -> missing | T77: =IF(OR('8. Status of recommendations'!G17=0, '8. Status of recommendations'!G17=""), "missing", "complete") -> missing
D78: Project completion report | E78: =IF('6. Reactive PE response'!D14="", "missing", "complete") -> missing | F78: =IF('6. Reactive PE response'!E14="", "missing", "complete") -> missing | G78: =IF(AND(E78="missing", F78="missing"), "missing", IF(AND(E78<>"", F78<>""), "complete", _xlfn.IFS(E78="missing", "missing", F78="missing", "missing", E78="", "", F78="", ""))) -> missing | H78: =IF('6. Reactive PE response'!H14="", "missing", "complete") -> missing | I78: =IF('6. Reactive PE response'!M14="", "missing", "complete") -> missing | J78: =IF('6. Reactive PE response'!O14="", "missing", "complete") -> missing | K78: =IF('6. Reactive PE response'!P14="", "missing", "complete") -> missing | M78: Previous recommendations made at the level of this SECTOR | Q78: =IF(OR('8. Status of recommendations'!D35=0, '8. Status of recommendations'!D35=""), "missing", "complete") -> missing | R78: =IF(OR('8. Status of recommendations'!E35=0, '8. Status of recommendations'!E35=""), "missing", "complete") -> missing | S78: =IF(OR('8. Status of recommendations'!F35=0, '8. Status of recommendations'!F35=""), "missing", "complete") -> missing | T78: =IF(OR('8. Status of recommendations'!G35=0, '8. Status of recommendations'!G35=""), "missing", "complete") -> missing
D79: Project evaluation report | E79: =IF('6. Reactive PE response'!D15="", "missing", "complete") -> missing | F79: =IF('6. Reactive PE response'!E15="", "missing", "complete") -> missing | G79: =IF(AND(E79="missing", F79="missing"), "missing", IF(AND(E79<>"", F79<>""), "complete", _xlfn.IFS(E79="missing", "missing", F79="missing", "missing", E79="", "", F79="", ""))) -> missing | H79: =IF('6. Reactive PE response'!H15="", "missing", "complete") -> missing | I79: =IF('6. Reactive PE response'!M15="", "missing", "complete") -> missing | J79: =IF('6. Reactive PE response'!O15="", "missing", "complete") -> missing | K79: =IF('6. Reactive PE response'!P15="", "missing", "complete") -> missing
D80: Technical audit reports | E80: =IF('6. Reactive PE response'!D16="", "missing", "complete") -> missing | F80: =IF('6. Reactive PE response'!E16="", "missing", "complete") -> missing | G80: =IF(AND(E80="missing", F80="missing"), "missing", IF(AND(E80<>"", F80<>""), "complete", _xlfn.IFS(E80="missing", "missing", F80="missing", "missing", E80="", "", F80="", ""))) -> missing | H80: =IF('6. Reactive PE response'!H16="", "missing", "complete") -> missing | I80: =IF('6. Reactive PE response'!M16="", "missing", "complete") -> missing | J80: =IF('6. Reactive PE response'!O16="", "missing", "complete") -> missing | K80: =IF('6. Reactive PE response'!P16="", "missing", "complete") -> missing
D81: Financial audit reports | E81: =IF('6. Reactive PE response'!D17="", "missing", "complete") -> missing | F81: =IF('6. Reactive PE response'!E17="", "missing", "complete") -> missing | G81: =IF(AND(E81="missing", F81="missing"), "missing", IF(AND(E81<>"", F81<>""), "complete", _xlfn.IFS(E81="missing", "missing", F81="missing", "missing", E81="", "", F81="", ""))) -> missing | H81: =IF('6. Reactive PE response'!H17="", "missing", "complete") -> missing | I81: =IF('6. Reactive PE response'!M17="", "missing", "complete") -> missing | J81: =IF('6. Reactive PE response'!O17="", "missing", "complete") -> missing | K81: =IF('6. Reactive PE response'!P17="", "missing", "complete") -> missing
B82: Tender Management (5) | D82: Contract officials and roles | E82: =IF('6. Reactive PE response'!D26="", "missing", "complete") -> missing | F82: =IF('6. Reactive PE response'!E26="", "missing", "complete") -> missing | G82: =IF(AND(E82="missing", F82="missing"), "missing", IF(AND(E82<>"", F82<>""), "complete", _xlfn.IFS(E82="missing", "missing", F82="missing", "missing", E82="", "", F82="", ""))) -> missing | H82: =IF('6. Reactive PE response'!H26="", "missing", "complete") -> missing | I82: =IF('6. Reactive PE response'!M26="", "missing", "complete") -> missing | J82: =IF('6. Reactive PE response'!O26="", "missing", "complete") -> missing | K82: =IF('6. Reactive PE response'!P26="", "missing", "complete") -> missing | M82: 9. Post assurance summary
D83: Procurement method | E83: =IF('6. Reactive PE response'!D27="", "missing", "complete") -> missing | F83: =IF('6. Reactive PE response'!E27="", "missing", "complete") -> missing | G83: =IF(AND(E83="missing", F83="missing"), "missing", IF(AND(E83<>"", F83<>""), "complete", _xlfn.IFS(E83="missing", "missing", F83="missing", "missing", E83="", "", F83="", ""))) -> missing | H83: =IF('6. Reactive PE response'!H27="", "missing", "complete") -> missing | I83: =IF('6. Reactive PE response'!M27="", "missing", "complete") -> missing | J83: =IF('6. Reactive PE response'!O27="", "missing", "complete") -> missing | K83: =IF('6. Reactive PE response'!P27="", "missing", "complete") -> missing | M83: Project reference | N83: Contract reference and name | O83: Procuring Entity | P83: Sub-sector | Q83: No. of bidders | R83: Project status | S83: General scope | T83: Funding source | U83: Cost (At start) | V83: Cost (during assurance) | W83: Time (At start) | X83: Time (During) | Y83: Further details
D84: Tender documents | E84: =IF('6. Reactive PE response'!D28="", "missing", "complete") -> missing | F84: =IF('6. Reactive PE response'!E28="", "missing", "complete") -> missing | G84: =IF(AND(E84="missing", F84="missing"), "missing", IF(AND(E84<>"", F84<>""), "complete", _xlfn.IFS(E84="missing", "missing", F84="missing", "missing", E84="", "", F84="", ""))) -> missing | H84: =IF('6. Reactive PE response'!H28="", "missing", "complete") -> missing | I84: =IF('6. Reactive PE response'!M28="", "missing", "complete") -> missing | J84: =IF('6. Reactive PE response'!O28="", "missing", "complete") -> missing | K84: =IF('6. Reactive PE response'!P28="", "missing", "complete") -> missing | M84: =IF('9. Post assurance summary'!B6="", "missing", "complete") -> missing | N84: =IF('9. Post assurance summary'!C6="", "missing", "complete") -> missing | O84: =IF('9. Post assurance summary'!E6="", "missing", "complete") -> missing | P84: =IF('9. Post assurance summary'!G6="", "missing", "complete") -> missing | Q84: =IF('9. Post assurance summary'!H6="", "missing", "complete") -> missing | R84: =IF('9. Post assurance summary'!I6="", "missing", "complete") -> missing | S84: =IF('9. Post assurance summary'!J6="", "missing", "complete") -> missing | T84: =IF('9. Post assurance summary'!K6="", "missing", "complete") -> missing | U84: =IF('9. Post assurance summary'!L6="", "missing", "complete") -> missing | V84: =IF('9. Post assurance summary'!M6="", "missing", "complete") -> missing | W84: =IF('9. Post assurance summary'!N6="", "missing", "complete") -> missing | X84: =IF('9. Post assurance summary'!O6="", "missing", "complete") -> missing | Y84: =IF('9. Post assurance summary'!R6="", "missing", "complete") -> missing
D85: Tender evaluation results | E85: =IF('6. Reactive PE response'!D29="", "missing", "complete") -> missing | F85: =IF('6. Reactive PE response'!E29="", "missing", "complete") -> missing | G85: =IF(AND(E85="missing", F85="missing"), "missing", IF(AND(E85<>"", F85<>""), "complete", _xlfn.IFS(E85="missing", "missing", F85="missing", "missing", E85="", "", F85="", ""))) -> missing | H85: =IF('6. Reactive PE response'!H29="", "missing", "complete") -> missing | I85: =IF('6. Reactive PE response'!M29="", "missing", "complete") -> missing | J85: =IF('6. Reactive PE response'!O29="", "missing", "complete") -> missing | K85: =IF('6. Reactive PE response'!P29="", "missing", "complete") -> missing | M85: =IF('9. Post assurance summary'!B7="", "missing", "complete") -> missing | N85: =IF('9. Post assurance summary'!C7="", "missing", "complete") -> missing | O85: =IF('9. Post assurance summary'!E7="", "missing", "complete") -> missing | P85: =IF('9. Post assurance summary'!G7="", "missing", "complete") -> missing | Q85: =IF('9. Post assurance summary'!H7="", "missing", "complete") -> missing | R85: =IF('9. Post assurance summary'!I7="", "missing", "complete") -> missing | S85: =IF('9. Post assurance summary'!J7="", "missing", "complete") -> missing | T85: =IF('9. Post assurance summary'!K7="", "missing", "complete") -> missing | U85: =IF('9. Post assurance summary'!L7="", "missing", "complete") -> missing | V85: =IF('9. Post assurance summary'!M7="", "missing", "complete") -> missing | W85: =IF('9. Post assurance summary'!N7="", "missing", "complete") -> missing | X85: =IF('9. Post assurance summary'!O7="", "missing", "complete") -> missing | Y85: =IF('9. Post assurance summary'!R7="", "missing", "complete") -> missing
D86: Project design report | E86: =IF('6. Reactive PE response'!D30="", "missing", "complete") -> missing | F86: =IF('6. Reactive PE response'!E30="", "missing", "complete") -> missing | G86: =IF(AND(E86="missing", F86="missing"), "missing", IF(AND(E86<>"", F86<>""), "complete", _xlfn.IFS(E86="missing", "missing", F86="missing", "missing", E86="", "", F86="", ""))) -> missing | H86: =IF('6. Reactive PE response'!H30="", "missing", "complete") -> missing | I86: =IF('6. Reactive PE response'!M30="", "missing", "complete") -> missing | J86: =IF('6. Reactive PE response'!O30="", "missing", "complete") -> missing | K86: =IF('6. Reactive PE response'!P30="", "missing", "complete") -> missing | M86: =IF('9. Post assurance summary'!B8="", "missing", "complete") -> missing | N86: =IF('9. Post assurance summary'!C8="", "missing", "complete") -> missing | O86: =IF('9. Post assurance summary'!E8="", "missing", "complete") -> missing | P86: =IF('9. Post assurance summary'!G8="", "missing", "complete") -> missing | Q86: =IF('9. Post assurance summary'!H8="", "missing", "complete") -> missing | R86: =IF('9. Post assurance summary'!I8="", "missing", "complete") -> missing | S86: =IF('9. Post assurance summary'!J8="", "missing", "complete") -> missing | T86: =IF('9. Post assurance summary'!K8="", "missing", "complete") -> missing | U86: =IF('9. Post assurance summary'!L8="", "missing", "complete") -> missing | V86: =IF('9. Post assurance summary'!M8="", "missing", "complete") -> missing | W86: =IF('9. Post assurance summary'!N8="", "missing", "complete") -> missing | X86: =IF('9. Post assurance summary'!O8="", "missing", "complete") -> missing | Y86: =IF('9. Post assurance summary'!R8="", "missing", "complete") -> missing
B87: Contract (3) | D87: Contract agreement and condictions | E87: =IF('6. Reactive PE response'!D31="", "missing", "complete") -> missing | F87: =IF('6. Reactive PE response'!E31="", "missing", "complete") -> missing | G87: =IF(AND(E87="missing", F87="missing"), "missing", IF(AND(E87<>"", F87<>""), "complete", _xlfn.IFS(E87="missing", "missing", F87="missing", "missing", E87="", "", F87="", ""))) -> missing | H87: =IF('6. Reactive PE response'!H31="", "missing", "complete") -> missing | I87: =IF('6. Reactive PE response'!M31="", "missing", "complete") -> missing | J87: =IF('6. Reactive PE response'!O31="", "missing", "complete") -> missing | K87: =IF('6. Reactive PE response'!P31="", "missing", "complete") -> missing
D88: Registration and ownership of firms | E88: =IF('6. Reactive PE response'!D32="", "missing", "complete") -> missing | F88: =IF('6. Reactive PE response'!E32="", "missing", "complete") -> missing | G88: =IF(AND(E88="missing", F88="missing"), "missing", IF(AND(E88<>"", F88<>""), "complete", _xlfn.IFS(E88="missing", "missing", F88="missing", "missing", E88="", "", F88="", ""))) -> missing | H88: =IF('6. Reactive PE response'!H32="", "missing", "complete") -> missing | I88: =IF('6. Reactive PE response'!M32="", "missing", "complete") -> missing | J88: =IF('6. Reactive PE response'!O32="", "missing", "complete") -> missing | K88: =IF('6. Reactive PE response'!P32="", "missing", "complete") -> missing
D89: Specifications and drawings | E89: =IF('6. Reactive PE response'!D33="", "missing", "complete") -> missing | F89: =IF('6. Reactive PE response'!E33="", "missing", "complete") -> missing | G89: =IF(AND(E89="missing", F89="missing"), "missing", IF(AND(E89<>"", F89<>""), "complete", _xlfn.IFS(E89="missing", "missing", F89="missing", "missing", E89="", "", F89="", ""))) -> missing | H89: =IF('6. Reactive PE response'!H33="", "missing", "complete") -> missing | I89: =IF('6. Reactive PE response'!M33="", "missing", "complete") -> missing | J89: =IF('6. Reactive PE response'!O33="", "missing", "complete") -> missing | K89: =IF('6. Reactive PE response'!P33="", "missing", "complete") -> missing | M89: 10. Tender management
B90: Implementation (5) | D90: List of variations, changes, amendments | E90: =IF('6. Reactive PE response'!D35="", "missing", "complete") -> missing | F90: =IF('6. Reactive PE response'!E35="", "missing", "complete") -> missing | G90: =IF(AND(E90="missing", F90="missing"), "missing", IF(AND(E90<>"", F90<>""), "complete", _xlfn.IFS(E90="missing", "missing", F90="missing", "missing", E90="", "", F90="", ""))) -> missing | H90: =IF('6. Reactive PE response'!H35="", "missing", "complete") -> missing | I90: =IF('6. Reactive PE response'!M35="", "missing", "complete") -> missing | J90: =IF('6. Reactive PE response'!O35="", "missing", "complete") -> missing | K90: =IF('6. Reactive PE response'!P35="", "missing", "complete") -> missing | M90: Project reference | N90: Contract reference and name | O90: Procuring Entity | P90: Sub-sector | Q90: Quantity | R90: Unit | S90: Contract Value | T90: Project Scope | U90: Award Date | V90: Completion Date | W90: IPC Date | X90: Payment Date | Y90: Number of Variations | Z90: Value of Variations
D91: List of escalation approvals | E91: =IF('6. Reactive PE response'!D36="", "missing", "complete") -> missing | F91: =IF('6. Reactive PE response'!E36="", "missing", "complete") -> missing | G91: =IF(AND(E91="missing", F91="missing"), "missing", IF(AND(E91<>"", F91<>""), "complete", _xlfn.IFS(E91="missing", "missing", F91="missing", "missing", E91="", "", F91="", ""))) -> missing | H91: =IF('6. Reactive PE response'!H36="", "missing", "complete") -> missing | I91: =IF('6. Reactive PE response'!M36="", "missing", "complete") -> missing | J91: =IF('6. Reactive PE response'!O36="", "missing", "complete") -> missing | K91: =IF('6. Reactive PE response'!P36="", "missing", "complete") -> missing | M91: =IF('10. Tender management'!B6="", "missing", "complete") -> missing | N91: =IF('10. Tender management'!C6="", "missing", "complete") -> missing | O91: =IF('10. Tender management'!E6="", "missing", "complete") -> missing | P91: =IF('10. Tender management'!G6="", "missing", "complete") -> missing | Q91: =IF('10. Tender management'!I6="", "missing", "complete") -> missing | R91: =IF('10. Tender management'!J6="", "missing", "complete") -> missing | S91: =IF('10. Tender management'!K6="", "missing", "complete") -> missing | T91: =IF('10. Tender management'!M6="", "missing", "complete") -> missing | U91: =IF('10. Tender management'!N6="", "missing", "complete") -> missing | V91: =IF('10. Tender management'!O6="", "missing", "complete") -> missing | W91: =IF('10. Tender management'!#REF!="", "missing", "complete") ->  | X91: =IF('10. Tender management'!#REF!="", "missing", "complete") ->  | Y91: =IF('10. Tender management'!#REF!="", "missing", "complete") ->  | Z91: =IF('10. Tender management'!#REF!="", "missing", "complete") -> 
D92: Quality assurance reports | E92: =IF('6. Reactive PE response'!D37="", "missing", "complete") -> missing | F92: =IF('6. Reactive PE response'!E37="", "missing", "complete") -> missing | G92: =IF(AND(E92="missing", F92="missing"), "missing", IF(AND(E92<>"", F92<>""), "complete", _xlfn.IFS(E92="missing", "missing", F92="missing", "missing", E92="", "", F92="", ""))) -> missing | H92: =IF('6. Reactive PE response'!H37="", "missing", "complete") -> missing | I92: =IF('6. Reactive PE response'!M37="", "missing", "complete") -> missing | J92: =IF('6. Reactive PE response'!O37="", "missing", "complete") -> missing | K92: =IF('6. Reactive PE response'!P37="", "missing", "complete") -> missing | M92: =IF('10. Tender management'!B7="", "missing", "complete") -> missing | N92: =IF('10. Tender management'!C7="", "missing", "complete") -> missing | O92: =IF('10. Tender management'!E7="", "missing", "complete") -> missing | P92: =IF('10. Tender management'!G7="", "missing", "complete") -> missing | Q92: =IF('10. Tender management'!I7="", "missing", "complete") -> missing | R92: =IF('10. Tender management'!J7="", "missing", "complete") -> missing | S92: =IF('10. Tender management'!K7="", "missing", "complete") -> missing | T92: =IF('10. Tender management'!M7="", "missing", "complete") -> missing | U92: =IF('10. Tender management'!N7="", "missing", "complete") -> missing | V92: =IF('10. Tender management'!O7="", "missing", "complete") -> missing | W92: =IF('10. Tender management'!#REF!="", "missing", "complete") ->  | X92: =IF('10. Tender management'!#REF!="", "missing", "complete") ->  | Y92: =IF('10. Tender management'!#REF!="", "missing", "complete") ->  | Z92: =IF('10. Tender management'!#REF!="", "missing", "complete") -> 
D93: Disbursement records or payment certificates | E93: =IF('6. Reactive PE response'!D38="", "missing", "complete") -> missing | F93: =IF('6. Reactive PE response'!E38="", "missing", "complete") -> missing | G93: =IF(AND(E93="missing", F93="missing"), "missing", IF(AND(E93<>"", F93<>""), "complete", _xlfn.IFS(E93="missing", "missing", F93="missing", "missing", E93="", "", F93="", ""))) -> missing | H93: =IF('6. Reactive PE response'!H38="", "missing", "complete") -> missing | I93: =IF('6. Reactive PE response'!M38="", "missing", "complete") -> missing | J93: =IF('6. Reactive PE response'!O38="", "missing", "complete") -> missing | K93: =IF('6. Reactive PE response'!P38="", "missing", "complete") -> missing | M93: =IF('10. Tender management'!B8="", "missing", "complete") -> missing | N93: =IF('10. Tender management'!C8="", "missing", "complete") -> missing | O93: =IF('10. Tender management'!E8="", "missing", "complete") -> missing | P93: =IF('10. Tender management'!G8="", "missing", "complete") -> missing | Q93: =IF('10. Tender management'!I8="", "missing", "complete") -> missing | R93: =IF('10. Tender management'!J8="", "missing", "complete") -> missing | S93: =IF('10. Tender management'!K8="", "missing", "complete") -> missing | T93: =IF('10. Tender management'!M8="", "missing", "complete") -> missing | U93: =IF('10. Tender management'!N8="", "missing", "complete") -> missing | V93: =IF('10. Tender management'!O8="", "missing", "complete") -> missing | W93: =IF('10. Tender management'!#REF!="", "missing", "complete") ->  | X93: =IF('10. Tender management'!#REF!="", "missing", "complete") ->  | Y93: =IF('10. Tender management'!#REF!="", "missing", "complete") ->  | Z93: =IF('10. Tender management'!#REF!="", "missing", "complete") -> 
D94: Contract amendments | E94: =IF('6. Reactive PE response'!D39="", "missing", "complete") -> missing | F94: =IF('6. Reactive PE response'!E39="", "missing", "complete") -> missing | G94: =IF(AND(E94="missing", F94="missing"), "missing", IF(AND(E94<>"", F94<>""), "complete", _xlfn.IFS(E94="missing", "missing", F94="missing", "missing", E94="", "", F94="", ""))) -> missing | H94: =IF('6. Reactive PE response'!H39="", "missing", "complete") -> missing | I94: =IF('6. Reactive PE response'!M39="", "missing", "complete") -> missing | J94: =IF('6. Reactive PE response'!O39="", "missing", "complete") -> missing | K94: =IF('6. Reactive PE response'!P39="", "missing", "complete") -> missing | M94: =IF('10. Tender management'!B9="", "missing", "complete") -> missing | N94: =IF('10. Tender management'!C9="", "missing", "complete") -> missing | O94: =IF('10. Tender management'!E9="", "missing", "complete") -> missing | P94: =IF('10. Tender management'!G9="", "missing", "complete") -> missing | Q94: =IF('10. Tender management'!I9="", "missing", "complete") -> missing | R94: =IF('10. Tender management'!J9="", "missing", "complete") -> missing | S94: =IF('10. Tender management'!K9="", "missing", "complete") -> missing | T94: =IF('10. Tender management'!M9="", "missing", "complete") -> missing | U94: =IF('10. Tender management'!N9="", "missing", "complete") -> missing | V94: =IF('10. Tender management'!O9="", "missing", "complete") -> missing | W94: =IF('10. Tender management'!#REF!="", "missing", "complete") ->  | X94: =IF('10. Tender management'!#REF!="", "missing", "complete") ->  | Y94: =IF('10. Tender management'!#REF!="", "missing", "complete") ->  | Z94: =IF('10. Tender management'!#REF!="", "missing", "complete") -> 
A97: SHEET NAME | E97: 11. Economic Sustainability | N97: 12. Social Sustainability
B98: Project Phase | D98: Project data item | E98: Data disclosed | F98: Location of data | G98: Ease of Access | H98: OC4IDS | J98: Project Phase | L98: Project data item | N98: Data disclosed | O98: Location of data | P98: Ease of Access | Q98: OC4IDS
B99: Identification (1) | D99: Procurement Strategy | E99: =IF('11. Economic Sustainability'!D4="", "missing", "complete") -> missing | F99: =IF('11. Economic Sustainability'!E4="", "missing", "complete") -> missing | G99: =IF('11. Economic Sustainability'!F4="", "missing", "complete") -> missing | H99: =IF('11. Economic Sustainability'!H4="", "missing", "complete") -> missing | J99: Project Identification (5) | L99: Number of beneficiaries | N99: =IF('12. Social Sustainability'!D4="", "missing", "complete") -> missing | O99: =IF('12. Social Sustainability'!E4="", "missing", "complete") -> missing | P99: =IF('12. Social Sustainability'!F4="", "missing", "complete") -> missing | Q99: =IF('12. Social Sustainability'!H4="", "missing", "complete") -> missing
B100: Preparation (8) | D100: Life-cycle cost | E100: =IF('11. Economic Sustainability'!D5="", "missing", "complete") -> missing | F100: =IF('11. Economic Sustainability'!E5="", "missing", "complete") -> missing | G100: =IF('11. Economic Sustainability'!F5="", "missing", "complete") -> missing | H100: =IF('11. Economic Sustainability'!H5="", "missing", "complete") -> missing | L100: Inclusive design | N100: =IF('12. Social Sustainability'!D5="", "missing", "complete") -> missing | O100: =IF('12. Social Sustainability'!E5="", "missing", "complete") -> missing | P100: =IF('12. Social Sustainability'!F5="", "missing", "complete") -> missing | Q100: =IF('12. Social Sustainability'!H5="", "missing", "complete") -> missing
D101: Life-cycle cost calculation methodology | E101: =IF('11. Economic Sustainability'!D6="", "missing", "complete") -> missing | F101: =IF('11. Economic Sustainability'!E6="", "missing", "complete") -> missing | G101: =IF('11. Economic Sustainability'!F6="", "missing", "complete") -> missing | H101: =IF('11. Economic Sustainability'!H6="", "missing", "complete") -> missing | L101: Indigenous land | N101: =IF('12. Social Sustainability'!D6="", "missing", "complete") -> missing | O101: =IF('12. Social Sustainability'!E6="", "missing", "complete") -> missing | P101: =IF('12. Social Sustainability'!F6="", "missing", "complete") -> missing | Q101: =IF('12. Social Sustainability'!H6="", "missing", "complete") -> missing
D102: Funding source for preparation | E102: =IF('11. Economic Sustainability'!D7="", "missing", "complete") -> missing | F102: =IF('11. Economic Sustainability'!E7="", "missing", "complete") -> missing | G102: =IF('11. Economic Sustainability'!F7="", "missing", "complete") -> missing | H102: =IF('11. Economic Sustainability'!H7="", "missing", "complete") -> missing | L102: Public consultation meetings | N102: =IF('12. Social Sustainability'!D7="", "missing", "complete") -> missing | O102: =IF('12. Social Sustainability'!E7="", "missing", "complete") -> missing | P102: =IF('12. Social Sustainability'!F7="", "missing", "complete") -> missing | Q102: =IF('12. Social Sustainability'!H7="", "missing", "complete") -> missing
D103: Budget for preparation | E103: =IF('11. Economic Sustainability'!D8="", "missing", "complete") -> missing | F103: =IF('11. Economic Sustainability'!E8="", "missing", "complete") -> missing | G103: =IF('11. Economic Sustainability'!F8="", "missing", "complete") -> missing | H103: =IF('11. Economic Sustainability'!H8="", "missing", "complete") -> missing | L103: Land compensation budget | N103: =IF('12. Social Sustainability'!D8="", "missing", "complete") -> missing | O103: =IF('12. Social Sustainability'!E8="", "missing", "complete") -> missing | P103: =IF('12. Social Sustainability'!F8="", "missing", "complete") -> missing | Q103: =IF('12. Social Sustainability'!H8="", "missing", "complete") -> missing
D104: Cost-benefit analysis | E104: =IF('11. Economic Sustainability'!D9="", "missing", "complete") -> missing | F104: =IF('11. Economic Sustainability'!E9="", "missing", "complete") -> missing | G104: =IF('11. Economic Sustainability'!F9="", "missing", "complete") -> missing | H104: =IF('11. Economic Sustainability'!H9="", "missing", "complete") -> missing | J104: Tender Management (2) | L104: Labor budget | N104: =IF('12. Social Sustainability'!D9="", "missing", "complete") -> missing | O104: =IF('12. Social Sustainability'!E9="", "missing", "complete") -> missing | P104: =IF('12. Social Sustainability'!F9="", "missing", "complete") -> missing | Q104: =IF('12. Social Sustainability'!H9="", "missing", "complete") -> missing
D105: Value for money | E105: =IF('11. Economic Sustainability'!D10="", "missing", "complete") -> missing | F105: =IF('11. Economic Sustainability'!E10="", "missing", "complete") -> missing | G105: =IF('11. Economic Sustainability'!F10="", "missing", "complete") -> missing | H105: =IF('11. Economic Sustainability'!H10="", "missing", "complete") -> missing | L105: Health and safety certifications | N105: =IF('12. Social Sustainability'!D10="", "missing", "complete") -> missing | O105: =IF('12. Social Sustainability'!E10="", "missing", "complete") -> missing | P105: =IF('12. Social Sustainability'!F10="", "missing", "complete") -> missing | Q105: =IF('12. Social Sustainability'!H10="", "missing", "complete") -> missing
D106: Asset lifetime | E106: =IF('11. Economic Sustainability'!D11="", "missing", "complete") -> missing | F106: =IF('11. Economic Sustainability'!E11="", "missing", "complete") -> missing | G106: =IF('11. Economic Sustainability'!F11="", "missing", "complete") -> missing | H106: =IF('11. Economic Sustainability'!H11="", "missing", "complete") -> missing | J106: Implementation (7) | L106: Inclusive implementation | N106: =IF('12. Social Sustainability'!D11="", "missing", "complete") -> missing | O106: =IF('12. Social Sustainability'!E11="", "missing", "complete") -> missing | P106: =IF('12. Social Sustainability'!F11="", "missing", "complete") -> missing | Q106: =IF('12. Social Sustainability'!H11="", "missing", "complete") -> missing
D107: Budget projections | E107: =IF('11. Economic Sustainability'!D12="", "missing", "complete") -> missing | F107: =IF('11. Economic Sustainability'!E12="", "missing", "complete") -> missing | G107: =IF('11. Economic Sustainability'!F12="", "missing", "complete") -> missing | H107: =IF('11. Economic Sustainability'!H12="", "missing", "complete") -> missing | L107: Public consultation meetings | N107: =IF('12. Social Sustainability'!D12="", "missing", "complete") -> missing | O107: =IF('12. Social Sustainability'!E12="", "missing", "complete") -> missing | P107: =IF('12. Social Sustainability'!F12="", "missing", "complete") -> missing | Q107: =IF('12. Social Sustainability'!H12="", "missing", "complete") -> missing
B108: Implementation (4) | D108: Funding source for implementation | E108: =IF('11. Economic Sustainability'!D13="", "missing", "complete") -> missing | F108: =IF('11. Economic Sustainability'!E13="", "missing", "complete") -> missing | G108: =IF('11. Economic Sustainability'!F13="", "missing", "complete") -> missing | H108: =IF('11. Economic Sustainability'!H13="", "missing", "complete") -> missing | L108: Labor obligations | N108: =IF('12. Social Sustainability'!D13="", "missing", "complete") -> missing | O108: =IF('12. Social Sustainability'!E13="", "missing", "complete") -> missing | P108: =IF('12. Social Sustainability'!F13="", "missing", "complete") -> missing | Q108: =IF('12. Social Sustainability'!H13="", "missing", "complete") -> missing
D109: Budget for implementation | E109: =IF('11. Economic Sustainability'!D14="", "missing", "complete") -> missing | F109: =IF('11. Economic Sustainability'!E14="", "missing", "complete") -> missing | G109: =IF('11. Economic Sustainability'!F14="", "missing", "complete") -> missing | H109: =IF('11. Economic Sustainability'!H14="", "missing", "complete") -> missing | L109: Workers’ accidents | N109: =IF('12. Social Sustainability'!D14="", "missing", "complete") -> missing | O109: =IF('12. Social Sustainability'!E14="", "missing", "complete") -> missing | P109: =IF('12. Social Sustainability'!F14="", "missing", "complete") -> missing | Q109: =IF('12. Social Sustainability'!H14="", "missing", "complete") -> missing
D110: Budget shortfall | E110: =IF('11. Economic Sustainability'!D15="", "missing", "complete") -> missing | F110: =IF('11. Economic Sustainability'!E15="", "missing", "complete") -> missing | G110: =IF('11. Economic Sustainability'!F15="", "missing", "complete") -> missing | H110: =IF('11. Economic Sustainability'!H15="", "missing", "complete") -> missing | L110: Construction materials testing | N110: =IF('12. Social Sustainability'!D15="", "missing", "complete") -> missing | O110: =IF('12. Social Sustainability'!E15="", "missing", "complete") -> missing | P110: =IF('12. Social Sustainability'!F15="", "missing", "complete") -> missing | Q110: =IF('12. Social Sustainability'!H15="", "missing", "complete") -> missing
B111: Operation & Maintenance (3) | D111: Funding source for maintenance | E111: =IF('11. Economic Sustainability'!D16="", "missing", "complete") -> missing | F111: =IF('11. Economic Sustainability'!E16="", "missing", "complete") -> missing | G111: =IF('11. Economic Sustainability'!F16="", "missing", "complete") -> missing | H111: =IF('11. Economic Sustainability'!H16="", "missing", "complete") -> missing | L111: Building inspections | N111: =IF('12. Social Sustainability'!D16="", "missing", "complete") -> missing | O111: =IF('12. Social Sustainability'!E16="", "missing", "complete") -> missing | P111: =IF('12. Social Sustainability'!F16="", "missing", "complete") -> missing | Q111: =IF('12. Social Sustainability'!H16="", "missing", "complete") -> missing
D112: Budget for maintenance | E112: =IF('11. Economic Sustainability'!D17="", "missing", "complete") -> missing | F112: =IF('11. Economic Sustainability'!E17="", "missing", "complete") -> missing | G112: =IF('11. Economic Sustainability'!F17="", "missing", "complete") -> missing | H112: =IF('11. Economic Sustainability'!H17="", "missing", "complete") -> missing | L112: Jobs generated | N112: =IF('12. Social Sustainability'!D17="", "missing", "complete") -> missing | O112: =IF('12. Social Sustainability'!E17="", "missing", "complete") -> missing | P112: =IF('12. Social Sustainability'!F17="", "missing", "complete") -> missing | Q112: =IF('12. Social Sustainability'!H17="", "missing", "complete") -> missing
D113: Maintenance plan or program | E113: =IF('11. Economic Sustainability'!D18="", "missing", "complete") -> missing | F113: =IF('11. Economic Sustainability'!E18="", "missing", "complete") -> missing | G113: =IF('11. Economic Sustainability'!F18="", "missing", "complete") -> missing | H113: =IF('11. Economic Sustainability'!H18="", "missing", "complete") -> missing | J113: Operation & Maintenance (1) | L113: Jobs generated | N113: =IF('12. Social Sustainability'!D18="", "missing", "complete") -> missing | O113: =IF('12. Social Sustainability'!E18="", "missing", "complete") -> missing | P113: =IF('12. Social Sustainability'!F18="", "missing", "complete") -> missing | Q113: =IF('12. Social Sustainability'!H18="", "missing", "complete") -> missing
A116: SHEET NAME | E116: 13. Institution Sustainability | M116: 14. Environment Sustainability
B117: Project Phase | D117: Project data item | E117: Data disclosed | F117: Location of data | G117: Ease of Access | H117: OC4IDS | J117: Project Phase | L117: Project data item | M117: Data disclosed | N117: Location of data | O117: Ease of Access | P117: OC4IDS
B118: Project Identification (5) | D118: Policy coherence | E118: =IF('13. Institution Sustainability'!D4="", "missing", "complete") -> missing | F118: =IF('13. Institution Sustainability'!E4="", "missing", "complete") -> missing | G118: =IF('13. Institution Sustainability'!F4="", "missing", "complete") -> missing | H118: =IF('13. Institution Sustainability'!H4="", "missing", "complete") -> missing | J118: Preparation (8) | L118: Environmental impact category | M118: =IF('14. Environment Sustainability'!D4="", "missing", "complete") -> missing | N118: =IF('14. Environment Sustainability'!E4="", "missing", "complete") -> missing | O118: =IF('14. Environment Sustainability'!F4="", "missing", "complete") -> missing | P118: =IF('14. Environment Sustainability'!H4="", "missing", "complete") -> missing
D119: Freedom-of-information requests | E119: =IF('13. Institution Sustainability'!D5="", "missing", "complete") -> missing | F119: =IF('13. Institution Sustainability'!E5="", "missing", "complete") -> missing | G119: =IF('13. Institution Sustainability'!F5="", "missing", "complete") -> missing | H119: =IF('13. Institution Sustainability'!H5="", "missing", "complete") -> missing | L119: Environmental measures | M119: =IF('14. Environment Sustainability'!D5="", "missing", "complete") -> missing | N119: =IF('14. Environment Sustainability'!E5="", "missing", "complete") -> missing | O119: =IF('14. Environment Sustainability'!F5="", "missing", "complete") -> missing | P119: =IF('14. Environment Sustainability'!H5="", "missing", "complete") -> missing
D120: Answers to freedom-of-information requests | E120: =IF('13. Institution Sustainability'!D6="", "missing", "complete") -> missing | F120: =IF('13. Institution Sustainability'!E6="", "missing", "complete") -> missing | G120: =IF('13. Institution Sustainability'!F6="", "missing", "complete") -> missing | H120: =IF('13. Institution Sustainability'!H6="", "missing", "complete") -> missing | L120: Environmental licenses and exemptions | M120: =IF('14. Environment Sustainability'!D6="", "missing", "complete") -> missing | N120: =IF('14. Environment Sustainability'!E6="", "missing", "complete") -> missing | O120: =IF('14. Environment Sustainability'!F6="", "missing", "complete") -> missing | P120: =IF('14. Environment Sustainability'!H6="", "missing", "complete") -> missing
D121: Lobbying transparency | E121: =IF('13. Institution Sustainability'!D7="", "missing", "complete") -> missing | F121: =IF('13. Institution Sustainability'!E7="", "missing", "complete") -> missing | G121: =IF('13. Institution Sustainability'!F7="", "missing", "complete") -> missing | H121: =IF('13. Institution Sustainability'!H7="", "missing", "complete") -> missing | L121: Protected area | M121: =IF('14. Environment Sustainability'!D7="", "missing", "complete") -> missing | N121: =IF('14. Environment Sustainability'!E7="", "missing", "complete") -> missing | O121: =IF('14. Environment Sustainability'!F7="", "missing", "complete") -> missing | P121: =IF('14. Environment Sustainability'!H7="", "missing", "complete") -> missing
D122: Sustainable subsectors | E122: =IF('13. Institution Sustainability'!D8="", "missing", "complete") -> missing | F122: =IF('13. Institution Sustainability'!E8="", "missing", "complete") -> missing | G122: =IF('13. Institution Sustainability'!F8="", "missing", "complete") -> missing | H122: =IF('13. Institution Sustainability'!H8="", "missing", "complete") -> missing | L122: Conservation measures | M122: =IF('14. Environment Sustainability'!D8="", "missing", "complete") -> missing | N122: =IF('14. Environment Sustainability'!E8="", "missing", "complete") -> missing | O122: =IF('14. Environment Sustainability'!F8="", "missing", "complete") -> missing | P122: =IF('14. Environment Sustainability'!H8="", "missing", "complete") -> missing
B123: Preparation (3) | D123: Freedom-of-information requests | E123: =IF('13. Institution Sustainability'!D9="", "missing", "complete") -> missing | F123: =IF('13. Institution Sustainability'!E9="", "missing", "complete") -> missing | G123: =IF('13. Institution Sustainability'!F9="", "missing", "complete") -> missing | H123: =IF('13. Institution Sustainability'!H9="", "missing", "complete") -> missing | L123: Climate and disaster risk assessment | M123: =IF('14. Environment Sustainability'!D9="", "missing", "complete") -> missing | N123: =IF('14. Environment Sustainability'!E9="", "missing", "complete") -> missing | O123: =IF('14. Environment Sustainability'!F9="", "missing", "complete") -> missing | P123: =IF('14. Environment Sustainability'!H9="", "missing", "complete") -> missing
D124: Answers to freedom-of-information requests | E124: =IF('13. Institution Sustainability'!D10="", "missing", "complete") -> missing | F124: =IF('13. Institution Sustainability'!E10="", "missing", "complete") -> missing | G124: =IF('13. Institution Sustainability'!F10="", "missing", "complete") -> missing | H124: =IF('13. Institution Sustainability'!H10="", "missing", "complete") -> missing | L124: Climate measures | M124: =IF('14. Environment Sustainability'!D10="", "missing", "complete") -> missing | N124: =IF('14. Environment Sustainability'!E10="", "missing", "complete") -> missing | O124: =IF('14. Environment Sustainability'!F10="", "missing", "complete") -> missing | P124: =IF('14. Environment Sustainability'!H10="", "missing", "complete") -> missing
D125: Risk management plans | E125: =IF('13. Institution Sustainability'!D11="", "missing", "complete") -> missing | F125: =IF('13. Institution Sustainability'!E11="", "missing", "complete") -> missing | G125: =IF('13. Institution Sustainability'!F11="", "missing", "complete") -> missing | H125: =IF('13. Institution Sustainability'!H11="", "missing", "complete") -> missing | L125: Forecast of greenhouse gas | M125: =IF('14. Environment Sustainability'!D11="", "missing", "complete") -> missing | N125: =IF('14. Environment Sustainability'!E11="", "missing", "complete") -> missing | O125: =IF('14. Environment Sustainability'!F11="", "missing", "complete") -> missing | P125: =IF('14. Environment Sustainability'!H11="", "missing", "complete") -> missing
B126: Tender Management (5) | D126: Freedom-of-information requests | E126: =IF('13. Institution Sustainability'!D12="", "missing", "complete") -> missing | F126: =IF('13. Institution Sustainability'!E12="", "missing", "complete") -> missing | G126: =IF('13. Institution Sustainability'!F12="", "missing", "complete") -> missing | H126: =IF('13. Institution Sustainability'!H12="", "missing", "complete") -> missing | J126: Tender Management (1) | L126: Environmental certifications | M126: =IF('14. Environment Sustainability'!D12="", "missing", "complete") -> missing | N126: =IF('14. Environment Sustainability'!E12="", "missing", "complete") -> missing | O126: =IF('14. Environment Sustainability'!F12="", "missing", "complete") -> missing | P126: =IF('14. Environment Sustainability'!H12="", "missing", "complete") -> missing
D127: Answers to freedom-of-information requests | E127: =IF('13. Institution Sustainability'!D13="", "missing", "complete") -> missing | F127: =IF('13. Institution Sustainability'!E13="", "missing", "complete") -> missing | G127: =IF('13. Institution Sustainability'!F13="", "missing", "complete") -> missing | H127: =IF('13. Institution Sustainability'!H13="", "missing", "complete") -> missing | J127: Implementation (3) | L127: Environmental measures | M127: =IF('14. Environment Sustainability'!D13="", "missing", "complete") -> missing | N127: =IF('14. Environment Sustainability'!E13="", "missing", "complete") -> missing | O127: =IF('14. Environment Sustainability'!F13="", "missing", "complete") -> missing | P127: =IF('14. Environment Sustainability'!H13="", "missing", "complete") -> missing
D128: Beneficial ownership | E128: =IF('13. Institution Sustainability'!D14="", "missing", "complete") -> missing | F128: =IF('13. Institution Sustainability'!E14="", "missing", "complete") -> missing | G128: =IF('13. Institution Sustainability'!F14="", "missing", "complete") -> missing | H128: =IF('13. Institution Sustainability'!H14="", "missing", "complete") -> missing | L128: Environmental licenses and exemptions | M128: =IF('14. Environment Sustainability'!D14="", "missing", "complete") -> missing | N128: =IF('14. Environment Sustainability'!E14="", "missing", "complete") -> missing | O128: =IF('14. Environment Sustainability'!F14="", "missing", "complete") -> missing | P128: =IF('14. Environment Sustainability'!H14="", "missing", "complete") -> missing
D129: Sustainability criteria | E129: =IF('13. Institution Sustainability'!D15="", "missing", "complete") -> missing | F129: =IF('13. Institution Sustainability'!E15="", "missing", "complete") -> missing | G129: =IF('13. Institution Sustainability'!F15="", "missing", "complete") -> missing | H129: =IF('13. Institution Sustainability'!H15="", "missing", "complete") -> missing | L129: Conservation measures | M129: =IF('14. Environment Sustainability'!D15="", "missing", "complete") -> missing | N129: =IF('14. Environment Sustainability'!E15="", "missing", "complete") -> missing | O129: =IF('14. Environment Sustainability'!F15="", "missing", "complete") -> missing | P129: =IF('14. Environment Sustainability'!H15="", "missing", "complete") -> missing
D130: Anti-corruption certifications | E130: =IF('13. Institution Sustainability'!D16="", "missing", "complete") -> missing | F130: =IF('13. Institution Sustainability'!E16="", "missing", "complete") -> missing | G130: =IF('13. Institution Sustainability'!F16="", "missing", "complete") -> missing | H130: =IF('13. Institution Sustainability'!H16="", "missing", "complete") -> missing | J130: Operation & Maintenance (2) | L130: Environmental licenses and exemptions | M130: =IF('14. Environment Sustainability'!D16="", "missing", "complete") -> missing | N130: =IF('14. Environment Sustainability'!E16="", "missing", "complete") -> missing | O130: =IF('14. Environment Sustainability'!F16="", "missing", "complete") -> missing | P130: =IF('14. Environment Sustainability'!H16="", "missing", "complete") -> missing
B131: Implementation (4) | D131: Freedom-of-information requests | E131: =IF('13. Institution Sustainability'!D17="", "missing", "complete") -> missing | F131: =IF('13. Institution Sustainability'!E17="", "missing", "complete") -> missing | G131: =IF('13. Institution Sustainability'!F17="", "missing", "complete") -> missing | H131: =IF('13. Institution Sustainability'!H17="", "missing", "complete") -> missing | L131: Climate measures | M131: =IF('14. Environment Sustainability'!D17="", "missing", "complete") -> missing | N131: =IF('14. Environment Sustainability'!E17="", "missing", "complete") -> missing | O131: =IF('14. Environment Sustainability'!F17="", "missing", "complete") -> missing | P131: =IF('14. Environment Sustainability'!H17="", "missing", "complete") -> missing
D132: Answers to freedom-of-information requests | E132: =IF('13. Institution Sustainability'!D18="", "missing", "complete") -> missing | F132: =IF('13. Institution Sustainability'!E18="", "missing", "complete") -> missing | G132: =IF('13. Institution Sustainability'!F18="", "missing", "complete") -> missing | H132: =IF('13. Institution Sustainability'!H18="", "missing", "complete") -> missing | J132: Decommision (2) | L132: Decommissioning plans | M132: =IF('14. Environment Sustainability'!D18="", "missing", "complete") -> missing | N132: =IF('14. Environment Sustainability'!E18="", "missing", "complete") -> missing | O132: =IF('14. Environment Sustainability'!F18="", "missing", "complete") -> missing | P132: =IF('14. Environment Sustainability'!H18="", "missing", "complete") -> missing
D133: Independent monitoring | E133: =IF('13. Institution Sustainability'!D19="", "missing", "complete") -> missing | F133: =IF('13. Institution Sustainability'!E19="", "missing", "complete") -> missing | G133: =IF('13. Institution Sustainability'!F19="", "missing", "complete") -> missing | H133: =IF('13. Institution Sustainability'!H19="", "missing", "complete") -> missing | L133: Decommissioning cost forecast | M133: =IF('14. Environment Sustainability'!D19="", "missing", "complete") -> missing | N133: =IF('14. Environment Sustainability'!E19="", "missing", "complete") -> missing | O133: =IF('14. Environment Sustainability'!F19="", "missing", "complete") -> missing | P133: =IF('14. Environment Sustainability'!H19="", "missing", "complete") -> missing
D134: Performance monitoring | E134: =IF('13. Institution Sustainability'!D20="", "missing", "complete") -> missing | F134: =IF('13. Institution Sustainability'!E20="", "missing", "complete") -> missing | G134: =IF('13. Institution Sustainability'!F20="", "missing", "complete") -> missing | H134: =IF('13. Institution Sustainability'!H20="", "missing", "complete") -> missing
B135: Completion (2) | D135: Freedom-of-information requests | E135: =IF('13. Institution Sustainability'!D21="", "missing", "complete") -> missing | F135: =IF('13. Institution Sustainability'!E21="", "missing", "complete") -> missing | G135: =IF('13. Institution Sustainability'!F21="", "missing", "complete") -> missing | H135: =IF('13. Institution Sustainability'!H21="", "missing", "complete") -> missing
D136: Answers to freedom-of-information requests | E136: =IF('13. Institution Sustainability'!D22="", "missing", "complete") -> missing | F136: =IF('13. Institution Sustainability'!E22="", "missing", "complete") -> missing | G136: =IF('13. Institution Sustainability'!F22="", "missing", "complete") -> missing | H136: =IF('13. Institution Sustainability'!H22="", "missing", "complete") -> missing
B137: Operation & Maintenance (2) | D137: Freedom-of-information requests | E137: =IF('13. Institution Sustainability'!D23="", "missing", "complete") -> missing | F137: =IF('13. Institution Sustainability'!E23="", "missing", "complete") -> missing | G137: =IF('13. Institution Sustainability'!F23="", "missing", "complete") -> missing | H137: =IF('13. Institution Sustainability'!H23="", "missing", "complete") -> missing
D138: Answers to freedom-of-information requests | E138: =IF('13. Institution Sustainability'!D24="", "missing", "complete") -> missing | F138: =IF('13. Institution Sustainability'!E24="", "missing", "complete") -> missing | G138: =IF('13. Institution Sustainability'!F24="", "missing", "complete") -> missing | H138: =IF('13. Institution Sustainability'!H24="", "missing", "complete") -> missing
B139: Decommision (2) | D139: Freedom-of-information requests | E139: =IF('13. Institution Sustainability'!D25="", "missing", "complete") -> missing | F139: =IF('13. Institution Sustainability'!E25="", "missing", "complete") -> missing | G139: =IF('13. Institution Sustainability'!F25="", "missing", "complete") -> missing | H139: =IF('13. Institution Sustainability'!H25="", "missing", "complete") -> missing
D140: Answers to freedom-of-information requests | E140: =IF('13. Institution Sustainability'!D26="", "missing", "complete") -> missing | F140: =IF('13. Institution Sustainability'!E26="", "missing", "complete") -> missing | G140: =IF('13. Institution Sustainability'!F26="", "missing", "complete") -> missing | H140: =IF('13. Institution Sustainability'!H26="", "missing", "complete") -> missing
A143: SHEET NAME | E143: 15. Climate Finance
B144: Project Phase | D144: Project data item | E144: Data disclosed | F144: Location of data | G144: Ease of Access | H144: OC4IDS
B145: Identification (6) | D145: Climate objective | E145: =IF('15. Climate Finance'!D4="", "missing", "complete") -> missing | F145: =IF('15. Climate Finance'!E4="", "missing", "complete") -> missing | G145: =IF('15. Climate Finance'!F4="", "missing", "complete") -> missing | H145: =IF('15. Climate Finance'!H4="", "missing", "complete") -> missing
D146: Financial instrument | E146: =IF('15. Climate Finance'!D5="", "missing", "complete") -> missing | F146: =IF('15. Climate Finance'!E5="", "missing", "complete") -> missing | G146: =IF('15. Climate Finance'!F5="", "missing", "complete") -> missing | H146: =IF('15. Climate Finance'!H5="", "missing", "complete") -> missing
D147: Climate transformation | E147: =IF('15. Climate Finance'!D6="", "missing", "complete") -> missing | F147: =IF('15. Climate Finance'!E6="", "missing", "complete") -> missing | G147: =IF('15. Climate Finance'!F6="", "missing", "complete") -> missing | H147: =IF('15. Climate Finance'!H6="", "missing", "complete") -> missing
D148: Climate finance decision making | E148: =IF('15. Climate Finance'!D7="", "missing", "complete") -> missing | F148: =IF('15. Climate Finance'!E7="", "missing", "complete") -> missing | G148: =IF('15. Climate Finance'!F7="", "missing", "complete") -> missing | H148: =IF('15. Climate Finance'!H7="", "missing", "complete") -> missing
D149: Nationally Determined Contributions | E149: =IF('15. Climate Finance'!D8="", "missing", "complete") -> missing | F149: =IF('15. Climate Finance'!E8="", "missing", "complete") -> missing | G149: =IF('15. Climate Finance'!F8="", "missing", "complete") -> missing | H149: =IF('15. Climate Finance'!H8="", "missing", "complete") -> missing
D150: Paris Agreement | E150: =IF('15. Climate Finance'!D9="", "missing", "complete") -> missing | F150: =IF('15. Climate Finance'!E9="", "missing", "complete") -> missing | G150: =IF('15. Climate Finance'!F9="", "missing", "complete") -> missing | H150: =IF('15. Climate Finance'!H9="", "missing", "complete") -> missing
B151: Preparation (13) | D151: Beneficiaries | E151: =IF('15. Climate Finance'!D10="", "missing", "complete") -> missing | F151: =IF('15. Climate Finance'!E10="", "missing", "complete") -> missing | G151: =IF('15. Climate Finance'!F10="", "missing", "complete") -> missing | H151: =IF('15. Climate Finance'!H10="", "missing", "complete") -> missing
D152: Amount of investments | E152: =IF('15. Climate Finance'!D11="", "missing", "complete") -> missing | F152: =IF('15. Climate Finance'!E11="", "missing", "complete") -> missing | G152: =IF('15. Climate Finance'!F11="", "missing", "complete") -> missing | H152: =IF('15. Climate Finance'!H11="", "missing", "complete") -> missing
D153: Funding source | E153: =IF('15. Climate Finance'!D12="", "missing", "complete") -> missing | F153: =IF('15. Climate Finance'!E12="", "missing", "complete") -> missing | G153: =IF('15. Climate Finance'!F12="", "missing", "complete") -> missing | H153: =IF('15. Climate Finance'!H12="", "missing", "complete") -> missing
D154: Green Climate Fund Accredited Entity | E154: =IF('15. Climate Finance'!D13="", "missing", "complete") -> missing | F154: =IF('15. Climate Finance'!E13="", "missing", "complete") -> missing | G154: =IF('15. Climate Finance'!F13="", "missing", "complete") -> missing | H154: =IF('15. Climate Finance'!H13="", "missing", "complete") -> missing
D155: Accredited entity type | E155: =IF('15. Climate Finance'!D14="", "missing", "complete") -> missing | F155: =IF('15. Climate Finance'!E14="", "missing", "complete") -> missing | G155: =IF('15. Climate Finance'!F14="", "missing", "complete") -> missing | H155: =IF('15. Climate Finance'!H14="", "missing", "complete") -> missing
D156: Project preparation costs | E156: =IF('15. Climate Finance'!D15="", "missing", "complete") -> missing | F156: =IF('15. Climate Finance'!E15="", "missing", "complete") -> missing | G156: =IF('15. Climate Finance'!F15="", "missing", "complete") -> missing | H156: =IF('15. Climate Finance'!H15="", "missing", "complete") -> missing
D157: Project preparation period | E157: =IF('15. Climate Finance'!D16="", "missing", "complete") -> missing | F157: =IF('15. Climate Finance'!E16="", "missing", "complete") -> missing | G157: =IF('15. Climate Finance'!F16="", "missing", "complete") -> missing | H157: =IF('15. Climate Finance'!H16="", "missing", "complete") -> missing
D158: Project approval period | E158: =IF('15. Climate Finance'!D17="", "missing", "complete") -> missing | F158: =IF('15. Climate Finance'!E17="", "missing", "complete") -> missing | G158: =IF('15. Climate Finance'!F17="", "missing", "complete") -> missing | H158: =IF('15. Climate Finance'!H17="", "missing", "complete") -> missing
D159: Ratio of co-finance | E159: =IF('15. Climate Finance'!D18="", "missing", "complete") -> missing | F159: =IF('15. Climate Finance'!E18="", "missing", "complete") -> missing | G159: =IF('15. Climate Finance'!F18="", "missing", "complete") -> missing | H159: =IF('15. Climate Finance'!H18="", "missing", "complete") -> missing
D160: Terms of climate finance | E160: =IF('15. Climate Finance'!D19="", "missing", "complete") -> missing | F160: =IF('15. Climate Finance'!E19="", "missing", "complete") -> missing | G160: =IF('15. Climate Finance'!F19="", "missing", "complete") -> missing | H160: =IF('15. Climate Finance'!H19="", "missing", "complete") -> missing
D161: Carbon efficiency | E161: =IF('15. Climate Finance'!D20="", "missing", "complete") -> missing | F161: =IF('15. Climate Finance'!E20="", "missing", "complete") -> missing | G161: =IF('15. Climate Finance'!F20="", "missing", "complete") -> missing | H161: =IF('15. Climate Finance'!H20="", "missing", "complete") -> missing
D162: Non-climate co-benefits | E162: =IF('15. Climate Finance'!D21="", "missing", "complete") -> missing | F162: =IF('15. Climate Finance'!E21="", "missing", "complete") -> missing | G162: =IF('15. Climate Finance'!F21="", "missing", "complete") -> missing | H162: =IF('15. Climate Finance'!H21="", "missing", "complete") -> missing
D163: Public consultations meetings | E163: =IF('15. Climate Finance'!D22="", "missing", "complete") -> missing | F163: =IF('15. Climate Finance'!E22="", "missing", "complete") -> missing | G163: =IF('15. Climate Finance'!F22="", "missing", "complete") -> missing | H163: =IF('15. Climate Finance'!H22="", "missing", "complete") -> missing
B164: Implementation (7) | D164: Disbursements records | E164: =IF('15. Climate Finance'!D23="", "missing", "complete") -> missing | F164: =IF('15. Climate Finance'!E23="", "missing", "complete") -> missing | G164: =IF('15. Climate Finance'!F23="", "missing", "complete") -> missing | H164: =IF('15. Climate Finance'!H23="", "missing", "complete") -> missing
D165: Type of project monitoring | E165: =IF('15. Climate Finance'!D24="", "missing", "complete") -> missing | F165: =IF('15. Climate Finance'!E24="", "missing", "complete") -> missing | G165: =IF('15. Climate Finance'!F24="", "missing", "complete") -> missing | H165: =IF('15. Climate Finance'!H24="", "missing", "complete") -> missing
D166: Performance monitoring | E166: =IF('15. Climate Finance'!D25="", "missing", "complete") -> missing | F166: =IF('15. Climate Finance'!E25="", "missing", "complete") -> missing | G166: =IF('15. Climate Finance'!F25="", "missing", "complete") -> missing | H166: =IF('15. Climate Finance'!H25="", "missing", "complete") -> missing
D167: Reporting period | E167: =IF('15. Climate Finance'!D26="", "missing", "complete") -> missing | F167: =IF('15. Climate Finance'!E26="", "missing", "complete") -> missing | G167: =IF('15. Climate Finance'!F26="", "missing", "complete") -> missing | H167: =IF('15. Climate Finance'!H26="", "missing", "complete") -> missing
D168: Oversight reports | E168: =IF('15. Climate Finance'!D27="", "missing", "complete") -> missing | F168: =IF('15. Climate Finance'!E27="", "missing", "complete") -> missing | G168: =IF('15. Climate Finance'!F27="", "missing", "complete") -> missing | H168: =IF('15. Climate Finance'!H27="", "missing", "complete") -> missing
D169: Independent monitoring | E169: =IF('15. Climate Finance'!D28="", "missing", "complete") -> missing | F169: =IF('15. Climate Finance'!E28="", "missing", "complete") -> missing | G169: =IF('15. Climate Finance'!F28="", "missing", "complete") -> missing | H169: =IF('15. Climate Finance'!H28="", "missing", "complete") -> missing
D170: Independent evaluation | E170: =IF('15. Climate Finance'!D29="", "missing", "complete") -> missing | F170: =IF('15. Climate Finance'!E29="", "missing", "complete") -> missing | G170: =IF('15. Climate Finance'!F29="", "missing", "complete") -> missing | H170: =IF('15. Climate Finance'!H29="", "missing", "complete") -> missing
B171: Operation & Maintenance (2) | D171: Impact measurement | E171: =IF('15. Climate Finance'!D30="", "missing", "complete") -> missing | F171: =IF('15. Climate Finance'!E30="", "missing", "complete") -> missing | G171: =IF('15. Climate Finance'!F30="", "missing", "complete") -> missing | H171: =IF('15. Climate Finance'!H30="", "missing", "complete") -> missing
D172: Carbon footprint | E172: =IF('15. Climate Finance'!D31="", "missing", "complete") -> missing | F172: =IF('15. Climate Finance'!E31="", "missing", "complete") -> missing | G172: =IF('15. Climate Finance'!F31="", "missing", "complete") -> missing | H172: =IF('15. Climate Finance'!H31="", "missing", "complete") -> missing
B173: Decommision (5) | D173: Infrastructure assets to be decommissioned | E173: =IF('15. Climate Finance'!D32="", "missing", "complete") -> missing | F173: =IF('15. Climate Finance'!E32="", "missing", "complete") -> missing | G173: =IF('15. Climate Finance'!F32="", "missing", "complete") -> missing | H173: =IF('15. Climate Finance'!H32="", "missing", "complete") -> missing
D174: Decommission period | E174: =IF('15. Climate Finance'!D33="", "missing", "complete") -> missing | F174: =IF('15. Climate Finance'!E33="", "missing", "complete") -> missing | G174: =IF('15. Climate Finance'!F33="", "missing", "complete") -> missing | H174: =IF('15. Climate Finance'!H33="", "missing", "complete") -> missing
D175: Decommission plan | E175: =IF('15. Climate Finance'!D34="", "missing", "complete") -> missing | F175: =IF('15. Climate Finance'!E34="", "missing", "complete") -> missing | G175: =IF('15. Climate Finance'!F34="", "missing", "complete") -> missing | H175: =IF('15. Climate Finance'!H34="", "missing", "complete") -> missing
D176: Carbon decommission savings | E176: =IF('15. Climate Finance'!D35="", "missing", "complete") -> missing | F176: =IF('15. Climate Finance'!E35="", "missing", "complete") -> missing | G176: =IF('15. Climate Finance'!F35="", "missing", "complete") -> missing | H176: =IF('15. Climate Finance'!H35="", "missing", "complete") -> missing
D177: Decommission mitigation plan | E177: =IF('15. Climate Finance'!D36="", "missing", "complete") -> missing | F177: =IF('15. Climate Finance'!E36="", "missing", "complete") -> missing | G177: =IF('15. Climate Finance'!F36="", "missing", "complete") -> missing | H177: =IF('15. Climate Finance'!H36="", "missing", "complete") -> missing

Sheet 1. ACTS Risk Mapping (hidden)
A1: Assessment of perceived drivers of good performance
A2: Mapping drivers of performance: | E2: How to use this tool. This tool provides a structured means of mapping and better understanding the drivers of good performance of an entity and its processes. The first column lists 12 drivers of good performance. Click on a pale cell for a more detailed explanation. Textured cells offer drop-down menus.
A3: Entity being assessed: | F3: Assessed by: | H3: Date:
A4: DRIVERS OF PERFORMANCE | B4: Assessment | E4: Elaboration
A5: CAPACITY makes it possible | B5: Yes, Partial, or No? | E5: Comments/explanation
A6: Finance staff & equipment
A7: Clear operating procedures
A8: Skills and experience
A9: ACCOUNTABILITY: makes it happen | B9: Yes, Partial, or No? | E9: Comments/explanation
A10: Quality management
A11: Transparency
A12: Performance monitoring
A13: TRUST makes it flourish | B13: Yes, Partial, or No? | E13: Comments/explanation
A14: Shared values and vision
A15: Good faith and mutual respect between stakeholders
A16: Confidence in fair contracts and tender management processes | L16: Drivers of good peformance in infrastructure procurement
A17: Enabling institutional SETTING makes it last | B17: Yes, Partial, or No? | E17: Comments/explanation
A18: Institutional clarity
A19: Rule of law fairly applied
A20: Good performance rewarded
A21: Additional comments:
A22: How to interpret and apply the result of this exercise | E22: In an ideal entity, each of the drivers of performance is fully evident. This is however rarely the case, and the degree to which any one of the listed sub-drivers is weak or absent indicates a heightened risk of inefficiency, mismanagement or corruption
A38: Yes
A39: Partial
A40: No
A41: WHEN SHEET IS UNLOCKED THESE ROWS CAN BE UNHIDDEN TO SHOW FURTHER DETAILS OF THE UNDERLYING SPREADSHEET

Sheet 2. Proactive Completeness (hidden)
A1: Assessment of the completeness of proactive publication (project level, and contract level) | T1: WHEN SHEET IS UNLOCKED THESE COLUMNS CAN BE UNHIDDEN TO SHOW FURTHER DETAILS OF THE UNDERLYING SPREADSHEET
A2: PROJECT: | D2: ASSESSOR: | G2: DATE: | M2: H/M/L | N2: Ease of Access | O2: Group Ease of Access | P2: Rounded | Q2: F contains data? | R2: H contains data? | S2: Sum (missing data if "1")
A3: Project Phase | C3: Project data item | D3: Data disclosed | E3: Source of data | F3: Location of data | G3: Ease of Access | H3: IDS | I3: OC4IDS | L3: Yes | M3: High
A4: Project Identification (7) | C4: Project reference number | H4: =IF(D4="", "", IF(OR(D4=0, D4="Not disclosed"), "No", "Yes")) ->  | M4: Medium | N4: =IF(G4="High",3,IF(G4="Medium",2,IF(G4="Low",1,IF(G4="","")))) ->  | Q4: =COUNTA(G4) -> 0 | R4: =COUNTA(H4) -> 1 | S4: =Q4+R4 -> 1 | T4: Education | U4: Energy, including electric power generation, and the transmission and distribution of electricity, oil and gas, for example: power plants, power lines, gas pipelines.
C5: Project owner | H5: =IF(D5="", "", IF(OR(D5=0, D5="Not disclosed"), "No", "Yes")) ->  | M5: Low | Q5: 0 | R5: 1 | S5: =Q5+R5 -> 1 | T5: Health | U5: Solar energy | V5: Energy generated from electromagnetic radiation from the Sun. | AD5: Yes
A6: IDS | B6: =ROUND(COUNTIF(H4:H10,"YES")/7,2) -> 0 | C6: Sector, subsector | L6: Newspaper | Q6: 0 | R6: 1 | S6: 1 | T6: Energy | U6: Wind energy | V6: Energy generated from air movement in Earth's atmosphere. | AD6: No
A7: OC4IDS | B7: =ROUND(COUNTIF(I4:I10,"YES")/7,2) -> 0 | C7: Project name | L7: Contractor's website | Q7: 0 | R7: 1 | S7: 1 | T7: Solar energy | U7: Hydropower energy | V7: Energy generated from falling or running water.
A8: Ease of Access | B8: =IFERROR(IF(P10=3,"High",IF(P10=2,"Medium",IF(P10=1,"Low",IF(P10=0,"-")))),"-") -> - | C8: Project Location | L8: Donor's website | Q8: 0 | R8: 1 | S8: 1 | T8: Wind energy | U8: Biomass energy | V8: Energy generated from recently living organisms.
C9: Purpose | L9: Government-wide procurement portal | Q9: 0 | R9: 1 | S9: 1 | T9: Hydropower energy | U9: Geothermal energy | V9: Thermal energy in Earth's crust.
C10: Project description | H10: =IF(D10="", "", IF(OR(D10=0, D10="Not disclosed"), "No", "Yes")) ->  | L10: Procurement Entity website | O10: =SUM(N4:N10)/(0.001+COUNT(N4:N10)) -> 0 | P10: =ROUND(O10,0) -> 0 | Q10: 0 | R10: 1 | S10: 1 | T10: Biomass energy | U10: Communications | V10: Communications, including ICT, IT, telecommunications, postal facilities, high-speed internet, broadband
A11: Project Preparation (7) | C11: Project Scope (main output) | H11: =IF(D11="", "", IF(OR(D11=0, D11="Not disclosed"), "No", "Yes")) ->  | L11: CoST Disclosure portal | Q11: 0 | R11: 1 | S11: 1 | T11: Geothermal energy | U11: Water and waste | V11: Water and waste, including sanitation and wastewater
C12: Environmental impact | L12: Other | Q12: 0 | R12: 1 | S12: 1 | T12: Communications | U12: Governance | V12: Governance, including government accommodations, public buildings, government offices; justice, courts; emergency services / response, local security; security, prisons, corrections; defence, military
A13: IDS | B13: =ROUND(COUNTIF(H11:H17,"YES")/7,2) -> 0 | C13: Land and settlement impact | Q13: 0 | R13: 1 | S13: 1 | T13: Water and waste | U13: Economy | V13: Economy, including agribusiness, agriculture, science and environment
A14: OC4IDS | B14: =ROUND(COUNTIF(I11:I17,"YES")/7,2) -> 0 | C14: Contact details | Q14: 0 | R14: 1 | S14: 1 | T14: Governance | U14: Culture, sports and recreation | V14: Culture, sports and recreation, including tourism, parks and green areas
A15: Ease of Access | B15: =IFERROR(IF(P17=3,"High",IF(P17=2,"Medium",IF(P17=1,"Low",IF(P17=0,"-")))),"-") -> - | C15: Funding sources | Q15: 0 | R15: 1 | S15: 1 | T15: Economy | U15: Transport | V15: Transport. A more detailed breakdown may be provided using the transport.[mode] codes
C16: Project Budget | Q16: 0 | R16: 1 | S16: 1 | T16: Culture,sports and recreation | U16: Air transport | V16: Air transport, including airports, airways and aviation
C17: Project budget approval date | O17: =SUM(N11:N17)/(0.001+COUNT(N11:N17)) -> 0 | P17: =ROUND(O17,0) -> 0 | Q17: 0 | R17: 1 | S17: 1 | T17: Transport | U17: Water transport | V17: Water transport, including ports and inland waterways
A18: Project Completion (6) | C18: Project status (current) | Q18: 0 | R18: 1 | S18: 1 | T18: Air Transport | U18: Rail transport | V18: Rail transport
C19: Completion cost (projected) | Q19: 0 | R19: 1 | S19: 1 | T19: Water transport | U19: Road transport | V19: Road transport, including roads, highways, streets, tunnels and bridges
A20: IDS | B20: =ROUND(COUNTIF(H18:H23,"YES")/6,2) -> 0 | C20: Completion date (projected) | Q20: 0 | R20: 1 | S20: 1 | T20: Rail transport | U20: Urban transport | V20: Urban transport, including mass transit, urban mobility, buses, cycling, walking and taxi
A21: OC4IDS | B21: =ROUND(COUNTIF(I18:I23,"YES")/6,2) -> 0 | C21: Scope at completion (projected) | Q21: 0 | R21: 1 | S21: 1 | T21: Road transport | U21: Low-carbon transport | V21: Low-carbon sustainable transport, including urban mobility, cycling, air and water vehicles powered by renewable energy sources.
A22: Ease of Access | B22: =IFERROR(IF(P23=3,"High",IF(P23=2,"Medium",IF(P23=1,"Low",IF(P23=0,"-")))),"-") -> - | C22: Reasons for project changes | Q22: 0 | R22: 1 | S22: 1 | T22: Urban transport | U22: Social housing | V22: Social housing
C23: Reference to audit and evaluation reports | O23: =SUM(N18:N23)/(0.001+COUNT(N18:N23)) -> 0 | P23: =ROUND(O23,0) -> 0 | Q23: 0 | R23: 1 | S23: 1 | T23: Low-carbon transport | U23: Natural resources | V23: The management of natural resources including forests, land, water and soil.
A24: Instructions: Enter data into pale cells. Click on cells for further instructions. Invalid entry in Location of data if cell highlighted as RED. | D24: Summary of ease of access and disclosure rates: (At project level only) | G24: =IFERROR(IF(P24=3,"High",IF(P24=2,"Medium",IF(P24=1,"Low",IF(P24=0,"-")))),"-") -> - | H24: =ROUND(COUNTIF(H4:H23,"YES")/20,2) -> 0 | I24: =ROUND(COUNTIF(I4:I23,"YES")/20,2) -> 0 | O24: =AVERAGE(O4:O23) -> 0 | P24: =ROUND(O24,0) -> 0 | T24: Social housing | U24: Flood protection
T25: Natural resources
A26: CONTRACT: | D26: ASSESSOR: | G26: DATE: | T26: Flood protection
A27: Contract Phase | C27: Contract data item | D27: Data disclosed | E27: Source of data | F27: Location of data | G27: Ease of Access | H27: IDS | I27: OC4IDS | L27: Yes | M27: High
A28: Tender Management (14) | C28: Procuring entity | H28: =IF(D28="", "", IF(OR(D28=0, D28="Not disclosed"), "No", "Yes")) ->  | N28: =IF(G28="High",3,IF(G28="Medium",2,IF(G28="Low",1,IF(G28="","")))) ->  | Q28: =COUNTA(G28) -> 0 | R28: =COUNTA(H28) -> 1 | S28: 1
C29: Procuring entity contact details | H29: =IF(D29="", "", IF(OR(D29=0, D29="Not disclosed"), "No", "Yes")) ->  | L29: Not disclosed | Q29: 0 | R29: 1 | S29: 1
A30: IDS | B30: =ROUND(COUNTIF(H28:H41,"YES")/14,2) -> 0 | C30: Procurement process | L30: Pre-Award | Q30: 0 | R30: 1 | S30: 1
A31: OC4IDS | B31: =ROUND(COUNTIF(I28:I41,"YES")/14,2) -> 0 | C31: Contract type | L31: Active | Q31: 0 | R31: 1 | S31: 1
A32: Ease of Access | B32: =IFERROR(IF(P41=3,"High",IF(P41=2,"Medium",IF(P41=1,"Low",IF(P41=0,"-")))),"-") -> - | C32: Contract status (current) | L32: Closed | Q32: 0 | R32: 1 | S32: 1
C33: Number of firms tendering | L33: Other | Q33: 0 | R33: 1 | S33: 1
C34: Cost estimate | Q34: 0 | R34: 1 | S34: 1
C35: Contract administration entity | L35: Not disclosed | Q35: 0 | R35: 1 | S35: 1
C36: Contract title | L36: Design | Q36: 0 | R36: 1 | S36: 1
C37: Contract firm(s) | L37: Supervision | Q37: 0 | R37: 1 | S37: 1
C38: Contract price | L38: Design & Supervision | Q38: 0 | R38: 1 | S38: 1
C39: Contract scope of work | L39: Design & Build | Q39: 0 | R39: 1 | S39: 1
C40: Contract start date | L40: Works | Q40: 0 | R40: 1 | S40: 1
C41: Contract duration | L41: Public-Private-Partnership | O41: =SUM(N28:N41)/(0.001+COUNT(N28:N41)) -> 0 | P41: =ROUND(O41,0) -> 0 | Q41: 0 | R41: 1 | S41: 1
A42: Implementation (6) | C42: Variation to contract price | L42: Other | Q42: 0 | R42: 1 | S42: 1
C43: Escalation of contract price | Q43: 0 | R43: 1 | S43: 1
A44: IDS | B44: =ROUND(COUNTIF(H42:H47,"YES")/6,2) -> 0 | C44: Variation to contract duration | Q44: 0 | R44: 1 | S44: 1
A45: OC4IDS | B45: =ROUND(COUNTIF(I42:I47,"YES")/6,2) -> 0 | C45: Variation to contract scope | Q45: 0 | R45: 1 | S45: 1
A46: Ease of Access | B46: =IFERROR(IF(P47=3,"High",IF(P47=2,"Medium",IF(P47=1,"Low",IF(P47=0,"-")))),"-") -> - | C46: Reasons for price changes | Q46: 0 | R46: 1 | S46: 1
C47: Reasons for scope and duration changes | O47: =SUM(N42:N47)/(0.001+COUNT(N42:N47)) -> 0 | P47: =ROUND(O47,0) -> 0 | Q47: 0 | R47: 1 | S47: 1
A48: Instructions: Enter data into pale cells. Click on cells for further instructions. Invalid entry in Location of data if cell highlighted as RED. | D48: Summary of ease of access and disclosure rates: (at above contract level only) | G48: =IFERROR(IF(P48=3,"High",IF(P48=2,"Medium",IF(P48=1,"Low",IF(P48=0,"-")))),0) -> - | H48: =ROUND(COUNTIF(H28:H47,"YES")/20,2) -> 0 | I48: =ROUND(COUNTIF(I28:I47,"YES")/20,2) -> 0 | O48: =AVERAGE(O28:O47) -> 0 | P48: =ROUND(O48,0) -> 0
A50: Note: Taken together, the above tables provide an overview of the project and one contract, typically the main works contract. To assess disclosure rates on other contracts, use additional versions of the lower table only | D50: Summary of ease of access and disclosure rates: (overall for project level and the contract included above) | G50: =IFERROR(IF(P50=3,"High",IF(P50=2,"Medium",IF(P50=1,"Low",IF(P50=0,"-")))),0) -> - | H50: =((COUNTIF(H4:H23,"YES"))+(COUNTIF(H28:H47,"YES")))/40 -> 0 | I50: =((COUNTIF(I4:I23,"YES"))+(COUNTIF(I28:I47,"YES")))/40 -> 0 | O50: =AVERAGE(O3:O47) -> 0 | P50: =ROUND(O50,0) -> 0
E52: Project data | F52: Contract data
A53: Source of published data (%) | D53: Newspaper | E53: =ROUND(COUNTIF($E$4:$E$23,"Newspaper")/20,2) -> 0 | F53: =ROUND(COUNTIF($E$28:$E$47,"Newspaper")/20,2) -> 0
D54: Contractor's website | E54: =ROUND(COUNTIF($E$4:$E$23,"Contractor's website")/20,2) -> 0 | F54: =ROUND(COUNTIF($E$28:$E$47,"Contractor's website")/20,2) -> 0
D55: Donor's website | E55: =ROUND(COUNTIF($E$4:$E$23,"Donor's website")/20,2) -> 0 | F55: =ROUND(COUNTIF($E$28:$E$47,"Donor's website")/20,2) -> 0
D56: Government-wide procurement portal | E56: =ROUND(COUNTIF($E$4:$E$23,"Government-wide procurement portal")/20,2) -> 0 | F56: =ROUND(COUNTIF($E$28:$E$47,"Government-wide procurement portal")/20,2) -> 0
D57: Procurement Entity website | E57: =ROUND(COUNTIF($E$4:$E$23,"Procurement Entity website")/20,2) -> 0 | F57: =ROUND(COUNTIF($E$28:$E$47,"Procurement Entity website")/20,2) -> 0
D58: CoST Disclosure portal | E58: =ROUND(COUNTIF($E$4:$E$23,"CoST Disclosure portal")/20,2) -> 0 | F58: =ROUND(COUNTIF($E$28:$E$47,"CoST Disclosure portal")/20,2) -> 0
D59: Other | E59: =ROUND(COUNTIF($E$4:$E$23,"Other")/20,2) -> 0 | F59: =ROUND(COUNTIF($E$28:$E$47,"Other")/20,2) -> 0

Sheet 3. Proactive Disclosure Rate (hidden)
A1: Assessment of the completeness of proactive disclosure (project level, and contract level)
A2: PROJECT: | B2: =IF('2. Proactive Completeness'!B2="","",'2. Proactive Completeness'!B2) ->  | D2: ASSESSORS: | G2: DATE: | O2: WHEN SHEET IS UNLOCKED THESE COLUMNS CAN BE UNHIDDEN TO SHOW FURTHER DETAILS OF THE UNDERLYING SPREADSHEET
A3: Project Phase | C3: Project data item | D3: Data disclosed | E3: Location of data | F3: Source of Data | G3: Dislosure score | K3: IDS | L3: OC4IDS
F4: Comment: Source of Data | G4: Assessors | I4: Average Assessment | J4: Adjusted Score(%) | R4: 0
A5: Project Identification (7) | C5: Project reference number | D5: =IF('2. Proactive Completeness'!D4="", "", '2. Proactive Completeness'!D4) ->  | E5: =IF('2. Proactive Completeness'!F4="", "", '2. Proactive Completeness'!F4) ->  | F5: =IF('2. Proactive Completeness'!E4="", "", '2. Proactive Completeness'!E4) ->  | I5: =IF(AND(G5="", H5=""), "", AVERAGE(G5, H5)) ->  | J5: =IF(I5="", "", I5/3) ->  | K5: =IF(I5="", "", IF(I5=0, "No", "Yes")) ->  | L5: =IF('2. Proactive Completeness'!I4="", "", '2. Proactive Completeness'!I4) ->  | R5: 1 | S5: Yes
C6: Project owner | D6: =IF('2. Proactive Completeness'!D5="", "", '2. Proactive Completeness'!D5) ->  | E6: =IF('2. Proactive Completeness'!F5="", "", '2. Proactive Completeness'!F5) ->  | F6: =IF('2. Proactive Completeness'!E5="", "", '2. Proactive Completeness'!E5) ->  | I6: =IF(AND(G6="", H6=""), "", AVERAGE(G6, H6)) ->  | J6: =IF(I6="", "", I6/3) ->  | K6: =IF(I6="", "", IF(I6=0, "No", "Yes")) ->  | L6: =IF('2. Proactive Completeness'!I5="", "", '2. Proactive Completeness'!I5) ->  | R6: 2 | S6: No
A7: IDS Completeness | B7: ='2. Proactive Completeness'!B6 -> 0 | C7: Sector, subsector | D7: =IF('2. Proactive Completeness'!D6="", "", '2. Proactive Completeness'!D6) ->  | E7: =IF('2. Proactive Completeness'!F6="", "", '2. Proactive Completeness'!F6) ->  | F7: =IF('2. Proactive Completeness'!E6="", "", '2. Proactive Completeness'!E6) ->  | L7: =IF('2. Proactive Completeness'!I6="", "", '2. Proactive Completeness'!I6) ->  | R7: 3
A8: OC4IDS Completeness | B8: ='2. Proactive Completeness'!B7 -> 0 | C8: Project name | D8: =IF('2. Proactive Completeness'!D7="", "", '2. Proactive Completeness'!D7) ->  | E8: =IF('2. Proactive Completeness'!F7="", "", '2. Proactive Completeness'!F7) ->  | F8: =IF('2. Proactive Completeness'!E7="", "", '2. Proactive Completeness'!E7) ->  | L8: =IF('2. Proactive Completeness'!I7="", "", '2. Proactive Completeness'!I7) -> 
A9: IDS Disclosure rate | B9: =SUM(J5:J11)/7 -> 0 | C9: Project Location | D9: =IF('2. Proactive Completeness'!D8="", "", '2. Proactive Completeness'!D8) ->  | E9: =IF('2. Proactive Completeness'!F8="", "", '2. Proactive Completeness'!F8) ->  | F9: =IF('2. Proactive Completeness'!E8="", "", '2. Proactive Completeness'!E8) ->  | L9: =IF('2. Proactive Completeness'!I8="", "", '2. Proactive Completeness'!I8) -> 
A10: Ease of Access | B10: ='2. Proactive Completeness'!B8 -> - | C10: Purpose | D10: =IF('2. Proactive Completeness'!D9="", "", '2. Proactive Completeness'!D9) ->  | E10: =IF('2. Proactive Completeness'!F9="", "", '2. Proactive Completeness'!F9) ->  | F10: =IF('2. Proactive Completeness'!E9="", "", '2. Proactive Completeness'!E9) ->  | L10: =IF('2. Proactive Completeness'!I9="", "", '2. Proactive Completeness'!I9) ->  | R10: Newspaper
C11: Project description | D11: =IF('2. Proactive Completeness'!D10="", "", '2. Proactive Completeness'!D10) ->  | E11: =IF('2. Proactive Completeness'!F10="", "", '2. Proactive Completeness'!F10) ->  | F11: =IF('2. Proactive Completeness'!E10="", "", '2. Proactive Completeness'!E10) ->  | L11: =IF('2. Proactive Completeness'!I10="", "", '2. Proactive Completeness'!I10) ->  | R11: Contractor's website
A12: Project Preparation (7) | C12: Project Scope (main output) | D12: =IF('2. Proactive Completeness'!D11="", "", '2. Proactive Completeness'!D11) ->  | E12: =IF('2. Proactive Completeness'!F11="", "", '2. Proactive Completeness'!F11) ->  | F12: =IF('2. Proactive Completeness'!E11="", "", '2. Proactive Completeness'!E11) ->  | I12: =IF(AND(G12="", H12=""), "", AVERAGE(G12, H12)) ->  | J12: =IF(I12="", "", I12/3) ->  | K12: =IF(I12="", "", IF(I12=0, "No", "Yes")) ->  | L12: =IF('2. Proactive Completeness'!I11="", "", '2. Proactive Completeness'!I11) ->  | R12: Donor's website
C13: Environmental impact | D13: =IF('2. Proactive Completeness'!D12="", "", '2. Proactive Completeness'!D12) ->  | E13: =IF('2. Proactive Completeness'!F12="", "", '2. Proactive Completeness'!F12) ->  | F13: =IF('2. Proactive Completeness'!E12="", "", '2. Proactive Completeness'!E12) ->  | I13: =IF(AND(G13="", H13=""), "", AVERAGE(G13, H13)) ->  | J13: =IF(I13="", "", I13/3) ->  | K13: =IF(I13="", "", IF(I13=0, "No", "Yes")) ->  | L13: =IF('2. Proactive Completeness'!I12="", "", '2. Proactive Completeness'!I12) ->  | R13: Government-wide procurement portal
A14: IDS Completeness | B14: ='2. Proactive Completeness'!B13 -> 0 | C14: Land and settlement impact | D14: =IF('2. Proactive Completeness'!D13="", "", '2. Proactive Completeness'!D13) ->  | E14: =IF('2. Proactive Completeness'!F13="", "", '2. Proactive Completeness'!F13) ->  | F14: =IF('2. Proactive Completeness'!E13="", "", '2. Proactive Completeness'!E13) ->  | L14: =IF('2. Proactive Completeness'!I13="", "", '2. Proactive Completeness'!I13) ->  | R14: Procurement Entity website
A15: OC4IDS Completeness | B15: ='2. Proactive Completeness'!B14 -> 0 | C15: Contact details | D15: =IF('2. Proactive Completeness'!D14="", "", '2. Proactive Completeness'!D14) ->  | E15: =IF('2. Proactive Completeness'!F14="", "", '2. Proactive Completeness'!F14) ->  | F15: =IF('2. Proactive Completeness'!E14="", "", '2. Proactive Completeness'!E14) ->  | L15: =IF('2. Proactive Completeness'!I14="", "", '2. Proactive Completeness'!I14) ->  | R15: CoST Disclosure portal
A16: IDS Disclosure rate | B16: =SUM(J12:J18)/7 -> 0 | C16: Funding sources | D16: =IF('2. Proactive Completeness'!D15="", "", '2. Proactive Completeness'!D15) ->  | E16: =IF('2. Proactive Completeness'!F15="", "", '2. Proactive Completeness'!F15) ->  | F16: =IF('2. Proactive Completeness'!E15="", "", '2. Proactive Completeness'!E15) ->  | L16: =IF('2. Proactive Completeness'!I15="", "", '2. Proactive Completeness'!I15) -> 
A17: Ease of Access | B17: ='2. Proactive Completeness'!B15 -> - | C17: Project Budget | D17: =IF('2. Proactive Completeness'!D16="", "", '2. Proactive Completeness'!D16) ->  | E17: =IF('2. Proactive Completeness'!F16="", "", '2. Proactive Completeness'!F16) ->  | F17: =IF('2. Proactive Completeness'!E16="", "", '2. Proactive Completeness'!E16) ->  | L17: =IF('2. Proactive Completeness'!I16="", "", '2. Proactive Completeness'!I16) -> 
C18: Project budget approval date | D18: =IF('2. Proactive Completeness'!D17="", "", '2. Proactive Completeness'!D17) ->  | E18: =IF('2. Proactive Completeness'!F17="", "", '2. Proactive Completeness'!F17) ->  | F18: =IF('2. Proactive Completeness'!E17="", "", '2. Proactive Completeness'!E17) ->  | L18: =IF('2. Proactive Completeness'!I17="", "", '2. Proactive Completeness'!I17) -> 
A19: Project Completion (6) | C19: Project status (current) | D19: =IF('2. Proactive Completeness'!D18="", "", '2. Proactive Completeness'!D18) ->  | E19: =IF('2. Proactive Completeness'!F18="", "", '2. Proactive Completeness'!F18) ->  | F19: =IF('2. Proactive Completeness'!E18="", "", '2. Proactive Completeness'!E18) ->  | L19: =IF('2. Proactive Completeness'!I18="", "", '2. Proactive Completeness'!I18) -> 
C20: Completion cost (projected) | D20: =IF('2. Proactive Completeness'!D19="", "", '2. Proactive Completeness'!D19) ->  | E20: =IF('2. Proactive Completeness'!F19="", "", '2. Proactive Completeness'!F19) ->  | F20: =IF('2. Proactive Completeness'!E19="", "", '2. Proactive Completeness'!E19) ->  | L20: =IF('2. Proactive Completeness'!I19="", "", '2. Proactive Completeness'!I19) -> 
A21: IDS Completeness | B21: =ROUND(COUNTIF(K19:K24,"YES")/6,2) -> 0 | C21: Completion date (projected) | D21: =IF('2. Proactive Completeness'!D20="", "", '2. Proactive Completeness'!D20) ->  | E21: =IF('2. Proactive Completeness'!F20="", "", '2. Proactive Completeness'!F20) ->  | F21: =IF('2. Proactive Completeness'!E20="", "", '2. Proactive Completeness'!E20) ->  | L21: =IF('2. Proactive Completeness'!I20="", "", '2. Proactive Completeness'!I20) -> 
A22: OC4IDS Completeness | B22: =ROUND(COUNTIF(L19:L24,"YES")/6,2) -> 0 | C22: Scope at completion (projected) | D22: =IF('2. Proactive Completeness'!D21="", "", '2. Proactive Completeness'!D21) ->  | E22: =IF('2. Proactive Completeness'!F21="", "", '2. Proactive Completeness'!F21) ->  | F22: =IF('2. Proactive Completeness'!E21="", "", '2. Proactive Completeness'!E21) ->  | L22: =IF('2. Proactive Completeness'!I21="", "", '2. Proactive Completeness'!I21) -> 
A23: IDS Disclosure rate | B23: =SUM(J19:J24)/6 -> 0 | C23: Reasons for project changes | D23: =IF('2. Proactive Completeness'!D22="", "", '2. Proactive Completeness'!D22) ->  | E23: =IF('2. Proactive Completeness'!F22="", "", '2. Proactive Completeness'!F22) ->  | F23: =IF('2. Proactive Completeness'!E22="", "", '2. Proactive Completeness'!E22) ->  | L23: =IF('2. Proactive Completeness'!I22="", "", '2. Proactive Completeness'!I22) -> 
A24: Ease of Access | B24: ='2. Proactive Completeness'!B22 -> - | C24: Reference to audit and evaluation reports | D24: =IF('2. Proactive Completeness'!D23="", "", '2. Proactive Completeness'!D23) ->  | E24: =IF('2. Proactive Completeness'!F23="", "", '2. Proactive Completeness'!F23) ->  | F24: =IF('2. Proactive Completeness'!E23="", "", '2. Proactive Completeness'!E23) ->  | L24: =IF('2. Proactive Completeness'!I23="", "", '2. Proactive Completeness'!I23) -> 
A25: Instructions: Enter data into pale cells. Click on cells for further instructions. | D25: Summary of ease of access and disclosure rates: (At project level only) | J25: =AVERAGE(J5:J24) ->  | K25: =ROUND(COUNTIF(K5:K24,"YES")/20,2) -> 0 | L25: =ROUND(COUNTIF(L5:L24,"YES")/20,2) -> 0
A27: CONTRACT: | D27: ASSESSOR: | G27: DATE:
A28: Contract Phase | C28: Contract data item | D28: Data disclosed | E28: Location of data | F28: Comment: Source of Data | G28: Dislosure score | K28: IDS | L28: OC4IDS
F29: Comment: Source of Data | G29: Assessors | I29: Average Assessment | J29: Adjusted Score(%)
A30: Tender Management (14) | C30: Procuring entity | D30: =IF('2. Proactive Completeness'!D28="", "", '2. Proactive Completeness'!D28) ->  | E30: =IF('2. Proactive Completeness'!F28="", "", '2. Proactive Completeness'!F28) ->  | F30: =IF('2. Proactive Completeness'!E28="", "", '2. Proactive Completeness'!E28) ->  | I30: =IF(AND(G30="", H30=""), "", AVERAGE(G30, H30)) ->  | J30: =IF(I30="", "", I30/3) ->  | K30: =IF(I30="", "", IF(I30=0, "No", "Yes")) ->  | L30: =IF('2. Proactive Completeness'!I28="", "", '2. Proactive Completeness'!I28) -> 
C31: Procuring entity contact details | D31: =IF('2. Proactive Completeness'!D29="", "", '2. Proactive Completeness'!D29) ->  | E31: =IF('2. Proactive Completeness'!F29="", "", '2. Proactive Completeness'!F29) ->  | F31: =IF('2. Proactive Completeness'!E29="", "", '2. Proactive Completeness'!E29) ->  | L31: =IF('2. Proactive Completeness'!I29="", "", '2. Proactive Completeness'!I29) -> 
A32: IDS Completeness | B32: =ROUND(COUNTIF(K30:K43,"YES")/14,2) -> 0 | C32: Procurement process | D32: =IF('2. Proactive Completeness'!D30="", "", '2. Proactive Completeness'!D30) ->  | E32: =IF('2. Proactive Completeness'!F30="", "", '2. Proactive Completeness'!F30) ->  | F32: =IF('2. Proactive Completeness'!E30="", "", '2. Proactive Completeness'!E30) ->  | L32: =IF('2. Proactive Completeness'!I30="", "", '2. Proactive Completeness'!I30) -> 
A33: OC4IDS Completeness | B33: =ROUND(COUNTIF(L30:L43,"YES")/14,2) -> 0 | C33: Contract type | D33: =IF('2. Proactive Completeness'!D31="", "", '2. Proactive Completeness'!D31) ->  | E33: =IF('2. Proactive Completeness'!F31="", "", '2. Proactive Completeness'!F31) ->  | F33: =IF('2. Proactive Completeness'!E31="", "", '2. Proactive Completeness'!E31) ->  | L33: =IF('2. Proactive Completeness'!I31="", "", '2. Proactive Completeness'!I31) -> 
A34: IDS Disclosure rate | B34: =SUM(J30:J43)/14 -> 0 | C34: Contract status (current) | D34: =IF('2. Proactive Completeness'!D32="", "", '2. Proactive Completeness'!D32) ->  | E34: =IF('2. Proactive Completeness'!F32="", "", '2. Proactive Completeness'!F32) ->  | F34: =IF('2. Proactive Completeness'!E32="", "", '2. Proactive Completeness'!E32) ->  | L34: =IF('2. Proactive Completeness'!I32="", "", '2. Proactive Completeness'!I32) -> 
A35: Ease of Access | B35: ='2. Proactive Completeness'!B32 -> - | C35: Number of firms tendering | D35: =IF('2. Proactive Completeness'!D33="", "", '2. Proactive Completeness'!D33) ->  | E35: =IF('2. Proactive Completeness'!F33="", "", '2. Proactive Completeness'!F33) ->  | F35: =IF('2. Proactive Completeness'!E33="", "", '2. Proactive Completeness'!E33) ->  | L35: =IF('2. Proactive Completeness'!I33="", "", '2. Proactive Completeness'!I33) -> 
C36: Cost estimate | D36: =IF('2. Proactive Completeness'!D34="", "", '2. Proactive Completeness'!D34) ->  | E36: =IF('2. Proactive Completeness'!F34="", "", '2. Proactive Completeness'!F34) ->  | F36: =IF('2. Proactive Completeness'!E34="", "", '2. Proactive Completeness'!E34) ->  | L36: =IF('2. Proactive Completeness'!I34="", "", '2. Proactive Completeness'!I34) -> 
C37: Contract administration entity | D37: =IF('2. Proactive Completeness'!D35="", "", '2. Proactive Completeness'!D35) ->  | E37: =IF('2. Proactive Completeness'!F35="", "", '2. Proactive Completeness'!F35) ->  | F37: =IF('2. Proactive Completeness'!E35="", "", '2. Proactive Completeness'!E35) ->  | L37: =IF('2. Proactive Completeness'!I35="", "", '2. Proactive Completeness'!I35) -> 
C38: Contract title | D38: =IF('2. Proactive Completeness'!D36="", "", '2. Proactive Completeness'!D36) ->  | E38: =IF('2. Proactive Completeness'!F36="", "", '2. Proactive Completeness'!F36) ->  | F38: =IF('2. Proactive Completeness'!E36="", "", '2. Proactive Completeness'!E36) ->  | L38: =IF('2. Proactive Completeness'!I36="", "", '2. Proactive Completeness'!I36) -> 
C39: Contract firm(s) | D39: =IF('2. Proactive Completeness'!D37="", "", '2. Proactive Completeness'!D37) ->  | E39: =IF('2. Proactive Completeness'!F37="", "", '2. Proactive Completeness'!F37) ->  | F39: =IF('2. Proactive Completeness'!E37="", "", '2. Proactive Completeness'!E37) ->  | L39: =IF('2. Proactive Completeness'!I37="", "", '2. Proactive Completeness'!I37) -> 
C40: Contract price | D40: =IF('2. Proactive Completeness'!D38="", "", '2. Proactive Completeness'!D38) ->  | E40: =IF('2. Proactive Completeness'!F38="", "", '2. Proactive Completeness'!F38) ->  | F40: =IF('2. Proactive Completeness'!E38="", "", '2. Proactive Completeness'!E38) ->  | L40: =IF('2. Proactive Completeness'!I38="", "", '2. Proactive Completeness'!I38) -> 
C41: Contract scope of work | D41: =IF('2. Proactive Completeness'!D39="", "", '2. Proactive Completeness'!D39) ->  | E41: =IF('2. Proactive Completeness'!F39="", "", '2. Proactive Completeness'!F39) ->  | F41: =IF('2. Proactive Completeness'!E39="", "", '2. Proactive Completeness'!E39) ->  | L41: =IF('2. Proactive Completeness'!I39="", "", '2. Proactive Completeness'!I39) -> 
C42: Contract start date | D42: =IF('2. Proactive Completeness'!D40="", "", '2. Proactive Completeness'!D40) ->  | E42: =IF('2. Proactive Completeness'!F40="", "", '2. Proactive Completeness'!F40) ->  | F42: =IF('2. Proactive Completeness'!E40="", "", '2. Proactive Completeness'!E40) ->  | L42: =IF('2. Proactive Completeness'!I40="", "", '2. Proactive Completeness'!I40) -> 
C43: Contract duration | D43: =IF('2. Proactive Completeness'!D41="", "", '2. Proactive Completeness'!D41) ->  | E43: =IF('2. Proactive Completeness'!F41="", "", '2. Proactive Completeness'!F41) ->  | F43: =IF('2. Proactive Completeness'!E41="", "", '2. Proactive Completeness'!E41) ->  | L43: =IF('2. Proactive Completeness'!I41="", "", '2. Proactive Completeness'!I41) -> 
A44: Implementation (6) | C44: Variation to contract price | D44: =IF('2. Proactive Completeness'!D42="", "", '2. Proactive Completeness'!D42) ->  | E44: =IF('2. Proactive Completeness'!F42="", "", '2. Proactive Completeness'!F42) ->  | F44: =IF('2. Proactive Completeness'!E42="", "", '2. Proactive Completeness'!E42) ->  | L44: =IF('2. Proactive Completeness'!I42="", "", '2. Proactive Completeness'!I42) -> 
C45: Escalation of contract price | D45: =IF('2. Proactive Completeness'!D43="", "", '2. Proactive Completeness'!D43) ->  | E45: =IF('2. Proactive Completeness'!F43="", "", '2. Proactive Completeness'!F43) ->  | F45: =IF('2. Proactive Completeness'!E43="", "", '2. Proactive Completeness'!E43) ->  | L45: =IF('2. Proactive Completeness'!I43="", "", '2. Proactive Completeness'!I43) -> 
A46: IDS Completeness | B46: =ROUND(COUNTIF(K44:K49,"YES")/6,2) -> 0 | C46: Variation to contract duration | D46: =IF('2. Proactive Completeness'!D44="", "", '2. Proactive Completeness'!D44) ->  | E46: =IF('2. Proactive Completeness'!F44="", "", '2. Proactive Completeness'!F44) ->  | F46: =IF('2. Proactive Completeness'!E44="", "", '2. Proactive Completeness'!E44) ->  | L46: =IF('2. Proactive Completeness'!I44="", "", '2. Proactive Completeness'!I44) -> 
A47: OC4IDS Completeness | B47: =ROUND(COUNTIF(L44:L49,"YES")/6,2) -> 0 | C47: Variation to contract scope | D47: =IF('2. Proactive Completeness'!D45="", "", '2. Proactive Completeness'!D45) ->  | E47: =IF('2. Proactive Completeness'!F45="", "", '2. Proactive Completeness'!F45) ->  | F47: =IF('2. Proactive Completeness'!E45="", "", '2. Proactive Completeness'!E45) ->  | L47: =IF('2. Proactive Completeness'!I45="", "", '2. Proactive Completeness'!I45) -> 
A48: IDS Disclosure rate | B48: =SUM(J44:J49)/6 -> 0 | C48: Reasons for price changes | D48: =IF('2. Proactive Completeness'!D46="", "", '2. Proactive Completeness'!D46) ->  | E48: =IF('2. Proactive Completeness'!F46="", "", '2. Proactive Completeness'!F46) ->  | F48: =IF('2. Proactive Completeness'!E46="", "", '2. Proactive Completeness'!E46) ->  | L48: =IF('2. Proactive Completeness'!I46="", "", '2. Proactive Completeness'!I46) -> 
A49: Ease of Access | B49: ='2. Proactive Completeness'!B46 -> - | C49: Reasons for scope and duration changes | D49: =IF('2. Proactive Completeness'!D47="", "", '2. Proactive Completeness'!D47) ->  | E49: =IF('2. Proactive Completeness'!F47="", "", '2. Proactive Completeness'!F47) ->  | F49: =IF('2. Proactive Completeness'!E47="", "", '2. Proactive Completeness'!E47) ->  | L49: =IF('2. Proactive Completeness'!I47="", "", '2. Proactive Completeness'!I47) -> 
A50: Instructions: Enter data into pale cells. Click on cells for further instructions. | D50: Summary of ease of access and disclosure rates: (at above contract level only) | J50: =AVERAGE(J30:J49) ->  | K50: =ROUND(COUNTIF(K30:K49,"YES")/20,2) -> 0 | L50: =ROUND(COUNTIF(L30:L49,"YES")/20,2) -> 0
A52: Note: Taken together, the above tables provide an overview of the project and one contract, typically the main works contract. To assess disclosure rates on other contracts, use additional versions of the lower table only | D52: Summary of ease of access and disclosure rates: (overall for project level and the contract included above) | J52: =AVERAGE(J50,J25) ->  | K52: =((COUNTIF(K5:K24,"YES"))+(COUNTIF(K30:K49,"YES")))/40 -> 0 | L52: =((COUNTIF(L5:L24,"YES"))+(COUNTIF(L30:L49,"YES")))/40 -> 0

Sheet 4. Proactive accuracy (hidden)
A1: Assessment of the accuracy of proactive disclosure (project level, and contract level) | M1: WHEN SHEET IS UNLOCKED THESE COLUMNS CAN BE UNHIDDEN TO SHOW FURTHER DETAILS OF THE UNDERLYING SPREADSHEET
A2: PROJECT: | B2: =IF('2. Proactive Completeness'!B2="","",'2. Proactive Completeness'!B2) ->  | G2: DATE:
A3: Project Phase | C3: Project data item | D3: Data disclosed | E3: Perceived Accuracy | F3: Comment | G3: P | H3: I | I3: U | J3: M | K3: Accuracy | L3: Plausible
A4: Project Identification (7) | C4: Project reference number | D4: ='3. Proactive Disclosure Rate'!D5 ->  | G4: =IF(E4="Plausible","✓","") ->  | H4: =IF(E4="Inconsistent","✓","") ->  | I4: =IF(E4="Implausible","✓","") ->  | J4: =IF(E4="(missing)","✓","") ->  | K4: =IF(E4="", "", _xlfn.IFS(E4="Plausible", 1, E4="Inconsistent", 0.75, E4="Implausible", 0.25, E4="(missing)", 0, E4="Other", 0)) ->  | L4: Inconsistent
C5: Project owner | D5: ='3. Proactive Disclosure Rate'!D6 ->  | G5: =IF(E5="Plausible","✓","") ->  | H5: =IF(E5="Inconsistent","✓","") ->  | I5: =IF(E5="Implausible","✓","") ->  | J5: =IF(E5="(missing)","✓","") ->  | K5: =IF(E5="", "", _xlfn.IFS(E5="Plausible", 1, E5="Inconsistent", 0.75, E5="Implausible", 0.25, E5="(missing)", 0, E5="Other", 0)) ->  | L5: Implausible
A6: Plausible (P) | B6: =ROUND(COUNTIF(E4:E10,"Plausible")/7,2) -> 0 | C6: Sector, subsector | D6: ='3. Proactive Disclosure Rate'!D7 ->  | G6: =IF(E6="Plausible","✓","") ->  | H6: =IF(E6="Inconsistent","✓","") ->  | I6: =IF(E6="Implausible","✓","") ->  | J6: =IF(E6="(missing)","✓","") ->  | K6: =IF(E6="", "", _xlfn.IFS(E6="Plausible", 1, E6="Inconsistent", 0.75, E6="Implausible", 0.25, E6="(missing)", 0, E6="Other", 0)) ->  | L6: (missing)
A7: Inconsistent (I) | B7: =ROUND(COUNTIF(E4:E10,"Inconsistent")/7,2) -> 0 | C7: Project name | D7: ='3. Proactive Disclosure Rate'!D8 ->  | K7: =IF(E7="", "", _xlfn.IFS(E7="Plausible", 1, E7="Inconsistent", 0.75, E7="Implausible", 0.25, E7="(missing)", 0, E7="Other", 0)) ->  | L7: Other
A8: Implausible (U) | B8: =ROUND(COUNTIF(E4:E10,"Implausible")/7,2) -> 0 | C8: Project Location | D8: ='3. Proactive Disclosure Rate'!D9 ->  | K8: =IF(E8="", "", _xlfn.IFS(E8="Plausible", 1, E8="Inconsistent", 0.75, E8="Implausible", 0.25, E8="(missing)", 0, E8="Other", 0)) -> 
A9: [missing] (M) | B9: =ROUND(COUNTIF(E4:E10,"(missing)")/7,2) -> 0 | C9: Purpose | D9: ='3. Proactive Disclosure Rate'!D10 ->  | K9: =IF(E9="", "", _xlfn.IFS(E9="Plausible", 1, E9="Inconsistent", 0.75, E9="Implausible", 0.25, E9="(missing)", 0, E9="Other", 0)) -> 
A10: Accuracy | B10: =IF(COUNTA(K4:K10)=0, "", SUM(K4:K10)/7) -> 0 | C10: Project description | D10: ='3. Proactive Disclosure Rate'!D11 ->  | K10: =IF(E10="", "", _xlfn.IFS(E10="Plausible", 1, E10="Inconsistent", 0.75, E10="Implausible", 0.25, E10="(missing)", 0, E10="Other", 0)) -> 
A11: Project Preparation (7) | C11: Project Scope (main output) | D11: ='3. Proactive Disclosure Rate'!D12 ->  | G11: =IF(E11="Plausible","✓","") ->  | H11: =IF(E11="Inconsistent","✓","") ->  | I11: =IF(E11="Implausible","✓","") ->  | J11: =IF(E11="(missing)","✓","") ->  | K11: =IF(E11="", "", _xlfn.IFS(E11="Plausible", 1, E11="Inconsistent", 0.75, E11="Implausible", 0.25, E11="(missing)", 0, E11="Other", 0)) -> 
C12: Environmental impact | D12: ='3. Proactive Disclosure Rate'!D13 ->  | G12: =IF(E12="Plausible","✓","") ->  | H12: =IF(E12="Inconsistent","✓","") ->  | I12: =IF(E12="Implausible","✓","") ->  | J12: =IF(E12="(missing)","✓","") ->  | K12: =IF(E12="", "", _xlfn.IFS(E12="Plausible", 1, E12="Inconsistent", 0.75, E12="Implausible", 0.25, E12="(missing)", 0, E12="Other", 0)) -> 
A13: Plausible (P) | B13: =ROUND(COUNTIF(E11:E17,"Plausible")/7,2) -> 0 | C13: Land and settlement impact | D13: ='3. Proactive Disclosure Rate'!D14 ->  | G13: =IF(E13="Plausible","✓","") ->  | H13: =IF(E13="Inconsistent","✓","") ->  | I13: =IF(E13="Implausible","✓","") ->  | J13: =IF(E13="(missing)","✓","") ->  | K13: =IF(E13="", "", _xlfn.IFS(E13="Plausible", 1, E13="Inconsistent", 0.75, E13="Implausible", 0.25, E13="(missing)", 0, E13="Other", 0)) -> 
A14: Inconsistent (I) | B14: =ROUND(COUNTIF(E11:E17,"Inconsistent")/7,2) -> 0 | C14: Contact details | D14: ='3. Proactive Disclosure Rate'!D15 ->  | K14: =IF(E14="", "", _xlfn.IFS(E14="Plausible", 1, E14="Inconsistent", 0.75, E14="Implausible", 0.25, E14="(missing)", 0, E14="Other", 0)) -> 
A15: Implausible (U) | B15: =ROUND(COUNTIF(E11:E17,"Implausible")/7,2) -> 0 | C15: Funding sources | D15: ='3. Proactive Disclosure Rate'!D16 ->  | K15: =IF(E15="", "", _xlfn.IFS(E15="Plausible", 1, E15="Inconsistent", 0.75, E15="Implausible", 0.25, E15="(missing)", 0, E15="Other", 0)) -> 
A16: [missing] (M) | B16: =ROUND(COUNTIF(E11:E17,"(missing)")/7,2) -> 0 | C16: Project Budget | D16: ='3. Proactive Disclosure Rate'!D17 ->  | K16: =IF(E16="", "", _xlfn.IFS(E16="Plausible", 1, E16="Inconsistent", 0.75, E16="Implausible", 0.25, E16="(missing)", 0, E16="Other", 0)) -> 
A17: Accuracy | B17: =IF(COUNTA(K11:K17)=0, "", SUM(K11:K17)/7) -> 0 | C17: Project budget approval date | D17: ='3. Proactive Disclosure Rate'!D18 ->  | K17: =IF(E17="", "", _xlfn.IFS(E17="Plausible", 1, E17="Inconsistent", 0.75, E17="Implausible", 0.25, E17="(missing)", 0, E17="Other", 0)) -> 
A18: Project Completion (6) | C18: Project status (current) | D18: ='3. Proactive Disclosure Rate'!D19 ->  | G18: =IF(E18="Plausible","✓","") ->  | H18: =IF(E18="Inconsistent","✓","") ->  | I18: =IF(E18="Implausible","✓","") ->  | J18: =IF(E18="(missing)","✓","") ->  | K18: =IF(E18="", "", _xlfn.IFS(E18="Plausible", 1, E18="Inconsistent", 0.75, E18="Implausible", 0.25, E18="(missing)", 0, E18="Other", 0)) -> 
A19: Plausible (P) | B19: =ROUND(COUNTIF(E18:E23,"Plausible")/6,2) -> 0 | C19: Completion cost (projected) | D19: ='3. Proactive Disclosure Rate'!D20 ->  | G19: =IF(E19="Plausible","✓","") ->  | H19: =IF(E19="Inconsistent","✓","") ->  | I19: =IF(E19="Implausible","✓","") ->  | J19: =IF(E19="(missing)","✓","") ->  | K19: =IF(E19="", "", _xlfn.IFS(E19="Plausible", 1, E19="Inconsistent", 0.75, E19="Implausible", 0.25, E19="(missing)", 0, E19="Other", 0)) -> 
A20: Inconsistent (I) | B20: =ROUND(COUNTIF(E18:E23,"Inconsistent")/6,2) -> 0 | C20: Completion date (projected) | D20: ='3. Proactive Disclosure Rate'!D21 ->  | K20: =IF(E20="", "", _xlfn.IFS(E20="Plausible", 1, E20="Inconsistent", 0.75, E20="Implausible", 0.25, E20="(missing)", 0, E20="Other", 0)) -> 
A21: Implausible (U) | B21: =ROUND(COUNTIF(E18:E23,"Implausible")/6,2) -> 0 | C21: Scope at completion (projected) | D21: ='3. Proactive Disclosure Rate'!D22 ->  | K21: =IF(E21="", "", _xlfn.IFS(E21="Plausible", 1, E21="Inconsistent", 0.75, E21="Implausible", 0.25, E21="(missing)", 0, E21="Other", 0)) -> 
A22: [missing] (M) | B22: =ROUND(COUNTIF(E18:E23,"(missing)")/6,2) -> 0 | C22: Reasons for project changes | D22: ='3. Proactive Disclosure Rate'!D23 ->  | K22: =IF(E22="", "", _xlfn.IFS(E22="Plausible", 1, E22="Inconsistent", 0.75, E22="Implausible", 0.25, E22="(missing)", 0, E22="Other", 0)) -> 
A23: Accuracy | B23: =IF(COUNTA(K18:K23)=0, "", SUM(K18:K23)/7) -> 0 | C23: Reference to audit and evaluation reports | D23: ='3. Proactive Disclosure Rate'!D24 ->  | K23: =IF(E23="", "", _xlfn.IFS(E23="Plausible", 1, E23="Inconsistent", 0.75, E23="Implausible", 0.25, E23="(missing)", 0, E23="Other", 0)) -> 
A24: Instructions: Enter data into pale cells. Click on cells for further instructions. | E24: Summary of accuracy assessments at project level (as %) | G24: =(COUNTIF(G4:G23,"✓")/20) -> 0 | H24: =(COUNTIF(H4:H23,"✓")/20) -> 0 | I24: =(COUNTIF(I4:I23,"✓")/20) -> 0 | J24: =(COUNTIF(J4:J23,"✓")/20) -> 0 | K24: =SUM(K4:K23)/20 -> 0
A26: CONTRACT | E26: ASSESSOR: | G26: DATE:
A27: Contract Phase | C27: Contract data item | D27: Contract data item | E27: Perceived Accuracy | F27: Comment | G27: P | H27: I | I27: U | J27: M | K27: M | L27: Plausible
A28: Tender Management (14) | C28: Procuring entity | D28: ='3. Proactive Disclosure Rate'!D30 ->  | G28: =IF(E28="Plausible","✓","") ->  | H28: =IF(E28="Inconsistent","✓","") ->  | I28: =IF(E28="Implausible","✓","") ->  | J28: =IF(E28="(missing)","✓","") ->  | K28: =IF(E28="", "", _xlfn.IFS(E28="Plausible", 1, E28="Inconsistent", 0.75, E28="Implausible", 0.25, E28="(missing)", 0, E28="Other", 0)) -> 
C29: Procuring entity contact details | D29: ='3. Proactive Disclosure Rate'!D31 ->  | G29: =IF(E29="Plausible","✓","") ->  | H29: =IF(E29="Inconsistent","✓","") ->  | I29: =IF(E29="Implausible","✓","") ->  | J29: =IF(E29="(missing)","✓","") ->  | K29: =IF(E29="", "", _xlfn.IFS(E29="Plausible", 1, E29="Inconsistent", 0.75, E29="Implausible", 0.25, E29="(missing)", 0, E29="Other", 0)) -> 
A30: Plausible (P) | B30: =ROUND(COUNTIF(E28:E41,"Plausible")/14,2) -> 0 | C30: Procurement process | D30: ='3. Proactive Disclosure Rate'!D32 ->  | K30: =IF(E30="", "", _xlfn.IFS(E30="Plausible", 1, E30="Inconsistent", 0.75, E30="Implausible", 0.25, E30="(missing)", 0, E30="Other", 0)) -> 
A31: Inconsistent (I) | B31: =ROUND(COUNTIF(E28:E41,"Inconsistent")/14,2) -> 0 | C31: Contract type | D31: ='3. Proactive Disclosure Rate'!D33 ->  | K31: =IF(E31="", "", _xlfn.IFS(E31="Plausible", 1, E31="Inconsistent", 0.75, E31="Implausible", 0.25, E31="(missing)", 0, E31="Other", 0)) -> 
A32: Implausible (U) | B32: =ROUND(COUNTIF(E28:E41,"Implausible")/14,2) -> 0 | C32: Contract status (current) | D32: ='3. Proactive Disclosure Rate'!D34 ->  | K32: =IF(E32="", "", _xlfn.IFS(E32="Plausible", 1, E32="Inconsistent", 0.75, E32="Implausible", 0.25, E32="(missing)", 0, E32="Other", 0)) -> 
A33: [missing] (M) | B33: =ROUND(COUNTIF(E28:E41,"(missing)")/14,2) -> 0 | C33: Number of firms tendering | D33: ='3. Proactive Disclosure Rate'!D35 ->  | K33: =IF(E33="", "", _xlfn.IFS(E33="Plausible", 1, E33="Inconsistent", 0.75, E33="Implausible", 0.25, E33="(missing)", 0, E33="Other", 0)) -> 
A34: Accuracy | B34: =IF(COUNTA(K28:K41)=0, "", SUM(K28:L41)/14) -> 0 | C34: Cost estimate | D34: ='3. Proactive Disclosure Rate'!D36 ->  | K34: =IF(E34="", "", _xlfn.IFS(E34="Plausible", 1, E34="Inconsistent", 0.75, E34="Implausible", 0.25, E34="(missing)", 0, E34="Other", 0)) -> 
C35: Contract administration entity | D35: ='3. Proactive Disclosure Rate'!D37 ->  | K35: =IF(E35="", "", _xlfn.IFS(E35="Plausible", 1, E35="Inconsistent", 0.75, E35="Implausible", 0.25, E35="(missing)", 0, E35="Other", 0)) -> 
C36: Contract title | D36: ='3. Proactive Disclosure Rate'!D38 ->  | K36: =IF(E36="", "", _xlfn.IFS(E36="Plausible", 1, E36="Inconsistent", 0.75, E36="Implausible", 0.25, E36="(missing)", 0, E36="Other", 0)) -> 
C37: Contract firm(s) | D37: ='3. Proactive Disclosure Rate'!D39 ->  | K37: =IF(E37="", "", _xlfn.IFS(E37="Plausible", 1, E37="Inconsistent", 0.75, E37="Implausible", 0.25, E37="(missing)", 0, E37="Other", 0)) -> 
C38: Contract price | D38: ='3. Proactive Disclosure Rate'!D40 ->  | K38: =IF(E38="", "", _xlfn.IFS(E38="Plausible", 1, E38="Inconsistent", 0.75, E38="Implausible", 0.25, E38="(missing)", 0, E38="Other", 0)) -> 
C39: Contract scope of work | D39: ='3. Proactive Disclosure Rate'!D41 ->  | K39: =IF(E39="", "", _xlfn.IFS(E39="Plausible", 1, E39="Inconsistent", 0.75, E39="Implausible", 0.25, E39="(missing)", 0, E39="Other", 0)) -> 
C40: Contract start date | D40: ='3. Proactive Disclosure Rate'!D42 ->  | K40: =IF(E40="", "", _xlfn.IFS(E40="Plausible", 1, E40="Inconsistent", 0.75, E40="Implausible", 0.25, E40="(missing)", 0, E40="Other", 0)) -> 
C41: Contract duration | D41: ='3. Proactive Disclosure Rate'!D43 ->  | K41: =IF(E41="", "", _xlfn.IFS(E41="Plausible", 1, E41="Inconsistent", 0.75, E41="Implausible", 0.25, E41="(missing)", 0, E41="Other", 0)) -> 
A42: Implementation (6) | C42: Variation to contract price | D42: ='3. Proactive Disclosure Rate'!D44 ->  | G42: =IF(E42="Plausible","✓","") ->  | H42: =IF(E42="Inconsistent","✓","") ->  | I42: =IF(E42="Implausible","✓","") ->  | J42: =IF(E42="(missing)","✓","") ->  | K42: =IF(E42="", "", _xlfn.IFS(E42="Plausible", 1, E42="Inconsistent", 0.75, E42="Implausible", 0.25, E42="(missing)", 0, E42="Other", 0)) -> 
A43: Plausible (P) | B43: =ROUND(COUNTIF(E42:E47,"Plausible")/6,2) -> 0 | C43: Escalation of contract price | D43: ='3. Proactive Disclosure Rate'!D45 ->  | G43: =IF(E43="Plausible","✓","") ->  | H43: =IF(E43="Inconsistent","✓","") ->  | I43: =IF(E43="Implausible","✓","") ->  | J43: =IF(E43="(missing)","✓","") ->  | K43: =IF(E43="", "", _xlfn.IFS(E43="Plausible", 1, E43="Inconsistent", 0.75, E43="Implausible", 0.25, E43="(missing)", 0, E43="Other", 0)) -> 
A44: Inconsistent (I) | B44: =ROUND(COUNTIF(E42:E47,"Inconsistent")/6,2) -> 0 | C44: Variation to contract duration | D44: ='3. Proactive Disclosure Rate'!D46 ->  | K44: =IF(E44="", "", _xlfn.IFS(E44="Plausible", 1, E44="Inconsistent", 0.75, E44="Implausible", 0.25, E44="(missing)", 0, E44="Other", 0)) -> 
A45: Implausible (U) | B45: =ROUND(COUNTIF(E42:E47,"Implausible")/6,2) -> 0 | C45: Variation to contract scope | D45: ='3. Proactive Disclosure Rate'!D47 ->  | K45: =IF(E45="", "", _xlfn.IFS(E45="Plausible", 1, E45="Inconsistent", 0.75, E45="Implausible", 0.25, E45="(missing)", 0, E45="Other", 0)) -> 
A46: [missing] (M) | B46: =ROUND(COUNTIF(E42:E47,"(missing)")/6,2) -> 0 | C46: Reasons for price changes | D46: ='3. Proactive Disclosure Rate'!D48 ->  | K46: =IF(E46="", "", _xlfn.IFS(E46="Plausible", 1, E46="Inconsistent", 0.75, E46="Implausible", 0.25, E46="(missing)", 0, E46="Other", 0)) -> 
A47: Accuracy | B47: =IF(COUNTA(K42:K47)=0, "", SUM(K42:K47)/6) -> 0 | C47: Reasons for scope and duration changes | D47: ='3. Proactive Disclosure Rate'!D49 ->  | K47: =IF(E47="", "", _xlfn.IFS(E47="Plausible", 1, E47="Inconsistent", 0.75, E47="Implausible", 0.25, E47="(missing)", 0, E47="Other", 0)) -> 
A48: Instructions: Enter data into pale cells. Click on cells for further instructions. | E48: Summary of accuracy assessments at contract level (as %) | G48: =(COUNTIF(G28:G47,"✓")/20) -> 0 | H48: 0 | I48: 0 | J48: 0 | K48: =SUM(K28:K47)/20 -> 0
A50: Note: Taken together, the above tables provide an overview of the project and one contract, typically the main works contract. To assess accuracy rates on other contracts, use additional versions of the lower table only | E50: Summary of accuracy assessments (as %) : (overall for project level and the contract included above) | G50: =(G24+G48)/2 -> 0 | H50: =(H24+H48)/2 -> 0 | I50: =(I24+I48)/2 -> 0 | J50: =(J24+J48)/2 -> 0 | K50: =(K24+K48)/2 -> 0

Sheet 5. Proactive PE response (hidden)
A1: Assessment of PE responses to queries related to proactive disclosure (project level, and contract level) | N1: WHEN SHEET IS UNLOCKED THESE COLUMNS CAN BE UNHIDDEN TO SHOW FURTHER DETAILS OF THE UNDERLYING SPREADSHEET
A2: PROJECT: | C2: =IF('2. Proactive Completeness'!B2="","",'2. Proactive Completeness'!B2) ->  | E2: ASSESSOR: | H2: DATE:
A3: Project Phase | C3: Project data item | D3: Data disclosed | E3: Perceived accuracy | F3: Issue raised with PE | G3: Additional Comment | H3: Date raised | I3: Comment from PE | K3: Date resolved | M3: Missing
A4: Project Identification (7) | C4: Project reference number | D4: =IF('2. Proactive Completeness'!D4="", "", '2. Proactive Completeness'!D4) ->  | E4: =IF('4. Proactive accuracy'!E4="", "", '4. Proactive accuracy'!E4) ->  | M4: Inconsistent
C5: Project owner | D5: =IF('2. Proactive Completeness'!D5="", "", '2. Proactive Completeness'!D5) ->  | E5: =IF('4. Proactive accuracy'!E5="", "", '4. Proactive accuracy'!E5) ->  | M5: Implausible
C6: Sector, subsector | D6: =IF('2. Proactive Completeness'!D6="", "", '2. Proactive Completeness'!D6) ->  | E6: =IF('4. Proactive accuracy'!E6="", "", '4. Proactive accuracy'!E6) ->  | M6: Other
C7: Project name | D7: =IF('2. Proactive Completeness'!D7="", "", '2. Proactive Completeness'!D7) ->  | E7: =IF('4. Proactive accuracy'!E7="", "", '4. Proactive accuracy'!E7) -> 
C8: Project Location | D8: =IF('2. Proactive Completeness'!D8="", "", '2. Proactive Completeness'!D8) ->  | E8: =IF('4. Proactive accuracy'!E8="", "", '4. Proactive accuracy'!E8) -> 
C9: Purpose | D9: =IF('2. Proactive Completeness'!D9="", "", '2. Proactive Completeness'!D9) ->  | E9: =IF('4. Proactive accuracy'!E9="", "", '4. Proactive accuracy'!E9) -> 
C10: Project description | D10: =IF('2. Proactive Completeness'!D10="", "", '2. Proactive Completeness'!D10) ->  | E10: =IF('4. Proactive accuracy'!E10="", "", '4. Proactive accuracy'!E10) -> 
A11: Project Preparation (7) | C11: Project Scope (main output) | D11: =IF('2. Proactive Completeness'!D11="", "", '2. Proactive Completeness'!D11) ->  | E11: =IF('4. Proactive accuracy'!E11="", "", '4. Proactive accuracy'!E11) -> 
C12: Environmental impact | D12: =IF('2. Proactive Completeness'!D12="", "", '2. Proactive Completeness'!D12) ->  | E12: =IF('4. Proactive accuracy'!E12="", "", '4. Proactive accuracy'!E12) -> 
C13: Land and settlement impact | D13: =IF('2. Proactive Completeness'!D13="", "", '2. Proactive Completeness'!D13) ->  | E13: =IF('4. Proactive accuracy'!E13="", "", '4. Proactive accuracy'!E13) -> 
C14: Contact details | D14: =IF('2. Proactive Completeness'!D14="", "", '2. Proactive Completeness'!D14) ->  | E14: =IF('4. Proactive accuracy'!E14="", "", '4. Proactive accuracy'!E14) -> 
C15: Funding sources | D15: =IF('2. Proactive Completeness'!D15="", "", '2. Proactive Completeness'!D15) ->  | E15: =IF('4. Proactive accuracy'!E15="", "", '4. Proactive accuracy'!E15) -> 
C16: Project Budget | D16: =IF('2. Proactive Completeness'!D16="", "", '2. Proactive Completeness'!D16) ->  | E16: =IF('4. Proactive accuracy'!E16="", "", '4. Proactive accuracy'!E16) -> 
C17: Project budget approval date | D17: =IF('2. Proactive Completeness'!D17="", "", '2. Proactive Completeness'!D17) ->  | E17: =IF('4. Proactive accuracy'!E17="", "", '4. Proactive accuracy'!E17) -> 
A18: Project Completion (6) | C18: Project status (current) | D18: =IF('2. Proactive Completeness'!D18="", "", '2. Proactive Completeness'!D18) ->  | E18: =IF('4. Proactive accuracy'!E18="", "", '4. Proactive accuracy'!E18) -> 
C19: Completion cost (projected) | D19: =IF('2. Proactive Completeness'!D19="", "", '2. Proactive Completeness'!D19) ->  | E19: =IF('4. Proactive accuracy'!E19="", "", '4. Proactive accuracy'!E19) -> 
C20: Completion date (projected) | D20: =IF('2. Proactive Completeness'!D20="", "", '2. Proactive Completeness'!D20) ->  | E20: =IF('4. Proactive accuracy'!E20="", "", '4. Proactive accuracy'!E20) -> 
C21: Scope at completion (projected) | D21: =IF('2. Proactive Completeness'!D21="", "", '2. Proactive Completeness'!D21) ->  | E21: =IF('4. Proactive accuracy'!E21="", "", '4. Proactive accuracy'!E21) -> 
C22: Reasons for project changes | D22: =IF('2. Proactive Completeness'!D22="", "", '2. Proactive Completeness'!D22) ->  | E22: =IF('4. Proactive accuracy'!E22="", "", '4. Proactive accuracy'!E22) -> 
C23: Reference to audit and evaluation reports | D23: =IF('2. Proactive Completeness'!D23="", "", '2. Proactive Completeness'!D23) ->  | E23: =IF('4. Proactive accuracy'!E23="", "", '4. Proactive accuracy'!E23) -> 
A24: Instructions: Enter data into pale cells. Click on cells for further instructions.
A26: CONTRACT: | E26: ASSESSOR: | H26: DATE:
A27: Contract Phase | C27: Contract data item | E27: Perceived accuracy | F27: Issue raised with PE | G27: Comment if "Other" | H27: Date raised | I27: Comment | K27: Date resolved | M27: Missing
A28: Tender Management (14) | C28: Procuring entity | D28: =IF('2. Proactive Completeness'!D28="", "", '2. Proactive Completeness'!D28) ->  | E28: =IF('4. Proactive accuracy'!E28="", "", '4. Proactive accuracy'!E28) -> 
C29: Procuring entity contact details | D29: =IF('2. Proactive Completeness'!D29="", "", '2. Proactive Completeness'!D29) ->  | E29: =IF('4. Proactive accuracy'!E29="", "", '4. Proactive accuracy'!E29) -> 
C30: Procurement process | D30: =IF('2. Proactive Completeness'!D30="", "", '2. Proactive Completeness'!D30) ->  | E30: =IF('4. Proactive accuracy'!E30="", "", '4. Proactive accuracy'!E30) -> 
C31: Contract type | D31: =IF('2. Proactive Completeness'!D31="", "", '2. Proactive Completeness'!D31) ->  | E31: =IF('4. Proactive accuracy'!E31="", "", '4. Proactive accuracy'!E31) -> 
C32: Contract status (current) | D32: =IF('2. Proactive Completeness'!D32="", "", '2. Proactive Completeness'!D32) ->  | E32: =IF('4. Proactive accuracy'!E32="", "", '4. Proactive accuracy'!E32) -> 
C33: Number of firms tendering | D33: =IF('2. Proactive Completeness'!D33="", "", '2. Proactive Completeness'!D33) ->  | E33: =IF('4. Proactive accuracy'!E33="", "", '4. Proactive accuracy'!E33) -> 
C34: Cost estimate | D34: =IF('2. Proactive Completeness'!D34="", "", '2. Proactive Completeness'!D34) ->  | E34: =IF('4. Proactive accuracy'!E34="", "", '4. Proactive accuracy'!E34) -> 
C35: Contract administration entity | D35: =IF('2. Proactive Completeness'!D35="", "", '2. Proactive Completeness'!D35) ->  | E35: =IF('4. Proactive accuracy'!E35="", "", '4. Proactive accuracy'!E35) -> 
C36: Contract title | D36: =IF('2. Proactive Completeness'!D36="", "", '2. Proactive Completeness'!D36) ->  | E36: =IF('4. Proactive accuracy'!E36="", "", '4. Proactive accuracy'!E36) -> 
C37: Contract firm(s) | D37: =IF('2. Proactive Completeness'!D37="", "", '2. Proactive Completeness'!D37) ->  | E37: =IF('4. Proactive accuracy'!E37="", "", '4. Proactive accuracy'!E37) -> 
C38: Contract price | D38: =IF('2. Proactive Completeness'!D38="", "", '2. Proactive Completeness'!D38) ->  | E38: =IF('4. Proactive accuracy'!E38="", "", '4. Proactive accuracy'!E38) -> 
C39: Contract scope of work | D39: =IF('2. Proactive Completeness'!D39="", "", '2. Proactive Completeness'!D39) ->  | E39: =IF('4. Proactive accuracy'!E39="", "", '4. Proactive accuracy'!E39) -> 
C40: Contract start date | D40: =IF('2. Proactive Completeness'!D40="", "", '2. Proactive Completeness'!D40) ->  | E40: =IF('4. Proactive accuracy'!E40="", "", '4. Proactive accuracy'!E40) -> 
C41: Contract duration | D41: =IF('2. Proactive Completeness'!D41="", "", '2. Proactive Completeness'!D41) ->  | E41: =IF('4. Proactive accuracy'!E41="", "", '4. Proactive accuracy'!E41) -> 
A42: Implementation (6) | C42: Variation to contract price | D42: =IF('2. Proactive Completeness'!D42="", "", '2. Proactive Completeness'!D42) ->  | E42: =IF('4. Proactive accuracy'!E42="", "", '4. Proactive accuracy'!E42) -> 
C43: Escalation of contract price | D43: =IF('2. Proactive Completeness'!D43="", "", '2. Proactive Completeness'!D43) ->  | E43: =IF('4. Proactive accuracy'!E43="", "", '4. Proactive accuracy'!E43) -> 
C44: Variation to contract duration | D44: =IF('2. Proactive Completeness'!D44="", "", '2. Proactive Completeness'!D44) ->  | E44: =IF('4. Proactive accuracy'!E44="", "", '4. Proactive accuracy'!E44) -> 
C45: Variation to contract scope | D45: =IF('2. Proactive Completeness'!D45="", "", '2. Proactive Completeness'!D45) ->  | E45: =IF('4. Proactive accuracy'!E45="", "", '4. Proactive accuracy'!E45) -> 
C46: Reasons for price changes | D46: =IF('2. Proactive Completeness'!D46="", "", '2. Proactive Completeness'!D46) ->  | E46: =IF('4. Proactive accuracy'!E46="", "", '4. Proactive accuracy'!E46) -> 
C47: Reasons for scope and duration changes | D47: =IF('2. Proactive Completeness'!D47="", "", '2. Proactive Completeness'!D47) ->  | E47: =IF('4. Proactive accuracy'!E47="", "", '4. Proactive accuracy'!E47) -> 
A48: Instructions: Enter data into pale cells. Click on cells for further instructions.
A50: Note: Taken together, the above tables provide an overview of the project and one contract, typically the main works contract. To assess accuracy rates on other contracts, use additional versions of the lower table only

Sheet 6. Reactive PE response
A1: Assessment of the responsiveness of reactive disclosure (project level, and contract level) | X1: WHEN SHEET IS UNLOCKED THESE COLUMNS CAN BE UNHIDDEN TO SHOW FURTHER DETAILS OF THE UNDERLYING SPREADSHEET
A2: PROJECT: | D2: ASSESSOR: | I2: DATE:
A3: Project Phase | C3: Project data item | D3: Date requested | E3: Date received | F3: Days | H3: Comment | K3: Assessors | M3: Average Assessment | N3: Adjusted Score(%) | O3: IDS | P3: OC4IDS
A4: Identification and Preparation (8) | C4: Multi-year programme & Budget | F4: =IF(AND(E4="", OR(N4<>"", H4<>"")), "?","") ->  | G4: =E4-D4 -> 0 | M4: =IF(AND(K4="", L4=""), "", AVERAGE(K4, L4)) ->  | N4: =IF(M4="", "", M4/3) ->  | O4: =IF(M4="", "", IF(M4=0, "No", "Yes")) -> 
C5: Project brief or Feasibility study | F5: =IF(AND(E5="", OR(N5<>"", H5<>"")), "?","") ->  | G5: 0 | M5: =IF(AND(K5="", L5=""), "", AVERAGE(K5, L5)) ->  | N5: =IF(M5="", "", M5/3) ->  | O5: =IF(M5="", "", IF(M5=0, "No", "Yes")) ->  | R5: =COUNTA(D4) -> 0 | S5: 0 | T5: =IF((AND(R5=1,S5=1)),"Y","") ->  | U5: =IF((AND(R5=1,S5=0)),"Y","") -> 
A6: % of Requested: | B6: =IFERROR(ROUND(V12/SUM(R5:R12),2),"-") -> - | C6: Environmental and social impact assessment | G6: 0 | R6: 0 | S6: 0 | T6: =IF((AND(R6=1,S6=1)),"Y","") ->  | U6: =IF((AND(R6=1,S6=0)),"Y","") -> 
A7: % of Total: | B7: =ROUND(V12/8,2) -> 0 | C7: Resettlement and compensation plan | G7: 0 | R7: 0 | S7: 0
A8: IDS Reactive Disclosure Rate: | B8: =SUM(N4:N11)/8 -> 0 | C8: Project officials and roles | G8: 0 | R8: 0 | S8: 0 | X8: 0
C9: Financial agreement | G9: 0 | R9: 0 | S9: 0 | X9: 1 | AB9: Yes
C10: Procurement plan | G10: 0 | M10: =IF(AND(K10="", L10=""), "", AVERAGE(K10, L10)) ->  | N10: =IF(M10="", "", M10/3) ->  | O10: =IF(M10="", "", IF(M10=0, "No", "Yes")) ->  | R10: 0 | S10: 0 | X10: 2 | AB10: No
C11: Project approval decision | G11: 0 | R11: 0 | S11: 0 | X11: 3
A12: Completion (6) | C12: Implementation progress reports | F12: =IF(AND(E12="", OR(N12<>"", H12<>"")), "?","") ->  | G12: =E12-D12 -> 0 | R12: 0 | S12: 0 | V12: =COUNTIF(T5:T12,"Y") -> 0 | W12: =COUNTIF(U5:U12,"Y") -> 0
C13: Budget amendment decision | G13: 0
A14: % of Requested: | B14: =IFERROR(ROUND(V19/SUM(R14:R19),2),"-") -> - | C14: Project completion report | G14: 0 | R14: =COUNTA(D12) -> 0 | S14: 0
A15: % of Total: | B15: =ROUND(V19/6,2) -> 0 | C15: Project evaluation report | G15: 0 | R15: 0 | S15: 0
A16: IDS Reactive Disclosure Rate: | B16: =SUM(N12:N17)/6 -> 0 | C16: Technical audit reports | G16: 0 | R16: 0 | S16: 0
C17: Financial audit reports | G17: 0 | R17: 0 | S17: 0
A18: REACTIVE RATES AT PROJECT LEVEL | C18: COMMENTS (Project level) | R18: 0 | S18: 0
A19: % of Requested: | B19: =IFERROR(ROUND(S20/R20,2),"-") -> - | R19: 0 | S19: 0 | V19: =COUNTIF(T14:T19,"Y") -> 0 | W19: =COUNTIF(U14:U19,"Y") -> 0
A20: % of Total: | B20: =ROUND(S20/14,2) -> 0 | R20: =SUM(R5:R19) -> 0 | S20: =SUM(S5:S19) -> 0 | V20: =SUM(V5:V19) -> 0 | W20: =SUM(W5:W19) -> 0
A21: IDS Reactive % | B21: =SUM(N4:N11,N12:N17)/14 -> 0
A22: NOTE: If reactive disclosure items have been disclosed proactively, add a comment, and enter the same date in the "date requested" and "date received" columns.
A24: CONTRACT: | D24: ASSESSOR: | I24: DATE:
A25: Contract Phase | C25: Contract data item | D25: Date requested | E25: Date received | F25: Days | H25: Comment | K25: Assessors | M25: Average Assessment | N25: Adjusted Score(%) | O25: IDS | P25: OC4IDS
A26: Tender Management (5) | C26: Contract officials and roles | F26: =IF(AND(E26="", OR(N26<>"", H26<>"")), "?","") ->  | G26: =E26-D26 -> 0 | M26: =IF(AND(K26="", L26=""), "", AVERAGE(K26, L26)) ->  | N26: =IF(M26="", "", M26/3) ->  | O26: =IF(M26="", "", IF(M26=0, "No", "Yes")) -> 
C27: Procurement method | G27: 0 | M27: =IF(AND(K27="", L27=""), "", AVERAGE(K27, L27)) ->  | N27: =IF(M27="", "", M27/3) ->  | O27: =IF(M27="", "", IF(M27=0, "No", "Yes")) -> 
A28: % of Requested: | B28: =IFERROR(ROUND(V33/SUM(R29:R33),2),"-") -> - | C28: Tender documents | G28: 0
A29: % of Total: | B29: =ROUND(V33/5,2) -> 0 | C29: Tender evaluation results | G29: 0 | R29: =COUNTA(D26) -> 0 | S29: 0
A30: IDS Reactive Disclosure Rate: | B30: =SUM(N26:N30)/6 -> 0 | C30: Project design report | G30: 0 | R30: 0 | S30: 0
A31: Contract (3) | C31: Contract agreement and conditions | F31: =IF(AND(E31="", OR(N31<>"", H31<>"")), "?","") ->  | G31: 0 | R31: 0 | S31: 0
A32: % of Requested: | B32: =IFERROR(ROUND(V37/SUM(R35:R37),2),"-") -> - | C32: Registration and ownership of firms | G32: 0 | R32: 0 | S32: 0
A33: % of Total: | B33: =ROUND(V37/3,2) -> 0 | C33: Specifications and drawings | G33: 0 | R33: 0 | S33: 0 | V33: =COUNTIF(T29:T33,"Y") -> 0 | W33: =COUNTIF(U29:U33,"Y") -> 0
A34: IDS Reactive Disclosure Rate: | B34: =SUM(N31:N33)/3 -> 0
A35: Implementation (5) | C35: List of variations, changes, amendments | F35: =IF(AND(E35="", OR(N35<>"", H35<>"")), "?","") ->  | G35: 0 | M35: =IF(AND(K35="", L35=""), "", AVERAGE(K35, L35)) ->  | N35: =IF(M35="", "", M35/3) ->  | O35: =IF(M35="", "", IF(M35=0, "No", "Yes")) ->  | R35: =COUNTA(D31) -> 0 | S35: 0
C36: List of escalation approvals | G36: 0 | R36: 0 | S36: 0
A37: % of Requested: | B37: =IFERROR(ROUND(V44/SUM(R40:R44),2),"-") -> - | C37: Quality assurance reports | G37: 0 | R37: 0 | S37: 0 | V37: =COUNTIF(T35:T37,"Y") -> 0 | W37: =COUNTIF(U35:U37,"Y") -> 0
A38: % of Total: | B38: =ROUND(V44/5,2) -> 0 | C38: Disbursement records or payment certificates | G38: 0 | M38: =IF(AND(K38="", L38=""), "", AVERAGE(K38, L38)) ->  | N38: =IF(M38="", "", M38/3) ->  | O38: =IF(M38="", "", IF(M38=0, "No", "Yes")) -> 
A39: IDS Reactive Disclosure Rate: | B39: =SUM(N35:N39)/5 -> 0 | C39: Contract amendments | G39: 0
A40: REACTIVE RATES AT CONTRACT LEVEL | C40: COMMENTS (Contract level) | R40: =COUNTA(D35) -> 0 | S40: 0
A41: % of Requested: | B41: =IFERROR(ROUND(S45/R45,2),"-") -> - | R41: 0 | S41: 0
A42: % of Total: | B42: =ROUND(S44/13,2) -> 0 | R42: 0 | S42: 0
A43: IDS Reactive % | B43: =SUM(N26:N30,N31:N34,N35:N39)/13 -> 0 | R43: 0 | S43: 0
A44: NOTE: If reactive disclosure items have been disclosed proactively, add a comment, and enter the same date in the "date requested" and "date received" columns. | R44: 0 | S44: 0 | V44: =COUNTIF(T40:T44,"Y") -> 0 | W44: =COUNTIF(U40:U44,"Y") -> 0
R45: =SUM(R29:R44) -> 0 | S45: =SUM(S29:S44) -> 0 | V45: =SUM(V29:V44) -> 0 | W45: =SUM(W29:W44) -> 0
A46: OVERALL REACTIVE RATES | C46: GENERAL COMMENTS
A47: % of Requested: | B47: =IFERROR(ROUND(S52/R52,2),"-") -> -
A48: % of Total: | B48: =ROUND(S52/27,2) -> 0
A49: Reactive %: | B49: =SUM(N4:N11,N12:N17,N26:N30,N31:N34,N35:N39)/27 -> 0
A50: Note: Taken together, the above tables provide an overview of the project and one contract, typically the main works contract. To assess accuracy rates on other contracts, use additional versions of the lower table only
R52: =R20+R45 -> 0 | S52: =S20+S45 -> 0 | V52: =V20+V45 -> 0 | W52: =W20+W45 -> 0

Sheet 7. Assessment of processes (hidden)
A1: Assessment of the strength of selected management processes | M1: WHEN SHEET IS UNLOCKED THESE COLUMNS CAN BE UNHIDDEN TO SHOW FURTHER DETAILS OF THE UNDERLYING SPREADSHEET
A2: CONTRACT: | C2: ASSESSOR: | G2: DATE: | I2: TOTALS | L2: High
A3: Instructions: Use the drop-down menus to select "High", "Medium", "Low" or "None" based on the criteria listed for that row. Then add a brief justification in the adjacent comment box | C3: Quality Management | E3: Environmental & Social Protection | G3: Health & Safety | I3: Rank | J3: % | L3: Medium
A4: Instructions to bidder | C4: Assesment | D4: Comment | E4: Assesment | F4: Comment | G4: Assesment | H4: Comment | L4: Low
A5: HIGH: (3 pts) | B5: The instructions to bidders include a specific requirement to comply with one or more recognised international standards. | I5: =(3*COUNTIF(B5:F5,"high")+2*COUNTIF(B5:F5,"medium")+COUNTIF(B5:F5,"low")) -> 0 | J5: =(3*COUNTIF(C5:G5,"high")+2*COUNTIF(C5:G5,"medium")+COUNTIF(C5:G5,"low"))/9 -> 0 | L5: NONE
A6: MEDIUM: (2 pt) | B6: The instructions to bidders include a specific requirement to comply with a relevant national standard
A7: LOW: (1 pt) | B7: The instructions to bidders include a specific requirement, but this falls short of the relevant national standard
A8: NONE: (0 pts) | B8: The instructions to bidders do not make any reference to this aspect of good practice
A9: Contract documents | C9: Assesment | D9: Comment | E9: Assesment | F9: Comment | G9: Assesment | H9: Comment
A10: HIGH: (3 pts) | B10: The contract includes a specific requirement to comply with one or more recognised international standards. | I10: =(3*COUNTIF(B10:F10,"high")+2*COUNTIF(B10:F10,"medium")+COUNTIF(B10:F10,"low")) -> 0 | J10: =(3*COUNTIF(C10:G10,"high")+2*COUNTIF(C10:G10,"medium")+COUNTIF(C10:G10,"low"))/9 -> 0
A11: MEDIUM: (2 pt) | B11: The contract includes a specific requirement to comply with a relevant national standard
A12: LOW: (1 pt) | B12: The contract includes a requirement, but this falls short of the relevant national standard
A13: NONE: (0 pts) | B13: The contract does not make any reference to this aspect of good practice
A14: Site visit | C14: Assesment | D14: Comment | E14: Assesment | F14: Comment | G14: Assesment | H14: Comment
A15: HIGH: (3 pts) | B15: Site staff indicate an awareness of what constitutes good practice and are observed as generally putting it into effect | I15: =(3*COUNTIF(B15:F15,"high")+2*COUNTIF(B15:F15,"medium")+COUNTIF(B15:F15,"low")) -> 0 | J15: =(3*COUNTIF(C15:G15,"high")+2*COUNTIF(C15:G15,"medium")+COUNTIF(C15:G15,"low"))/9 -> 0
A16: MEDIUM: (2 pt) | B16: Examples of good practice are observed, but also some evident shortcomings that are not being addressed
A17: LOW: (1 pt) | B17: There are indications of a low level of awareness of good practice, and multiple examples noted of bad practice
A18: NONE: (0 pts) | B18: Significant cases of bad practice are observed, and noted as being allowed to continue without being addressed by site management
A19: TOTALS | C19: =(3*COUNTIF(C4:C17,"high")+2*COUNTIF(C4:C17,"medium")+COUNTIF(C4:C17,"low")) -> 0 | E19: =(3*COUNTIF(E4:E17,"high")+2*COUNTIF(E4:E17,"medium")+COUNTIF(E4:E17,"low")) -> 0 | G19: =(3*COUNTIF(G4:G17,"high")+2*COUNTIF(G4:G17,"medium")+COUNTIF(G4:G17,"low")) -> 0
A20: % | C20: =(3*COUNTIF(C5:C18,"high")+2*COUNTIF(C5:C18,"medium")+COUNTIF(C5:C18,"low"))/9 -> 0 | E20: =(3*COUNTIF(E5:E18,"high")+2*COUNTIF(E5:E18,"medium")+COUNTIF(E5:E18,"low"))/9 -> 0 | G20: =(3*COUNTIF(G5:G18,"high")+2*COUNTIF(G5:G18,"medium")+COUNTIF(G5:G18,"low"))/9 -> 0

Sheet 8. Status of recommendations (hidden)
A1: Assessment of status of recommendations made in previous assurance reports | K1: Binary Yes/No | L1: Degree of implementation | S1: WHEN SHEET IS UNLOCKED THESE COLUMNS CAN BE UNHIDDEN TO SHOW FURTHER DETAILS OF THE UNDERLYING SPREADSHEET
A2: A: | B2: PROJECT Level: Has CoST previously made recommendations related to this PROJECT? Answer Yes or No in the box to the right. If Yes - then provide date and name of assurance report | E2: Yes/No | F2: Date | H2: Name/reference of assurance report, or other reference | K2: YES | L2: NONE | M2: Low | N2: Medium | O2: High
K3: NO
A5: Previous recommendations made at the level of this PROJECT | D5: Degree of implementation | H5: =IF(O17>0,"ERROR: Enter only one degree of implementation per recommendation","-") -> -
A6: Ref | B6: Summary of recommendation | C6: Directed at: | D6: None | E6: Low | F6: Medium | G6: High | H6: Comments | K6: Recommendation | L6: Directed at | M6: Degree of implementation | N6: Implementation assessed? | O6: Multiple assessments? | P6: Count of core data | Q6: NOT COMPLETE? | R6: NOT COMPLETE COUNT
A7: 1 | K7: =COUNTA(B7) -> 0 | L7: =COUNTA(C7) -> 0 | M7: =COUNTA(D7:G7) -> 0 | N7: =IF(M7>0,1,0) -> 0 | O7: =IF(M7>1,1,0) -> 0 | P7: =K7+L7+N7 -> 0 | Q7: =IF(P7=3,"OK",IF(P7=2,"1",IF(P7>0,"1"))) -> FALSE | R7: =IFERROR(VALUE(Q7),0) -> 0
A8: 2 | K8: 0 | L8: 0 | M8: 0 | N8: =IF(M8>0,1,0) -> 0 | O8: 0 | P8: =K8+L8+N8 -> 0 | Q8: =IF(P8=3,"OK",IF(P8=2,"1",IF(P8>0,"1"))) -> FALSE | R8: =IFERROR(VALUE(Q8),0) -> 0
A9: 3 | K9: 0 | L9: 0 | M9: 0 | N9: 0 | O9: 0 | P9: 0 | Q9: FALSE | R9: 0
A10: 4 | K10: 0 | L10: 0 | M10: 0 | N10: 0 | O10: 0 | P10: 0 | Q10: FALSE | R10: 0
A11: 5 | H11: =IF(O11>0,"?","") ->  | K11: 0 | L11: 0 | M11: 0 | N11: 0 | O11: 0 | P11: 0 | Q11: FALSE | R11: 0
A12: 6 | K12: 0 | L12: 0 | M12: 0 | N12: 0 | O12: 0 | P12: 0 | Q12: FALSE | R12: 0
A13: 7 | K13: 0 | L13: 0 | M13: 0 | N13: 0 | O13: 0 | P13: 0 | Q13: FALSE | R13: 0
A14: 8 | K14: 0 | L14: 0 | M14: 0 | N14: 0 | O14: 0 | P14: 0 | Q14: FALSE | R14: 0
A15: 9 | K15: 0 | L15: 0 | M15: 0 | N15: 0 | O15: 0 | P15: 0 | Q15: FALSE | R15: 0
A16: 10 | K16: 0 | L16: 0 | M16: 0 | N16: 0 | O16: 0 | P16: 0 | Q16: FALSE | R16: 0
A17: Totals | B17: =COUNTA(B7:B16) -> 0 | C17: 0 | D17: 0 | E17: 0 | F17: 0 | G17: 0 | I17: Further general comment (if any) about project-level recommendations | O17: =SUM(O7:O16) -> 0 | R17: =SUM(R7:S16) -> 0
A18: A message will appear to the right of this cell field if any record is missing essential data. Comments should be included where appropriate but are not considered essential. | C18: =IF(R17>0,"Incomplete records","-") -> - | D18: =IFERROR(D17/$B17,"-") -> - | E18: =IFERROR(E17/$B17,"-") -> - | F18: =IFERROR(F17/$B17,"-") -> - | G18: =IFERROR(G17/$B17,"-") -> -
A20: B: | B20: HIGHER Level: Has CoST previously made broader recommendations related to this SECTOR? Answer Yes or No in the box to the right. If Yes - then provide date and name of assurance report | E20: Yes/No | F20: Date | H20: Name/reference of assurance report, or other reference
E21: YES | H21: Fisrt Assurance Report
A23: Previous recommendations made at the level of this SECTOR | D23: Degree of implementation | H23: =IF(O35>0,"ERROR: Enter only one degree of implementation per recommendation (see * below) ","-") -> -
A24: Ref | B24: Summary of recommendation | C24: Directed at: | D24: None | E24: Low | F24: Med | G24: High | H24: Comments
A25: 1 | K25: =COUNTA(B25) -> 0 | L25: =COUNTA(C25) -> 0 | M25: =COUNTA(D25:G25) -> 0 | N25: =IF(M25>0,1,0) -> 0 | O25: =IF(M25>1,1,0) -> 0 | P25: =K25+L25+N25 -> 0 | Q25: =IF(P25=3,"OK",IF(P25=2,"1",IF(P25>0,"1"))) -> FALSE | R25: =IFERROR(VALUE(Q25),0) -> 0
A26: 2 | K26: 0 | L26: 0 | M26: 0 | N26: =IF(M26>0,1,0) -> 0 | O26: 0 | P26: =K26+L26+N26 -> 0 | Q26: =IF(P26=3,"OK",IF(P26=2,"1",IF(P26>0,"1"))) -> FALSE | R26: =IFERROR(VALUE(Q26),0) -> 0
A27: 3 | K27: 0 | L27: 0 | M27: 0 | N27: 0 | O27: 0 | P27: 0 | Q27: FALSE | R27: 0
A28: 4 | H28: =IF(O28>0,"?","") ->  | K28: 0 | L28: 0 | M28: 0 | N28: 0 | O28: 0 | P28: 0 | Q28: FALSE | R28: 0
A29: 5 | K29: 0 | L29: 0 | M29: 0 | N29: 0 | O29: 0 | P29: 0 | Q29: FALSE | R29: 0
A30: 6 | K30: 0 | L30: 0 | M30: 0 | N30: 0 | O30: 0 | P30: 0 | Q30: FALSE | R30: 0
A31: 7 | K31: 0 | L31: 0 | M31: 0 | N31: 0 | O31: 0 | P31: 0 | Q31: FALSE | R31: 0
A32: 8 | K32: 0 | L32: 0 | M32: 0 | N32: 0 | O32: 0 | P32: 0 | Q32: FALSE | R32: 0
A33: 9 | K33: 0 | L33: 0 | M33: 0 | N33: 0 | O33: 0 | P33: 0 | Q33: FALSE | R33: 0
A34: 10 | K34: 0 | L34: 0 | M34: 0 | N34: 0 | O34: 0 | P34: 0 | Q34: FALSE | R34: 0
A35: Totals | B35: =COUNTA(B25:B34) -> 0 | C35: 0 | D35: 0 | E35: 0 | F35: 0 | G35: 0 | I35: Further general comment (if any) about higher-level recommendations | O35: =SUM(O25:O34) -> 0 | R35: =SUM(R25:S34) -> 0
A36: A message will appear to the right of this cell field if any record is missing essential data. Comments should be included where appropriate but are not considered essential. | C36: =IF(R35>0,"Incomplete records","-") -> - | D36: =IFERROR(D35/$B35,"-") -> - | E36: =IFERROR(E35/$B35,"-") -> - | F36: =IFERROR(F35/$B35,"-") -> - | G36: =IFERROR(G35/$B35,"-") -> -

Sheet 9. Post assurance summary (hidden)
A1: Post assurance data summary | AA1: WHEN SHEET IS UNLOCKED THESE COLUMNS CAN BE UNHIDDEN TO SHOW FURTHER DETAILS OF THE UNDERLYING SPREADSHEET
A2: ASSURANCE PROCESS | K2: DATA ENTERED BY: | Q2: DATE:
A4: Record | B4: Project reference and name (repeat entries if necessary) | C4: Contract reference and name | E4: Procuring Entity | G4: Sub-sector | H4: No. of bidders | I4: Project status | J4: General scope | K4: Primary funding source | L4: Projected final cost (US$) | N4: Projected final duration (days) | P4: Deviation | R4: Further details and comments | T4: Ongoing or completed? | U4: sub-sectors | V4: Project Status | W4: General scope of contract | X4: Areas of concern? | Y4: Binary choices | Z4: Primary funding soucre
L5: At start | M5: during assurance | N5: At start | O5: During assurance | P5: Cost % | Q5: Time %
A6: A | P6: =IFERROR((M6-L6)/L6,0) -> 0 | Q6: =IFERROR((O6-N6)/N6,0) -> 0 | T6: Ongoing | U6: Education | V6: Ongoing | W6: Planning | X6: Project preparation | Y6: Yes | Z6: Local
A7: B | P7: 0 | Q7: =IFERROR((O7-N7)/N7,0) -> 0 | T7: Completed | U7: Health | V7: Suspended | W7: Design | X7: Adequacy of design | Z7: Regional
A8: C | P8: 0 | Q8: 0 | U8: Energy | V8: Completed | W8: Tender management | X8: Tender management | Z8: International (Loan)
A9: D | P9: =IFERROR((M9-L9)/L9,0) -> 0 | Q9: =IFERROR((O9-N9)/N9,0) -> 0 | U9: Solar energy | V9: Other (add comment) | W9: Services (Consultant) | X9: Contract management | Z9: International (Grant)
A10: E | P10: 0 | Q10: 0 | U10: Wind energy | W10: Works (Contractor) | X10: Quality management | Z10: PPP
A11: F | P11: 0 | Q11: 0 | U11: Hydropower energy | W11: M&E | X11: Safety
A12: G | P12: 0 | Q12: 0 | U12: Biomass energy | W12: Operation & Maintenance | X12: Security
A13: H | P13: 0 | Q13: 0 | U13: Geothermal energy | W13: Other (add comment) | X13: Other (add comment)
A14: I | P14: 0 | Q14: 0 | U14: Communications
A15: J | P15: 0 | Q15: 0 | U15: Water and waste
A16: Record (cont'd) | B16: Contract reference and name | C16: Areas of concern | I16: (for Works contracts only) Employment data disaggregated by gender | L16: Institutionalised community engagement? | N16: Related CoST social accountability measures (if any) involving beneficiaries | R16: Further details and comments | U16: Governance
C17: Main area (from drop down list) | E17: Secondary area (from drop-down list) | G17: Comment (including "other" as free text) | I17: Required in contract? | J17: Disclosed? | K17: Female % if disclosed | L17: Project preparation | M17: Project works | N17: Linked with assurance | O17: Following assurance | P17: Relevant findings | U17: Economy
A18: A | B18: =C6 -> 0 | U18: Culture,sports and recreation
A19: B | B19: =C7 -> 0 | U19: Transport
A20: C | B20: 0 | U20: Air Transport
A21: D | B21: 0 | U21: Water transport
A22: E | B22: 0 | U22: Rail transport
A23: F | B23: 0 | U23: Road transport
A24: G | B24: 0 | U24: Urban transport
A25: H | B25: 0 | U25: Low-carbon transport
A26: I | B26: 0 | U26: Social housing
A27: J | B27: 0 | U27: Natural resources
U28: Flood protection

Sheet 10. Tender management (hidden)
A1: Tender management process | Y1: WHEN SHEET IS UNLOCKED THESE COLUMNS CAN BE UNHIDDEN TO SHOW FURTHER DETAILS OF THE UNDERLYING SPREADSHEET
A2: ASSURANCE PROCESS | K2: DATA ENTERED BY: | N2: DATE:
A4: Record | B4: Project reference and name (repeat entries if necessary) | C4: Contract reference and name | E4: Procurement Entity | G4: Sub-sector | H4: Scope of works | I4: Unit Cost ($/unit) | N4: Time to Award (days) | R4: Ongoing or completed? | S4: sub-sectors | T4: Project Status | U4: General scope of contract | V4: Areas of concern? | W4: Binary choices | X4: Primary funding soucre
I5: Quantity | J5: Unit | K5: Contract Value ($) | L5: Unit Cost | M5: Project Scope description | N5: Evaluation Completion Date | O5: Award Notification Date | P5: Time to Award (days)
A6: A | L6: =IF(OR(K6="", I6=""), "", K6/I6) ->  | P6: =IF(O6-N6 <0, "Error: ensure both dates exist", O6 - N6) -> 0 | R6: Ongoing | S6: Education | T6: Ongoing | U6: Planning | V6: Project preparation | W6: Yes | X6: Local
A7: B | L7: =IF(OR(K7="", I7=""), "", K7/I7) ->  | P7: =IF(O7-N7 <0, "Error: ensure both dates exist", O7 - N7) -> 0 | R7: Completed | S7: Health | T7: Suspended | U7: Design | V7: Adequacy of design | X7: Regional
A8: C | P8: 0 | S8: Energy | T8: Completed | U8: Tender management | V8: Tender management | X8: International (Loan)
A9: D | P9: 0 | S9: Solar energy | T9: Other (add comment) | U9: Services (Consultant) | V9: Contract management | X9: International (Grant)
A10: E | P10: 0 | S10: Wind energy | U10: Works (Contractor) | V10: Quality management | X10: PPP
A11: F | P11: 0 | S11: Hydropower energy | U11: M&E | V11: Safety
A12: G | P12: 0 | S12: Biomass energy | U12: Operation & Maintenance | V12: Security
A13: H | P13: 0 | S13: Geothermal energy | U13: Rehabilitation | V13: Other (add comment)
A14: I | P14: 0 | S14: Communications | U14: Routine Maintenance
A15: J | P15: 0 | S15: Water and waste | U15: Periodic maintenancee
S16: Governance | U16: Upgrading
S17: Economy | U17: Emergency repairs
S18: Culture,sports and recreation | U18: Demolition/ Decommissioning
S19: Transport | U19: Other (add comment)
S20: Air Transport
S21: Water transport
S22: Rail transport
S23: Road transport
S24: Urban transport
S25: Low-carbon transport
S26: Social housing
S27: Natural resources
S28: Flood protection

Sheet 16. Linear Progress (hidden)
A1: Example of a Linear Progress Monitoring Tool used weekly on a major road project
O2: to | BM2: as on: | BZ2: 2019-10-10
AV4: date of previous report: | BZ4: 2019-10-03 | CQ4: =BZ2-BZ4 -> 7 | CT4: days since previous report
E7: 1 | F7: 2 | G7: 3 | H7: 4 | I7: 5 | J7: 6 | K7: 7 | L7: 8 | M7: 9 | N7: 10 | O7: 11 | P7: 12 | Q7: 13 | R7: 14 | S7: 15 | T7: 16 | U7: 17 | V7: 18 | W7: 19 | X7: 20 | Y7: 21 | Z7: 22 | AA7: 23 | AB7: 24 | AC7: 25 | AD7: 26 | AE7: 27 | AF7: 28 | AG7: 29 | AH7: 30 | AI7: 31 | AJ7: 32 | AK7: 33 | AL7: 34 | AM7: 35 | AN7: 36 | AO7: 37 | AP7: 38 | AQ7: 39 | AR7: 40 | AS7: 41 | AT7: 42 | AU7: 43 | AV7: 44 | AW7: 45 | AX7: 46 | AY7: 47 | AZ7: 48 | BA7: 49 | BB7: 50 | BC7: 51 | BD7: 52 | BE7: 53 | BF7: 54 | BG7: 55 | BH7: 56 | BI7: 57 | BJ7: 58 | BK7: 59 | BL7: 60 | BM7: 61 | BN7: 62 | BO7: 63 | BP7: 64 | BQ7: 65 | BR7: 66 | BS7: 67 | BT7: 68 | BU7: 69 | BV7: 70 | BW7: 71 | BX7: 72 | BY7: 73 | BZ7: 74 | CA7: 75 | CB7: 76 | CC7: 77 | CD7: 78 | CE7: 79 | CF7: 80 | CG7: 81 | CH7: 82 | CI7: 83 | CJ7: 84 | CK7: 85 | CL7: 86 | CN7: 85 | CO7: 86 | CR7: 89 | CS7: 90 | CW7: cumulative | DA7: Production rate | DX7: 122
A8: CHAINAGE (km) | C8: 0 | M8: 10 | W8: 20 | AG8: 30 | AQ8: 40 | BA8: 50 | BK8: 60 | BU8: 70 | CE8: 80 | CO8: 90 | CU8: % | CW8: This | CY8: Previous
A9: Access & clearance | CT9: =CW9/90 -> 1 | CW9: 90 | CY9: 90 | DA9: =CW9-CY9 -> 0 | DB9: km/wk
E10: 1 | F10: 1 | G10: 1 | H10: 1 | I10: 1 | J10: 1 | K10: 1 | L10: 1 | M10: 1 | N10: 1 | O10: 1 | P10: 1 | Q10: 1 | R10: 1 | S10: 1 | T10: 1 | U10: 1 | V10: 1 | W10: 1 | X10: 1 | Y10: 1 | Z10: 1 | AA10: 1 | AB10: 1 | AC10: 1 | AD10: 1 | AE10: 1 | AF10: 1 | AG10: 1 | AH10: 1 | AI10: 1 | AJ10: 1 | AK10: 1 | AL10: 1 | AM10: 1 | AN10: 1 | AO10: 1 | AP10: 1 | AQ10: 1 | AR10: 1 | AS10: 1 | AT10: 1 | AU10: 1 | AV10: 1 | AW10: 1 | AX10: 1 | AY10: 1 | AZ10: 1 | BA10: 1 | BB10: 1 | BC10: 1 | BD10: 1 | BE10: 1 | BF10: 1 | BG10: 1 | BH10: 1 | BI10: 1 | BJ10: 1 | BK10: 1 | BL10: 1 | BM10: 1 | BN10: 1 | BO10: 1 | BP10: 1 | BQ10: 1 | BR10: 1 | BS10: 1 | BT10: 1 | BU10: 1 | BV10: 1 | BW10: 1 | BX10: 1 | BY10: 1 | BZ10: 1 | CA10: 1 | CB10: 1 | CC10: 1 | CD10: 1 | CE10: 1 | CF10: 1 | CG10: 1 | CH10: 1 | CI10: 1 | CJ10: 1 | CK10: 1 | CL10: 1 | CM10: 1 | CN10: 1 | CO10: 1 | CP10: 1 | CQ10: =SUM(E10:CP10)+86 -> 176
D11: progress since previous approved report ->
A12: Culverts | B12: Planned | C12: Pipe | J12: 1 | L12: 1 | N12: 1 | P12: 1 | Q12: 2 | R12: 1 | S12: 1 | T12: 4 | V12: 2 | Z12: 1 | AB12: 1 | AC12: 1 | AE12: 1 | AF12: 3 | AG12: 2 | AH12: 1 | AJ12: 2 | AK12: 2 | AL12: 2 | AO12: 1 | AP12: 2 | AS12: 1 | AV12: 1 | AW12: 1 | AY12: 1 | AZ12: 1 | BB12: 2 | BD12: 1 | BE12: 1 | BF12: 2 | BH12: 1 | BK12: 1 | BM12: 1 | BN12: 1 | BO12: 1 | BP12: 2 | BQ12: 1 | BU12: 1 | BV12: 1 | BW12: 2 | BX12: 1 | BY12: 1 | BZ12: 2 | CB12: 1 | CF12: 2 | CG12: 3 | CH12: 1 | CI12: 1 | CJ12: 1 | CK12: 1 | CQ12: =SUM(E12:CP12) -> 70 | CT12: =CW12/125 -> 0.944 | CW12: 118 | CY12: 118 | DA12: =7*110*((CW12-CY12)/CQ4)/SUM(CQ12:CS13) -> 0 | DB12: culv per week
C13: Box | E13: 1 | F13: 1 | G13: 1 | I13: 1 | K13: 1 | M13: 1 | S13: 1 | T13: 1 | U13: 1 | W13: 1 | X13: 1 | AA13: 1 | AC13: 1 | AE13: 1 | AF13: 1 | AI13: 1 | AM13: 1 | AN13: 3 | AO13: 1 | AQ13: 1 | AR13: 1 | AU13: 1 | AW13: 1 | AX13: 2 | BB13: 1 | BD13: 1 | BF13: 1 | BG13: 2 | BI13: 2 | BJ13: 2 | BK13: 2 | BL13: 1 | BM13: 2 | BR13: 2 | BS13: 1 | BT13: 2 | CB13: 1 | CD13: 1 | CE13: 2 | CH13: 1 | CI13: 1 | CJ13: 1 | CL13: 2 | CN13: 1 | CO13: 2 | CQ13: =SUM(E13:CP13) -> 58
B14: Actual | C14: Pipe | J14: 1 | L14: 1 | N14: 1 | P14: 1 | Q14: 2 | R14: 1 | S14: 1 | T14: 4 | V14: 2 | Z14: 1 | AB14: 1 | AC14: 1 | AE14: 1 | AF14: 3 | AG14: 2 | AH14: 1 | AJ14: 2 | AK14: =1+1 -> 2 | AL14: 2 | AO14: 1 | AP14: =1+1 -> 2 | AS14: 1 | AV14: 1 | AW14: 1 | AY14: 1 | AZ14: 1 | BB14: =1+1 -> 2 | BD14: 1 | BE14: 1 | BF14: =1+1 -> 2 | BH14: 1 | BK14: 1 | BM14: 1 | BN14: 1 | BO14: 1 | BP14: =1+1 -> 2 | BQ14: 1 | BU14: 1 | BV14: 1 | BW14: =1+1 -> 2 | BX14: 1 | BY14: 1 | BZ14: =1+1 -> 2 | CB14: 1 | CF14: =1+1 -> 2 | CG14: =1+1+1 -> 3 | CH14: 1 | CI14: 1 | CJ14: 1 | CK14: 1 | CQ14: =SUM(E14:CP14) -> 70
C15: Box | E15: 1 | F15: 1 | G15: 1 | I15: 1 | K15: 1 | M15: 1 | S15: 1 | T15: 1 | U15: 1 | W15: 1 | X15: 1 | AA15: 1 | AC15: 1 | AE15: 1 | AF15: 1 | AI15: 1 | AM15: 1 | AN15: =1+1+1 -> 3 | AO15: 1 | AQ15: 1 | AR15: 1 | AU15: 1 | AW15: 1 | AX15: 2 | BB15: 1 | BD15: 1 | BF15: 1 | BG15: =1+1 -> 2 | BI15: =1+1 -> 2 | BJ15: =1+1 -> 2 | BK15: =1+1 -> 2 | BL15: 1 | BM15: 2 | BR15: =1+1 -> 2 | BS15: 1 | BT15: =1+1 -> 2 | CB15: 1 | CD15: 1 | CE15: =1+1 -> 2 | CH15: 1 | CI15: 1 | CJ15: 1 | CL15: =1+1 -> 2 | CN15: 1 | CO15: =1+1 -> 2 | CQ15: =SUM(E15:CP15) -> 58
E16: =(E14+E15)/(E12+E13) -> 1 | F16: =(F14+F15)/(F12+F13) -> 1 | G16: 1 | I16: 1 | J16: 1 | K16: 1 | L16: 1 | M16: 1 | N16: 1 | P16: 1 | Q16: 1 | R16: 1 | S16: 1 | T16: 1 | U16: 1 | V16: 1 | W16: 1 | X16: 1 | Z16: 1 | AA16: 1 | AB16: 1 | AC16: 1 | AE16: 1 | AF16: 1 | AG16: 1 | AH16: 1 | AI16: 1 | AJ16: 1 | AK16: 1 | AL16: 1 | AM16: 1 | AN16: 1 | AO16: 1 | AP16: 1 | AQ16: 1 | AR16: 1 | AS16: 1 | AU16: 1 | AV16: 1 | AW16: 1 | AX16: 1 | AY16: 1 | AZ16: 1 | BB16: 1 | BD16: 1 | BE16: 1 | BF16: 1 | BG16: 1 | BH16: 1 | BI16: 1 | BJ16: 1 | BK16: 1 | BL16: 1 | BM16: 1 | BN16: 1 | BO16: 1 | BP16: 1 | BQ16: 1 | BR16: =(BR14+BR15)/(BR12+BR13) -> 1 | BS16: 1 | BT16: 1 | BU16: 1 | BV16: 1 | BW16: 1 | BX16: 1 | BY16: 1 | BZ16: 1 | CB16: 1 | CD16: 1 | CE16: 1 | CF16: 1 | CG16: 1 | CH16: 1 | CI16: 1 | CJ16: 1 | CK16: 1 | CL16: 1 | CQ16: =SUM(CQ14:CS15) -> 128
D17: progress since previous approved report -> | E17: 0 | F17: 0 | G17: 0 | I17: 0 | J17: 0 | L17: 0 | N17: 0 | P17: 0 | Q17: 0 | R17: 0 | S17: 0 | T17: 0 | U17: 0 | V17: 0 | W17: 0 | X17: 0 | Z17: 0 | AB17: 0 | AE17: 0 | AF17: 0 | AG17: 0 | AH17: 0 | AI17: 0 | AK17: 0 | AM17: 0 | AN17: 0 | CJ17: 0 | CK17: 0 | CL17: 0 | CN17: 0 | CO17: 0
A18: Bridges | B18: Planned bridges | O18: 1 | Q18: 1 | V18: 1 | AE18: 1 | AK18: 1 | AP18: 1 | AQ18: 1 | CP18: 1 | CT18: =CW18/313 -> 0.9265175719 | CW18: 290 | CY18: 286 | DA18: =CW18-CY18 -> 4 | DB18: m/wk
O19: 0.9 | Q19: 0.92 | V19: 0.92 | AE19: 0.94 | AK19: 0.92 | AP19: 1 | AQ19: 0.4 | CP19: 0.94 | CQ19: =SUM(E19:CP19) -> 6.94
D20: progress since previous approved report -> | O20: 0.1 | Q20: 0.1 | V20: 0.1 | AE20: 0.1 | AK20: 0.1 | AP20: 0.1 | AQ20: 0.1
A21: Embankment | CT21: =CW21/90 -> 0.98 | CW21: 88.2 | CY21: 88 | DA21: =CW21-CY21 -> 0.2 | DB21: km/wk
E22: 1 | F22: 1 | G22: 1 | H22: 1 | I22: 1 | J22: 1 | K22: 1 | L22: 1 | M22: 1 | N22: 1 | O22: 1 | P22: 1 | Q22: 1 | R22: 1 | S22: 1 | T22: 1 | U22: 1 | V22: 1 | W22: 1 | X22: 1 | Y22: 1 | Z22: 1 | AA22: 1 | AB22: 1 | AC22: 1 | AD22: 1 | AE22: 1 | AF22: 1 | AG22: 1 | AH22: 1 | AI22: 1 | AJ22: 1 | AK22: 1 | AL22: 1 | AM22: 1 | AN22: 1 | AO22: 1 | AP22: 0.5 | AQ22: 0.5 | AR22: 1 | AS22: 1 | AT22: 1 | AU22: 1 | AV22: 0.9 | AW22: 1 | AX22: 1 | AY22: 1 | AZ22: 1 | BA22: 1 | BB22: 1 | BC22: 1 | BD22: 1 | BE22: 1 | BF22: 1 | BG22: 1 | BH22: 1 | BI22: 1 | BJ22: 1 | BK22: 1 | BL22: 1 | BM22: 1 | BN22: 1 | BO22: 1 | BP22: 1 | BQ22: 1 | BR22: 1 | BS22: 1 | BT22: 1 | BU22: 1 | BV22: 1 | BW22: 1 | BX22: 1 | BY22: 1 | BZ22: 1 | CA22: 1 | CB22: 1 | CC22: 1 | CD22: 1 | CE22: 1 | CF22: 1 | CG22: 1 | CH22: 1 | CI22: 1 | CJ22: 1 | CK22: 1 | CL22: 1 | CM22: 1 | CN22: 1 | CO22: 1 | CP22: 1 | CQ22: =SUM(E22:CP22)+68 -> 156.9
D23: progress since previous approved report -> | E23: 0
A24: Prime Coat | CT24: =CW24/90 -> 0.5188888889 | CW24: =CQ25 -> 46.7 | CY24: 46.7 | DA24: =CW24-CY24 -> 0 | DB24: km/wk
E25: 1 | F25: 1 | G25: 1 | H25: 1 | I25: 1 | J25: 1 | K25: 1 | L25: 1 | M25: 1 | N25: 0.8 | O25: 1 | P25: 0.8 | Q25: 0.8 | R25: 1 | S25: 1 | T25: 0.8 | U25: 1 | V25: 0.6 | W25: 1 | X25: 1 | Y25: 1 | Z25: 1 | AA25: 1 | AB25: 1 | AC25: 0.8 | BQ25: 0.6 | BR25: 1 | BS25: 1 | BT25: 1 | BU25: 1 | BV25: 1 | BW25: 1 | BX25: 1 | BY25: 1 | BZ25: 1 | CA25: 1 | CB25: 1 | CC25: 1 | CD25: 1 | CE25: 1 | CF25: 1 | CG25: 1 | CH25: 1 | CI25: 1 | CJ25: 0.5 | CQ25: =SUM(E25:CP25)+4 -> 46.7
D26: progress since previous approved report -> | E26: =E25-#REF! ->  | G26: =G25-#REF! ->  | I26: =I25-#REF! ->  | J26: =J25-#REF! ->  | K26: =K25-#REF! ->  | N26: =N25-#REF! ->  | P26: =P25-#REF! ->  | Q26: =Q25-#REF! ->  | R26: =R25-#REF! ->  | S26: =S25-#REF! ->  | T26: =T25-#REF! ->  | U26: =U25-#REF! ->  | V26: =V25-#REF! ->  | W26: =W25-#REF! ->  | X26: =X25-#REF! ->  | Y26: =Y25-#REF! ->  | Z26: =Z25-#REF! ->  | AA26: =AA25-#REF! ->  | AB26: =AB25-#REF! ->  | AC26: =AC25-#REF! ->  | AD26: =AD25-#REF! ->  | AE26: =AE25-#REF! ->  | AF26: =AF25-#REF! ->  | AG26: =AG25-#REF! ->  | AH26: =AH25-#REF! ->  | AI26: =AI25-#REF! ->  | AJ26: =AJ25-#REF! ->  | AK26: =AK25-#REF! ->  | AL26: =AL25-#REF! ->  | AM26: =AM25-#REF! ->  | AN26: =AN25-#REF! ->  | AO26: =AO25-#REF! ->  | AP26: =AP25-#REF! ->  | AQ26: =AQ25-#REF! ->  | AR26: =AR25-#REF! ->  | AS26: =AS25-#REF! ->  | AT26: =AT25-#REF! ->  | AU26: =AU25-#REF! ->  | AV26: =AV25-#REF! ->  | AW26: =AW25-#REF! ->  | AX26: =AX25-#REF! ->  | AY26: =AY25-#REF! ->  | AZ26: =AZ25-#REF! ->  | BA26: =BA25-#REF! ->  | BB26: =BB25-#REF! ->  | BC26: =BC25-#REF! ->  | BD26: =BD25-#REF! ->  | BF26: =BF25-#REF! ->  | BG26: =BG25-#REF! ->  | BH26: =BH25-#REF! ->  | BI26: =BI25-#REF! ->  | BJ26: =BJ25-#REF! ->  | BK26: =BK25-#REF! ->  | BL26: =BL25-#REF! ->  | BM26: =BM25-#REF! ->  | BN26: =BN25-#REF! ->  | BO26: =BO25-#REF! ->  | BP26: =BP25-#REF! ->  | BQ26: =BQ25-#REF! ->  | BR26: =BR25-#REF! ->  | BS26: =BS25-#REF! ->  | BT26: =BT25-#REF! ->  | BU26: =BU25-#REF! ->  | BV26: =BV25-#REF! ->  | BW26: =BW25-#REF! ->  | BX26: =BX25-#REF! ->  | BY26: =BY25-#REF! ->  | BZ26: =BZ25-#REF! ->  | CA26: =CA25-#REF! ->  | CB26: =CB25-#REF! ->  | CC26: =CC25-#REF! ->  | CD26: =CD25-#REF! ->  | CE26: =CE25-#REF! ->  | CF26: =CF25-#REF! ->  | CG26: =CG25-#REF! ->  | CH26: =CH25-#REF! ->  | CI26: =CI25-#REF! ->  | CK26: =CK25-#REF! ->  | CL26: =CL25-#REF! ->  | CM26: =CM25-#REF! ->  | CN26: =CN25-#REF! ->  | CO26: =CO25-#REF! ->  | CP26: =CP25-#REF! -> 
A27: Sub-base | CT27: =CW27/90 -> 0.8422222222 | CW27: 75.8 | CY27: 75.4 | DA27: =CW27-CY27 -> 0.4 | DB27: km/wk
E28: 1 | F28: 1 | G28: 1 | H28: 1 | I28: 1 | J28: 1 | K28: 1 | L28: 1 | M28: 1 | N28: 1 | O28: 1 | P28: 1 | Q28: 1 | R28: 1 | S28: 1 | T28: 1 | U28: 1 | V28: 1 | W28: 1 | X28: 1 | Y28: 1 | Z28: 1 | AA28: 1 | AB28: 1 | AC28: 1 | AD28: 1 | AE28: 1 | AF28: 1 | AG28: 1 | AH28: 1 | AI28: 1 | AJ28: 1 | AK28: 1 | AL28: 1 | AM28: 1 | AN28: 1 | AO28: 1 | AP28: 0.8 | AQ28: 0.8 | AR28: 0.6 | AS28: 1 | AT28: 1 | AU28: 1 | AV28: 0.8 | AW28: 0.8 | AX28: 1 | AY28: 1 | AZ28: 1 | BA28: 1 | BB28: 1 | BC28: 1 | BD28: 1 | BE28: 1 | BF28: 1 | BG28: 1 | BH28: 1 | BI28: 1 | BJ28: 1 | BK28: 1 | BL28: 1 | BM28: 1 | BN28: 1 | BO28: 1 | BP28: 1 | BQ28: 1 | BR28: 1 | BS28: 1 | BT28: 1 | BU28: 1 | BV28: 1 | BW28: 1 | BX28: 1 | BY28: 1 | BZ28: 1 | CA28: 1 | CB28: 1 | CC28: 1 | CD28: 1 | CE28: 1 | CF28: 1 | CG28: 1 | CH28: 1 | CI28: 1 | CJ28: 1 | CK28: 1 | CL28: 1 | CM28: 1 | CN28: 1 | CO28: 1 | CP28: 1 | CQ28: =SUM(E28:CP28) -> 88.8
D29: progress since previous approved report -> | E29: =E28-#REF! ->  | F29: =F28-#REF! ->  | G29: =G28-#REF! ->  | H29: =H28-#REF! ->  | I29: =I28-#REF! ->  | J29: =J28-#REF! ->  | K29: =K28-#REF! ->  | L29: =L28-#REF! ->  | M29: =M28-#REF! ->  | N29: =N28-#REF! ->  | O29: =O28-#REF! ->  | P29: =P28-#REF! ->  | Q29: =Q28-#REF! ->  | R29: =R28-#REF! ->  | S29: =S28-#REF! ->  | T29: =T28-#REF! ->  | U29: =U28-#REF! ->  | V29: =V28-#REF! ->  | W29: =W28-#REF! ->  | X29: =X28-#REF! ->  | Y29: =Y28-#REF! ->  | Z29: =Z28-#REF! ->  | AA29: =AA28-#REF! ->  | AB29: =AB28-#REF! ->  | AC29: =AC28-#REF! ->  | AD29: =AD28-#REF! ->  | AE29: =AE28-#REF! ->  | AF29: =AF28-#REF! ->  | AG29: =AG28-#REF! ->  | AH29: =AH28-#REF! ->  | AI29: =AI28-#REF! ->  | AJ29: =AJ28-#REF! ->  | AK29: =AK28-#REF! ->  | AL29: =AL28-#REF! ->  | AM29: =AM28-#REF! ->  | AN29: =AN28-#REF! ->  | AO29: =AO28-#REF! ->  | AP29: 0.8 | AQ29: 0.8 | AR29: 0.6 | AS29: 1 | AT29: 1 | AU29: 1 | AV29: 0.8 | AW29: 0.8 | AX29: 0.2 | AY29: 0.4 | AZ29: =AZ28-#REF! ->  | BA29: 0.6 | BB29: =BB28-#REF! ->  | BC29: =BC28-#REF! ->  | BD29: 0.4 | BE29: =BE28-#REF! ->  | BF29: =BF28-#REF! ->  | BG29: =BG28-#REF! ->  | BH29: =BH28-#REF! ->  | BI29: =BI28-#REF! ->  | BJ29: =BJ28-#REF! ->  | BK29: =BK28-#REF! ->  | BL29: =BL28-#REF! ->  | BM29: =BM28-#REF! ->  | BN29: =BN28-#REF! ->  | BO29: =BO28-#REF! ->  | BP29: =BP28-#REF! ->  | BQ29: =BQ28-#REF! ->  | BR29: =BR28-#REF! ->  | BS29: =BS28-#REF! ->  | BT29: =BT28-#REF! ->  | BU29: =BU28-#REF! ->  | BV29: =BV28-#REF! ->  | BW29: =BW28-#REF! ->  | BX29: =BX28-#REF! ->  | BY29: =BY28-#REF! ->  | BZ29: =BZ28-#REF! ->  | CA29: =CA28-#REF! ->  | CB29: =CB28-#REF! ->  | CC29: =CC28-#REF! ->  | CD29: =CD28-#REF! ->  | CE29: =CE28-#REF! ->  | CF29: =CF28-#REF! ->  | CG29: =CG28-#REF! ->  | CH29: =CH28-#REF! ->  | CI29: =CI28-#REF! ->  | CJ29: =CJ28-#REF! ->  | CK29: =CK28-#REF! ->  | CL29: =CL28-#REF! ->  | CM29: =CM28-#REF! ->  | CN29: =CN28-#REF! ->  | CO29: =CO28-#REF! ->  | CP29: =CP28-#REF! -> 
A30: Cement Treated Base (CTB) | CT30: =ROUND(CW30/90,2) -> 0.58 | CW30: 52.5 | CY30: 50.5 | DA30: =CW30-CY30 -> 2 | DB30: km/wk
E31: 1 | F31: 1 | G31: 1 | H31: 1 | I31: 1 | J31: 1 | K31: 1 | L31: 1 | M31: 1 | N31: 1 | O31: 1 | P31: 0.8 | Q31: 0.8 | R31: 1 | S31: 1 | T31: 1 | U31: 1 | V31: 0.6 | W31: 1 | X31: 1 | Y31: 1 | Z31: 1 | AA31: 1 | AB31: 1 | AC31: 1 | AD31: 1 | AE31: 1 | AF31: 1 | AG31: 0.8 | BO31: 0.6 | BP31: 1 | BQ31: 1 | BR31: 1 | BS31: 1 | BT31: 1 | BU31: 1 | BV31: 1 | BW31: 1 | BX31: 1 | BY31: 1 | BZ31: 1 | CA31: 1 | CB31: 1 | CC31: 1 | CD31: 1 | CE31: 1 | CF31: 1 | CG31: 1 | CH31: 1 | CI31: 1 | CJ31: 1 | CK31: 1 | CL31: 1 | CM31: 1 | CN31: 1 | CO31: 1 | CP31: 1 | CQ31: =SUM(E31:CP31) -> 55.6
D32: progress since previous approved report -> | E32: =E31-#REF! ->  | F32: =F31-#REF! ->  | G32: =G31-#REF! ->  | H32: =H31-#REF! ->  | I32: =I31-#REF! ->  | J32: =J31-#REF! ->  | K32: =K31-#REF! ->  | L32: =L31-#REF! ->  | M32: =M31-#REF! ->  | N32: =N31-#REF! ->  | O32: =O31-#REF! ->  | P32: =P31-#REF! ->  | Q32: =Q31-#REF! ->  | R32: =R31-#REF! ->  | S32: =S31-#REF! ->  | T32: =T31-#REF! ->  | U32: =U31-#REF! ->  | V32: =V31-#REF! ->  | W32: =W31-#REF! ->  | X32: =X31-#REF! ->  | Y32: =Y31-#REF! ->  | Z32: =Z31-#REF! ->  | AA32: =AA31-#REF! ->  | AB32: =AB31-#REF! ->  | AC32: =AC31-#REF! ->  | AD32: =AD31-#REF! ->  | AE32: =AE31-#REF! ->  | AF32: =AF31-#REF! ->  | AG32: 0.8 | AH32: =AH31-#REF! ->  | AI32: =AI31-#REF! ->  | AJ32: =AJ31-#REF! ->  | AK32: =AK31-#REF! ->  | AL32: =AL31-#REF! ->  | AM32: =AM31-#REF! ->  | AN32: =AN31-#REF! ->  | AO32: =AO31-#REF! ->  | AP32: =AP31-#REF! ->  | AQ32: =AQ31-#REF! ->  | AR32: =AR31-#REF! ->  | AS32: =AS31-#REF! ->  | AT32: =AT31-#REF! ->  | AU32: =AU31-#REF! ->  | AV32: =AV31-#REF! ->  | AW32: =AW31-#REF! ->  | AX32: =AX31-#REF! ->  | AY32: =AY31-#REF! ->  | AZ32: =AZ31-#REF! ->  | BA32: =BA31-#REF! ->  | BB32: =BB31-#REF! ->  | BC32: =BC31-#REF! ->  | BD32: =BD31-#REF! ->  | BE32: =BE31-#REF! ->  | BF32: =BF31-#REF! ->  | BG32: =BG31-#REF! ->  | BH32: =BH31-#REF! ->  | BI32: =BI31-#REF! ->  | BJ32: =BJ31-#REF! ->  | BK32: =BK31-#REF! ->  | BL32: =BL31-#REF! ->  | BM32: =BM31-#REF! ->  | BN32: =BN31-#REF! ->  | BO32: 0.4 | BP32: =BP31-#REF! ->  | BQ32: =BQ31-#REF! ->  | BR32: =BR31-#REF! ->  | BS32: =BS31-#REF! ->  | BT32: =BT31-#REF! ->  | BU32: =BU31-#REF! ->  | BV32: =BV31-#REF! ->  | BW32: =BW31-#REF! ->  | BX32: =BX31-#REF! ->  | BY32: =BY31-#REF! ->  | BZ32: =BZ31-#REF! ->  | CA32: =CA31-#REF! ->  | CB32: =CB31-#REF! ->  | CC32: =CC31-#REF! ->  | CD32: =CD31-#REF! ->  | CE32: =CE31-#REF! ->  | CF32: =CF31-#REF! ->  | CG32: =CG31-#REF! ->  | CH32: =CH31-#REF! ->  | CI32: =CI31-#REF! ->  | CJ32: =CJ31-#REF! ->  | CK32: =CK31-#REF! ->  | CL32: =CL31-#REF! ->  | CM32: =CM31-#REF! ->  | CN32: =CN31-#REF! ->  | CO32: =CO31-#REF! ->  | CP32: =CP31-#REF! -> 
A33: Asphaltic Concrete (AC) | CT33: =CW33/90 -> 0.1388888889 | CW33: 12.5 | CY33: 8.2 | DA33: =CW33-CY33 -> 4.3 | DB33: km/wk
E34: 0.2 | BX34: 0.2 | BY34: 1 | BZ34: 1 | CA34: 1 | CB34: 1 | CC34: 1 | CD34: 1 | CE34: 1 | CF34: 1 | CG34: 1 | CH34: 1 | CI34: 1 | CJ34: 0.8 | CQ34: =SUM(E34:CP34) -> 12.2
D35: progress since previous approved report -> | E35: 0.2 | F35: =F34-#REF! ->  | G35: =G34-#REF! ->  | H35: =H34-#REF! ->  | I35: =I34-#REF! ->  | J35: =J34-#REF! ->  | K35: =K34-#REF! ->  | L35: =L34-#REF! ->  | M35: =M34-#REF! ->  | N35: =N34-#REF! ->  | O35: =O34-#REF! ->  | P35: =P34-#REF! ->  | Q35: =Q34-#REF! ->  | R35: =R34-#REF! ->  | S35: =S34-#REF! ->  | T35: =T34-#REF! ->  | U35: =U34-#REF! ->  | V35: =V34-#REF! ->  | W35: =W34-#REF! ->  | X35: =X34-#REF! ->  | Y35: =Y34-#REF! ->  | Z35: =Z34-#REF! ->  | AA35: =AA34-#REF! ->  | AB35: =AB34-#REF! ->  | AC35: =AC34-#REF! ->  | AD35: =AD34-#REF! ->  | AE35: =AE34-#REF! ->  | AF35: =AF34-#REF! ->  | AG35: =AG34-#REF! ->  | AH35: =AH34-#REF! ->  | AI35: =AI34-#REF! ->  | AJ35: =AJ34-#REF! ->  | AK35: =AK34-#REF! ->  | AL35: =AL34-#REF! ->  | AM35: =AM34-#REF! ->  | AN35: =AN34-#REF! ->  | AO35: =AO34-#REF! ->  | AP35: =AP34-#REF! ->  | AQ35: =AQ34-#REF! ->  | AR35: =AR34-#REF! ->  | AS35: =AS34-#REF! ->  | AT35: =AT34-#REF! ->  | AU35: =AU34-#REF! ->  | AV35: =AV34-#REF! ->  | AW35: =AW34-#REF! ->  | AX35: =AX34-#REF! ->  | AY35: =AY34-#REF! ->  | AZ35: =AZ34-#REF! ->  | BA35: =BA34-#REF! ->  | BB35: =BB34-#REF! ->  | BC35: =BC34-#REF! ->  | BD35: =BD34-#REF! ->  | BE35: =BE34-#REF! ->  | BF35: =BF34-#REF! ->  | BG35: =BG34-#REF! ->  | BH35: =BH34-#REF! ->  | BI35: =BI34-#REF! ->  | BJ35: =BJ34-#REF! ->  | BK35: =BK34-#REF! ->  | BL35: =BL34-#REF! ->  | BM35: =BM34-#REF! ->  | BN35: =BN34-#REF! ->  | BO35: =BO34-#REF! ->  | BP35: =BP34-#REF! ->  | BQ35: =BQ34-#REF! ->  | BR35: =BR34-#REF! ->  | BS35: =BS34-#REF! ->  | BT35: =BT34-#REF! ->  | BU35: =BU34-#REF! ->  | BV35: =BV34-#REF! ->  | BW35: =BW34-#REF! ->  | BX35: =BX34-#REF! ->  | BY35: =BY34-#REF! ->  | BZ35: =BZ34-#REF! ->  | CA35: =CA34-#REF! ->  | CB35: =CB34-#REF! ->  | CC35: =CC34-#REF! ->  | CD35: =CD34-#REF! ->  | CE35: =CE34-#REF! ->  | CF35: =CF34-#REF! ->  | CG35: =CG34-#REF! ->  | CH35: =CH34-#REF! ->  | CI35: =CI34-#REF! ->  | CJ35: 0.6 | CK35: =CK34-#REF! ->  | CL35: =CL34-#REF! ->  | CM35: =CM34-#REF! ->  | CN35: =CN34-#REF! ->  | CO35: =CO34-#REF! ->  | CP35: =CP34-#REF! -> 
A36: Shoulders | CT36: =CW36/90 -> 0.2333333333 | CW36: 21 | CY36: 21 | DA36: =CW36-CY36 -> 0 | DB36: km/wk
CQ37: =SUM(E37:CP37) -> 0
D38: progress since previous approved report -> | E38: =E37-#REF! ->  | F38: =F37-#REF! ->  | G38: =G37-#REF! ->  | H38: =H37-#REF! ->  | I38: =I37-#REF! ->  | J38: =J37-#REF! ->  | K38: =K37-#REF! ->  | L38: =L37-#REF! ->  | M38: =M37-#REF! ->  | N38: =N37-#REF! ->  | O38: =O37-#REF! ->  | P38: =P37-#REF! ->  | Q38: =Q37-#REF! ->  | R38: =R37-#REF! ->  | S38: =S37-#REF! ->  | T38: =T37-#REF! ->  | U38: =U37-#REF! ->  | V38: =V37-#REF! ->  | W38: =W37-#REF! ->  | X38: =X37-#REF! ->  | Y38: =Y37-#REF! ->  | Z38: =Z37-#REF! ->  | AA38: =AA37-#REF! ->  | AB38: =AB37-#REF! ->  | AC38: =AC37-#REF! ->  | AD38: =AD37-#REF! ->  | AE38: =AE37-#REF! ->  | AF38: =AF37-#REF! ->  | AG38: =AG37-#REF! ->  | AH38: =AH37-#REF! ->  | AI38: =AI37-#REF! ->  | AJ38: =AJ37-#REF! ->  | AK38: =AK37-#REF! ->  | AL38: =AL37-#REF! ->  | AM38: =AM37-#REF! ->  | AN38: =AN37-#REF! ->  | AO38: =AO37-#REF! ->  | AP38: =AP37-#REF! ->  | AQ38: =AQ37-#REF! ->  | AR38: =AR37-#REF! ->  | AS38: =AS37-#REF! ->  | AT38: =AT37-#REF! ->  | AU38: =AU37-#REF! ->  | AV38: =AV37-#REF! ->  | AW38: =AW37-#REF! ->  | AX38: =AX37-#REF! ->  | AY38: =AY37-#REF! ->  | AZ38: =AZ37-#REF! ->  | BA38: =BA37-#REF! ->  | BB38: =BB37-#REF! ->  | BC38: =BC37-#REF! ->  | BD38: =BD37-#REF! ->  | BE38: =BE37-#REF! ->  | BF38: =BF37-#REF! ->  | BG38: =BG37-#REF! ->  | BH38: =BH37-#REF! ->  | BI38: =BI37-#REF! ->  | BJ38: =BJ37-#REF! ->  | BK38: =BK37-#REF! ->  | BL38: =BL37-#REF! ->  | BM38: =BM37-#REF! ->  | BN38: =BN37-#REF! ->  | BO38: =BO37-#REF! ->  | BP38: =BP37-#REF! ->  | BQ38: =BQ37-#REF! ->  | BR38: =BR37-#REF! ->  | BS38: =BS37-#REF! ->  | BT38: =BT37-#REF! ->  | BU38: =BU37-#REF! ->  | BV38: =BV37-#REF! ->  | BW38: =BW37-#REF! ->  | BX38: =BX37-#REF! ->  | BY38: =BY37-#REF! ->  | BZ38: =BZ37-#REF! ->  | CA38: =CA37-#REF! ->  | CB38: =CB37-#REF! ->  | CC38: =CC37-#REF! ->  | CD38: =CD37-#REF! ->  | CE38: =CE37-#REF! ->  | CF38: =CF37-#REF! ->  | CG38: =CG37-#REF! ->  | CH38: =CH37-#REF! ->  | CI38: =CI37-#REF! ->  | CJ38: =CJ37-#REF! ->  | CK38: =CK37-#REF! ->  | CL38: =CL37-#REF! ->  | CM38: =CM37-#REF! ->  | CN38: =CN37-#REF! ->  | CO38: =CO37-#REF! ->  | CP38: =CP37-#REF! -> 
A39: Finishing | B39: (lines, signs, barriers etc) | CT39: =CW39/90 -> 0 | CW39: =CQ40 -> 0 | CY39: 0 | DA39: =CW39-CY39 -> 0 | DB39: km/wk
CQ40: =SUM(E40:CP40) -> 0
D41: progress since previous approved report -> | E41: =E40-#REF! ->  | F41: =F40-#REF! ->  | G41: =G40-#REF! ->  | H41: =H40-#REF! ->  | I41: =I40-#REF! ->  | J41: =J40-#REF! ->  | K41: =K40-#REF! ->  | L41: =L40-#REF! ->  | M41: =M40-#REF! ->  | N41: =N40-#REF! ->  | O41: =O40-#REF! ->  | P41: =P40-#REF! ->  | Q41: =Q40-#REF! ->  | R41: =R40-#REF! ->  | S41: =S40-#REF! ->  | T41: =T40-#REF! ->  | U41: =U40-#REF! ->  | V41: =V40-#REF! ->  | W41: =W40-#REF! ->  | X41: =X40-#REF! ->  | Y41: =Y40-#REF! ->  | Z41: =Z40-#REF! ->  | AA41: =AA40-#REF! ->  | AB41: =AB40-#REF! ->  | AC41: =AC40-#REF! ->  | AD41: =AD40-#REF! ->  | AE41: =AE40-#REF! ->  | AF41: =AF40-#REF! ->  | AG41: =AG40-#REF! ->  | AH41: =AH40-#REF! ->  | AI41: =AI40-#REF! ->  | AJ41: =AJ40-#REF! ->  | AK41: =AK40-#REF! ->  | AL41: =AL40-#REF! ->  | AM41: =AM40-#REF! ->  | AN41: =AN40-#REF! ->  | AO41: =AO40-#REF! ->  | AP41: =AP40-#REF! ->  | AQ41: =AQ40-#REF! ->  | AR41: =AR40-#REF! ->  | AS41: =AS40-#REF! ->  | AT41: =AT40-#REF! ->  | AU41: =AU40-#REF! ->  | AV41: =AV40-#REF! ->  | AW41: =AW40-#REF! ->  | AX41: =AX40-#REF! ->  | AY41: =AY40-#REF! ->  | AZ41: =AZ40-#REF! ->  | BA41: =BA40-#REF! ->  | BB41: =BB40-#REF! ->  | BC41: =BC40-#REF! ->  | BD41: =BD40-#REF! ->  | BE41: =BE40-#REF! ->  | BF41: =BF40-#REF! ->  | BG41: =BG40-#REF! ->  | BH41: =BH40-#REF! ->  | BI41: =BI40-#REF! ->  | BJ41: =BJ40-#REF! ->  | BK41: =BK40-#REF! ->  | BL41: =BL40-#REF! ->  | BM41: =BM40-#REF! ->  | BN41: =BN40-#REF! ->  | BO41: =BO40-#REF! ->  | BP41: =BP40-#REF! ->  | BQ41: =BQ40-#REF! ->  | BR41: =BR40-#REF! ->  | BS41: =BS40-#REF! ->  | BT41: =BT40-#REF! ->  | BU41: =BU40-#REF! ->  | BV41: =BV40-#REF! ->  | BW41: =BW40-#REF! ->  | BX41: =BX40-#REF! ->  | BY41: =BY40-#REF! ->  | BZ41: =BZ40-#REF! ->  | CA41: =CA40-#REF! ->  | CB41: =CB40-#REF! ->  | CC41: =CC40-#REF! ->  | CD41: =CD40-#REF! ->  | CE41: =CE40-#REF! ->  | CF41: =CF40-#REF! ->  | CG41: =CG40-#REF! ->  | CH41: =CH40-#REF! ->  | CI41: =CI40-#REF! ->  | CJ41: =CJ40-#REF! ->  | CK41: =CK40-#REF! ->  | CL41: =CL40-#REF! ->  | CM41: =CM40-#REF! ->  | CN41: =CN40-#REF! ->  | CO41: =CO40-#REF! ->  | CP41: =CP40-#REF! -> 
A42: KEY COMMENTS | CT42: 0.5642 | CY42: cumulative progress as reported
E43: 1 | F43: 2 | J43: 3 | CI43: 2 | CJ43: 1 | CK43: 3
A45: 1. Improved compaction and thickness being achieved on AC. Construction traffic running on section not yet approved. | CT45: 0.3805 | CY45: Interim Payment Certificate (IPC) progress as reported
A46: 2. Stricter quality control for AC has this week resulted in longer mixing times at AMP, & imporoved AC thickness and compaction.
A47: 3. Frequent breakdowns of CTB plant, and of haulage equipment. *** studying reasons for differences in CTB properties from km 6 and km 85
A48: 4. Bitumen tested on site. Results encouraging, but final approval will depend on consistency with ******* lab results (expected by mid-October) | CT48: Approved: | CY48: Borrow Pit reinstatement as reported
A49: 5. Safety issues noted related to working at height, and extreme exposure to cement dust | CT49: 21 | CW49: No.
A50: Discrepancies | CT50: =CT49/42 -> 0.5 | CW50: % of 42
A51: Contractor reports 23 km of shoulders, yet show none on their own linear progress chart. This is probably because it is awaiting testing | CT51: Approved: | CY51: Lined drains progress as reported
A52: Contractor reports 21 Borrow Pits restored, from a total of 42. Consultant reports 10 approved, from a total of 54, with substantial progress on 27 | CT52: 0 | CW52: No.
A53: Contractor reported % progress for each item appears to be rounded up - eg 58.3% progress for CTB is reported as 59% | CT53: =CT52/16 -> 0 | CW53: % of 16 km
A54: Narrative Comments.
A55: Progress inhibited this week due to breakdowns (CTB), long haul distances (AC) and improved quality control
A58: Critical Activities. | E58: CTB and Asphalt Paving Works. Stone pitching / lined drains could become critical if methodology not agreed soon.
A59: Instructions for completion:
A60: a) Data related to progress achieved should be entered in cells shaded as | AS60: Other fields are locked and should not be changed
A61: b) For each activity, each cell represents 1 km. To reflect % completion of each activity on each 1 km length, enter a figure between 0 (no progress) and 1 (complete)
A62: c) To make key comments related to specific chainages, enter the comment number under the chainage, cross-referred to the comment itself in the comments section.
A63: d) Reallocations between box culverts and pipe culverts are indictated by an | AH63: X | AJ63: to denote a culvert that is no longer being provided.
A64: e) SHADING KEY: | C64: Works not required, or completed under prior contract: | AY64: 1 - 50%: | AZ64: 0.1 | BG64: 51-99%: | BP64: 0.6 | BW64: 100%: | CF64: 1
A65: f) Further instructions will appear in top left corner of screen when cell is selected
A67: Prepared by: | C67: IE. Minor discrepancies remain | X67: Date: | AE67: 2019-10-10 | AW67: Approved by: | CI67: Date:

Sheet 12. Social Sustainability (hidden)
A1: Assessment of social sustainability | U1: WHEN SHEET IS UNLOCKED THESE COLUMNS CAN BE UNHIDDEN TO SHOW FURTHER DETAILS OF THE UNDERLYING SPREADSHEET
A2: PROJECT: | D2: ASSESSOR: | F2: DATE: | J2: Summary of Social sustainability disclosure | Q2: H/M/L | R2: Ease of Access | S2: Group Ease of Access | T2: Rounded
A3: Project Phase | C3: Project data item | D3: Data disclosed | E3: Location of data | F3: Ease of Access | G3: IDS | H3: OC4IDS | J3: Project Phase | K3: IDS (%) | L3: OC4IDS (%) | M3: Ease of Access (%) | P3: Yes | Q3: High
A4: Project Identification (5) | C4: Number of beneficiaries | G4: =IF(D4="", "", IF(OR(D4=0, D4="Not disclosed"), "No", "Yes")) ->  | J4: Project Identification (5) | K4: =ROUND(COUNTIF(G4:G8,"YES")/5,2) -> 0 | L4: =ROUND(COUNTIF(H4:H8,"YES")/5,2) -> 0 | M4: =IFERROR(IF(T8=3,"High",IF(T8=2,"Medium",IF(T8=1,"Low",IF(T8=0,"-")))),"-") -> - | P4: No | Q4: Medium | R4: =IF(F4="High",3,IF(F4="Medium",2,IF(F4="Low",1,IF(F4="","")))) -> 
C5: Inclusive design | J5: Tender Management (2) | K5: =ROUND(COUNTIF(G9:G10,"YES")/2,2) -> 0 | L5: =ROUND(COUNTIF(H9:H10,"YES")/2,2) -> 0 | M5: =IFERROR(IF(T10=3,"High",IF(T10=2,"Medium",IF(T10=1,"Low",IF(T10=0,"-")))),"-") -> - | Q5: Low
C6: Indigenous land | J6: Implementation (7) | K6: =ROUND(COUNTIF(G11:G17,"YES")/7,2) -> 0 | L6: =ROUND(COUNTIF(H11:H17,"YES")/7,2) -> 0 | M6: =IFERROR(IF(T17=3,"High",IF(T17=2,"Medium",IF(T17=1,"Low",IF(T17=0,"-")))),"-") -> -
C7: Public consultation meetings | J7: Operation & Maintenance (1) | K7: =ROUND(COUNTIF(G18,"YES")/1,2) -> 0 | L7: =ROUND(COUNTIF(H18,"YES")/1,2) -> 0 | M7: =IFERROR(IF(T18=3,"High",IF(T18=2,"Medium",IF(T18=1,"Low",IF(T18=0,"-")))),"-") -> -
C8: Land compensation budget | S8: =SUM(R4:R8)/(0.001+COUNT(R4:R8)) -> 0 | T8: =ROUND(S8,0) -> 0
A9: Tender Management (2) | C9: Labor budget
C10: Health and safety certifications | S10: =SUM(R9:R10)/(0.001+COUNT(R9:R10)) -> 0 | T10: =ROUND(S10,0) -> 0
A11: Implementation (7) | C11: Inclusive implementation
C12: Public consultation meetings
C13: Labor obligations
C14: Workers’ accidents
C15: Construction materials testing
C16: Building inspections
C17: Jobs generated | S17: =SUM(R11:R17)/(0.001+COUNT(R11:R17)) -> 0 | T17: =ROUND(S17,0) -> 0
A18: Operation & Maintenance (1) | C18: Jobs generated | S18: =SUM(R18)/(0.001+COUNT(R18)) -> 0 | T18: =ROUND(S18,0) -> 0
A19: Instructions: Enter data into pale cells. Click on cells for further instructions. Navigate to the data dictionary from the dashboard to obtain detailed descriptions of each of the data points | D19: Summary of ease of access and disclosure rates: (at above contract level only) | F19: =IFERROR(IF(T19=3,"High",IF(T19=2,"Medium",IF(T19=1,"Low",IF(T19=0,"-")))),0) -> - | G19: =ROUND(COUNTIF(G4:G18,"YES")/15,2) -> 0 | H19: =ROUND(COUNTIF(H4:H18,"YES")/15,2) -> 0 | S19: =AVERAGE(S8:S18) -> 0 | T19: =ROUND(S19,0) -> 0

Sheet 11. Economic Sustainability (hidden)
A1: Assessment of the economic and financial sustainability | Q1: H/M/L | R1: Ease of Access | S1: Group Ease of Access | T1: Rounded
A2: PROJECT: | D2: ASSESSOR: | F2: DATE: | J2: Summary of Economic & Financial sustainability disclosure | P2: Yes | Q2: High
A3: Project Phase | C3: Project data item | D3: Data disclosed | E3: Location of data | F3: Ease of Access | G3: IDS | H3: OC4IDS | J3: Project Phase | K3: IDS (%) | L3: OC4IDS (%) | M3: Ease of Access (%) | P3: No | Q3: Medium
A4: Identification (1) | C4: Procurement Strategy | G4: =IF(D4="", "", IF(OR(D4=0, D4="Not disclosed"), "No", "Yes")) ->  | J4: Identification (1) | K4: =ROUND(COUNTIF(G4:G4,"YES")/1,2) -> 0 | L4: =ROUND(COUNTIF(H4:H4,"YES")/1,2) -> 0 | M4: =IFERROR(IF(T4=3,"High",IF(T4=2,"Medium",IF(T4=1,"Low",IF(T4=0,"-")))),"-") -> - | Q4: Low | R4: =IF(F4="High",3,IF(F4="Medium",2,IF(F4="Low",1,IF(F4="","")))) ->  | S4: =SUM(R4)/(0.001+COUNT(R4)) -> 0 | T4: =ROUND(S4,0) -> 0
A5: Preparation (8) | C5: Life-cycle cost | G5: =IF(D5="", "", IF(OR(D5=0, D5="Not disclosed"), "No", "Yes")) ->  | J5: Preparation (8) | K5: =ROUND(COUNTIF(G5:G12,"YES")/8,2) -> 0 | L5: =ROUND(COUNTIF(H5:H12,"YES")/8,2) -> 0 | M5: =IFERROR(IF(T12=3,"High",IF(T12=2,"Medium",IF(T12=1,"Low",IF(T12=0,"-")))),"-") -> - | R5: =IF(F5="High",3,IF(F5="Medium",2,IF(F5="Low",1,IF(F5="","")))) -> 
C6: Life-cycle cost calculation methodology | J6: Implementation (3) | K6: =ROUND(COUNTIF(G13:G15,"YES")/3,2) -> 0 | L6: =ROUND(COUNTIF(H13:H15,"YES")/3,2) -> 0 | M6: =IFERROR(IF(T15=3,"High",IF(T15=2,"Medium",IF(T15=1,"Low",IF(T15=0,"-")))),"-") -> - | R6: =IF(F6="High",3,IF(F6="Medium",2,IF(F6="Low",1,IF(F6="","")))) -> 
C7: Funding source for preparation | J7: Operation & Maintenance (3) | K7: =ROUND(COUNTIF(G16:G18,"YES")/3,2) -> 0 | L7: =ROUND(COUNTIF(H16:H18,"YES")/3,2) -> 0 | M7: =IFERROR(IF(T18=3,"High",IF(T18=2,"Medium",IF(T18=1,"Low",IF(T18=0,"-")))),"-") -> -
C8: Budget for preparation
C9: Cost-benefit analysis
C10: Value for money
C11: Asset lifetime
C12: Budget projections | S12: =SUM(R9:R12)/(0.001+COUNT(R9:R12)) -> 0 | T12: =ROUND(S12,0) -> 0
A13: Implementation (3) | C13: Funding source for implementation
C14: Budget for implementation
C15: Budget shortfall | R15: =IF(F15="High",3,IF(F15="Medium",2,IF(F15="Low",1,IF(F15="","")))) ->  | S15: =SUM(R12:R15)/(0.001+COUNT(R12:R15)) -> 0 | T15: =ROUND(S15,0) -> 0
A16: Operation & Maintenance (3) | C16: Funding source for maintenance
C17: Budget for maintenance
C18: Maintenance plan or program | S18: =SUM(R16:R18)/(0.001+COUNT(R16:R18)) -> 0 | T18: =ROUND(S18,0) -> 0
A19: Instructions: Enter data into pale cells. Click on cells for further instructions. Navigate to the data dictionary from the dashboard to obtain detailed descriptions of each of the data points | D19: Summary of ease of access and disclosure rates: | F19: =IFERROR(IF(T19=3,"High",IF(T19=2,"Medium",IF(T19=1,"Low",IF(T19=0,"-")))),0) -> - | G19: =ROUND(COUNTIF(G4:G18,"YES")/15,2) -> 0 | H19: =ROUND(COUNTIF(H4:H18,"YES")/15,2) -> 0 | S19: =AVERAGE(S4:S18) -> 0 | T19: =ROUND(S19,0) -> 0

Sheet 13. Institution Sustainability (hidden)
A1: Assessment of institutional sustainability | T1: WHEN SHEET IS UNLOCKED THESE COLUMNS CAN BE UNHIDDEN TO SHOW FURTHER DETAILS OF THE UNDERLYING SPREADSHEET
A2: PROJECT: | D2: ASSESSOR: | F2: DATE: | J2: Summary of Institutional sustainability disclosure | P2: H/M/L | Q2: Ease of Access | R2: Group Ease of Access | S2: Rounded
A3: Project Phase | C3: Project data item | D3: Data disclosed | E3: Location of data | F3: Ease of Access | G3: IDS | H3: OC4IDS | J3: Project Phase | K3: IDS (%) | L3: OC4IDS (%) | M3: Ease of Access (%) | O3: Yes | P3: High
A4: Project Identification (5) | C4: Policy coherence | G4: =IF(D4="", "", IF(OR(D4=0, D4="Not disclosed"), "No", "Yes")) ->  | J4: Project Identification (5) | K4: =ROUND(COUNTIF(G4:G8,"YES")/5,2) -> 0 | L4: =ROUND(COUNTIF(H4:H8,"YES")/5,2) -> 0 | M4: =IFERROR(IF(S8=3,"High",IF(S8=2,"Medium",IF(S8=1,"Low",IF(S8=0,"-")))),"-") -> - | O4: No | P4: Medium | Q4: =IF(F4="High",3,IF(F4="Medium",2,IF(F4="Low",1,IF(F4="","")))) -> 
C5: Freedom-of-information requests | J5: Preparation (3) | K5: =ROUND(COUNTIF(G9:G11,"YES")/3,2) -> 0 | L5: =ROUND(COUNTIF(H9:H11,"YES")/3,2) -> 0 | M5: =IFERROR(IF(S11=3,"High",IF(S11=2,"Medium",IF(S11=1,"Low",IF(S11=0,"-")))),"-") -> - | P5: Low | Q5: =IF(F5="High",3,IF(F5="Medium",2,IF(F5="Low",1,IF(F5="","")))) -> 
C6: Answers to freedom-of-information requests | J6: Tender Management (5) | K6: =ROUND(COUNTIF(G12:G16,"YES")/5,2) -> 0 | L6: =ROUND(COUNTIF(H12:H16,"YES")/5,2) -> 0 | M6: =IFERROR(IF(S16=3,"High",IF(S16=2,"Medium",IF(S16=1,"Low",IF(S16=0,"-")))),"-") -> -
C7: Lobbying transparency | J7: Implementation (4) | K7: =ROUND(COUNTIF(G17:G20,"YES")/4,2) -> 0 | L7: =ROUND(COUNTIF(H17:H20,"YES")/4,2) -> 0 | M7: =IFERROR(IF(S20=3,"High",IF(S20=2,"Medium",IF(S20=1,"Low",IF(S20=0,"-")))),"-") -> -
C8: Sustainable subsectors | J8: Completion (2) | K8: =ROUND(COUNTIF(G21:G22,"YES")/2,2) -> 0 | L8: =ROUND(COUNTIF(H21:H22,"YES")/2,2) -> 0 | M8: =IFERROR(IF(S22=3,"High",IF(S22=2,"Medium",IF(S22=1,"Low",IF(S22=0,"-")))),"-") -> - | R8: =SUM(Q4:Q8)/(0.001+COUNT(Q4:Q8)) -> 0 | S8: =ROUND(R8,0) -> 0
A9: Preparation (3) | C9: Freedom-of-information requests | J9: Operation & Maintenance (2) | K9: =ROUND(COUNTIF(G23:G24,"YES")/2,2) -> 0 | L9: =ROUND(COUNTIF(H23:H24,"YES")/2,2) -> 0 | M9: =IFERROR(IF(S24=3,"High",IF(S24=2,"Medium",IF(S24=1,"Low",IF(S24=0,"-")))),"-") -> -
C10: Answers to freedom-of-information requests | J10: Decommission (2) | K10: =ROUND(COUNTIF(G25:G26,"YES")/2,2) -> 0 | L10: =ROUND(COUNTIF(H25:H26,"YES")/2,2) -> 0 | M10: =IFERROR(IF(S26=3,"High",IF(S26=2,"Medium",IF(S26=1,"Low",IF(S26=0,"-")))),"-") -> -
C11: Risk management plans | R11: =SUM(Q9:Q11)/(0.001+COUNT(Q9:Q11)) -> 0 | S11: =ROUND(R11,0) -> 0
A12: Tender Management (5) | C12: Freedom-of-information requests
C13: Answers to freedom-of-information requests
C14: Beneficial ownership
C15: Sustainability criteria
C16: Anti-corruption certifications | R16: =SUM(Q12:Q16)/(0.001+COUNT(Q12:Q16)) -> 0 | S16: =ROUND(R16,0) -> 0
A17: Implementation (4) | C17: Freedom-of-information requests
C18: Answers to freedom-of-information requests
C19: Independent monitoring
C20: Performance monitoring | R20: =SUM(Q17:Q20)/(0.001+COUNT(Q17:Q20)) -> 0 | S20: =ROUND(R20,0) -> 0
A21: Completion (2) | C21: Freedom-of-information requests
C22: Answers to freedom-of-information requests | R22: =SUM(Q21:Q22)/(0.001+COUNT(Q21:Q22)) -> 0 | S22: =ROUND(R22,0) -> 0
A23: Operation & Maintenance (2) | C23: Freedom-of-information requests
C24: Answers to freedom-of-information requests | R24: =SUM(Q23:Q24)/(0.001+COUNT(Q23:Q24)) -> 0 | S24: =ROUND(R24,0) -> 0
A25: Decommision (2) | C25: Freedom-of-information requests
C26: Answers to freedom-of-information requests | R26: =SUM(Q25:Q26)/(0.001+COUNT(Q25:Q26)) -> 0 | S26: =ROUND(R26,0) -> 0
A27: Instructions: Enter data into pale cells. Click on cells for further instructions. Navigate to the data dictionary from the dashboard to obtain detailed descriptions of each of the data points | D27: Summary of ease of access and disclosure rates: | F27: =IFERROR(IF(S27=3,"High",IF(S27=2,"Medium",IF(S27=1,"Low",IF(S27=0,"-")))),0) -> - | G27: =ROUND(COUNTIF(G4:G26,"YES")/23,2) -> 0 | H27: =ROUND(COUNTIF(H4:H26,"YES")/23,2) -> 0 | R27: =AVERAGE(R4:R26) -> 0 | S27: =ROUND(R27,0) -> 0

Sheet 14. Environment Sustainability (hidden)
A1: Assessment of Environmental sustainability | T1: WHEN SHEET IS UNLOCKED THESE COLUMNS CAN BE UNHIDDEN TO SHOW FURTHER DETAILS OF THE UNDERLYING SPREADSHEET
A2: PROJECT: | D2: ASSESSOR: | F2: DATE: | J2: Summary of Environmental sustainability disclosure | P2: H/M/L | Q2: Ease of Access | R2: Group Ease of Access | S2: Rounded
A3: Project Phase | C3: Project data item | D3: Data disclosed | E3: Location of data | F3: Ease of Access | G3: IDS | H3: OC4IDS | J3: Project Phase | K3: IDS (%) | L3: OC4IDS (%) | M3: Ease of Access (%) | O3: Yes | P3: High
A4: Preparation (8) | C4: Environmental impact category | G4: =IF(D4="", "", IF(OR(D4=0, D4="Not disclosed"), "No", "Yes")) ->  | J4: Preparation (8) | K4: =ROUND(COUNTIF(G4:G11,"YES")/8,2) -> 0 | L4: =ROUND(COUNTIF(H4:H11,"YES")/8,2) -> 0 | M4: =IFERROR(IF(S11=3,"High",IF(S11=2,"Medium",IF(S11=1,"Low",IF(S11=0,"-")))),"-") -> - | O4: No | P4: Medium | Q4: =IF(F4="High",3,IF(F4="Medium",2,IF(F4="Low",1,IF(F4="","")))) -> 
C5: Environmental measures | G5: =IF(D5="", "", IF(OR(D5=0, D5="Not disclosed"), "No", "Yes")) ->  | J5: Tender Management (1) | K5: =ROUND(COUNTIF(G12:G12,"YES")/1,2) -> 0 | L5: =ROUND(COUNTIF(H12:H12,"YES")/1,2) -> 0 | M5: =IFERROR(IF(S12=3,"High",IF(S12=2,"Medium",IF(S12=1,"Low",IF(S12=0,"-")))),"-") -> - | P5: Low | Q5: =IF(F5="High",3,IF(F5="Medium",2,IF(F5="Low",1,IF(F5="","")))) -> 
C6: Environmental licenses and exemptions | G6: =IF(D6="", "", IF(OR(D6=0, D6="Not disclosed"), "No", "Yes")) ->  | J6: Implementation (3) | K6: =ROUND(COUNTIF(G13:G15,"YES")/3,2) -> 0 | L6: =ROUND(COUNTIF(H13:H15,"YES")/3,2) -> 0 | M6: =IFERROR(IF(S15=3,"High",IF(S15=2,"Medium",IF(S15=1,"Low",IF(S15=0,"-")))),"-") -> -
C7: Protected area | G7: =IF(D7="", "", IF(OR(D7=0, D7="Not disclosed"), "No", "Yes")) ->  | J7: Operation & Maintenance (2) | K7: =ROUND(COUNTIF(G16:G17,"YES")/2,2) -> 0 | L7: =ROUND(COUNTIF(H16:H17,"YES")/2,2) -> 0 | M7: =IFERROR(IF(S17=3,"High",IF(S17=2,"Medium",IF(S17=1,"Low",IF(S17=0,"-")))),"-") -> -
C8: Conservation measures | J8: Decommission (2) | K8: =ROUND(COUNTIF(G18:G19,"YES")/2,2) -> 0 | L8: =ROUND(COUNTIF(H18:H19,"YES")/2,2) -> 0 | M8: =IFERROR(IF(S19=3,"High",IF(S19=2,"Medium",IF(S19=1,"Low",IF(S19=0,"-")))),"-") -> -
C9: Climate and disaster risk assessment | G9: =IF(D9="", "", IF(OR(D9=0, D9="Not disclosed"), "No", "Yes")) -> 
C10: Climate measures
C11: Forecast of greenhouse gas | R11: =SUM(Q4:Q11)/(0.001+COUNT(Q4:Q11)) -> 0 | S11: =ROUND(R11,0) -> 0
A12: Tender Management (1) | C12: Environmental certifications | R12: =SUM(Q12)/(0.001+COUNT(Q12)) -> 0 | S12: =ROUND(R12,0) -> 0
A13: Implementation (3) | C13: Environmental measures
C14: Environmental licenses and exemptions
C15: Conservation measures | R15: =SUM(Q13:Q15)/(0.001+COUNT(Q13:Q15)) -> 0 | S15: =ROUND(R15,0) -> 0
A16: Operation & Maintenance (2) | C16: Environmental licenses and exemptions
C17: Climate measures | R17: =SUM(Q16:Q17)/(0.001+COUNT(Q16:Q17)) -> 0 | S17: =ROUND(R17,0) -> 0
A18: Decommision (2) | C18: Decommissioning plans
C19: Decommissioning cost forecast | R19: =SUM(Q18:Q19)/(0.001+COUNT(Q18:Q19)) -> 0 | S19: =ROUND(R19,0) -> 0
A20: Instructions: Enter data into pale cells. Click on cells for further instructions. Navigate to the data dictionary from the dashboard to obtain detailed descriptions of each of the data points | D20: Summary of ease of access and disclosure rates: | F20: =IFERROR(IF(S20=3,"High",IF(S20=2,"Medium",IF(S20=1,"Low",IF(S20=0,"-")))),0) -> - | G20: =ROUND(COUNTIF(G4:G19,"YES")/16,2) -> 0 | H20: =ROUND(COUNTIF(H4:H19,"YES")/16,2) -> 0 | R20: =AVERAGE(R4:R19) -> 0 | S20: =ROUND(R20,0) -> 0

Sheet 15. Climate Finance (hidden)
A1: Assessment of Climate Finance | T1: WHEN SHEET IS UNLOCKED THESE COLUMNS CAN BE UNHIDDEN TO SHOW FURTHER DETAILS OF THE UNDERLYING SPREADSHEET
A2: PROJECT: | D2: ASSESSOR: | F2: DATE: | J2: Summary of Climate Finance disclosure | P2: H/M/L | Q2: Ease of Access | R2: Group Ease of Access | S2: Rounded
A3: Project Phase | C3: Project data item | D3: Data disclosed | E3: Location of data | F3: Ease of Access | G3: IDS | H3: OC4IDS | J3: Project Phase | K3: IDS (%) | L3: OC4IDS (%) | M3: Ease of Access (%) | O3: Yes | P3: High
A4: Identification (6) | C4: Climate objective | G4: =IF(D4="", "", IF(OR(D4=0, D4="Not disclosed"), "No", "Yes")) ->  | J4: Project Identification (5) | K4: =ROUND(COUNTIF(G4:G9,"YES")/6,2) -> 0 | L4: =ROUND(COUNTIF(H4:H9,"YES")/6,2) -> 0 | M4: =IFERROR(IF(S9=3,"High",IF(S9=2,"Medium",IF(S9=1,"Low",IF(S9=0,"-")))),"-") -> - | O4: No | P4: Medium | Q4: =IF(F4="High",3,IF(F4="Medium",2,IF(F4="Low",1,IF(F4="","")))) -> 
C5: Financial instrument | J5: Preparation (3) | K5: =ROUND(COUNTIF(G10:G22,"YES")/13,2) -> 0 | L5: =ROUND(COUNTIF(H10:H22,"YES")/13,2) -> 0 | M5: =IFERROR(IF(S22=3,"High",IF(S22=2,"Medium",IF(S22=1,"Low",IF(S22=0,"-")))),"-") -> - | P5: Low | Q5: =IF(F5="High",3,IF(F5="Medium",2,IF(F5="Low",1,IF(F5="","")))) -> 
C6: Climate transformation | J6: Implementation (7) | K6: =ROUND(COUNTIF(G23:G29,"YES")/7,2) -> 0 | L6: =ROUND(COUNTIF(H23:H29,"YES")/7,2) -> 0 | M6: =IFERROR(IF(S29=3,"High",IF(S29=2,"Medium",IF(S29=1,"Low",IF(S29=0,"-")))),"-") -> -
C7: Climate finance decision making | J7: Operation & Maintenance (2) | K7: =ROUND(COUNTIF(G30:G31,"YES")/2,2) -> 0 | L7: =ROUND(COUNTIF(H30:H31,"YES")/2,2) -> 0 | M7: =IFERROR(IF(S31=3,"High",IF(S31=2,"Medium",IF(S31=1,"Low",IF(S31=0,"-")))),"-") -> -
C8: Nationally Determined Contributions | J8: Decommission (5) | K8: =ROUND(COUNTIF(G32:G36,"YES")/5,2) -> 0 | L8: =ROUND(COUNTIF(H32:H36,"YES")/5,2) -> 0 | M8: =IFERROR(IF(S36=3,"High",IF(S36=2,"Medium",IF(S36=1,"Low",IF(S36=0,"-")))),"-") -> -
C9: Paris Agreement | R9: =SUM(Q4:Q9)/(0.001+COUNT(Q4:Q9)) -> 0 | S9: =ROUND(R9,0) -> 0
A10: Preparation (13) | C10: Beneficiaries
C11: Amount of investments
C12: Funding source
C13: Green Climate Fund Accredited Entity
C14: Accredited entity type
C15: Project preparation costs
C16: Project preparation period
C17: Project approval period
C18: Ratio of co-finance
C19: Terms of climate finance
C20: Carbon efficiency
C21: Non-climate co-benefits
C22: Public consultations meetings | R22: =SUM(Q10:Q22)/(0.001+COUNT(Q10:Q22)) -> 0 | S22: =ROUND(R22,0) -> 0
A23: Implementation (7) | C23: Disbursements records
C24: Type of project monitoring
C25: Performance monitoring
C26: Reporting period
C27: Oversight reports
C28: Independent monitoring
C29: Independent evaluation | R29: =SUM(Q23:Q29)/(0.001+COUNT(Q23:Q29)) -> 0 | S29: =ROUND(R29,0) -> 0
A30: Operation & Maintenance (2) | C30: Impact measurement
C31: Carbon footprint | R31: =SUM(Q30:Q31)/(0.001+COUNT(Q30:Q31)) -> 0 | S31: =ROUND(R31,0) -> 0
A32: Decommision (5) | C32: Infrastructure assets to be decommissioned
C33: Decommission period
C34: Decommission plan
C35: Carbon decommission savings
C36: Decommission mitigation plan | R36: =SUM(Q32:Q36)/(0.001+COUNT(Q32:Q36)) -> 0 | S36: =ROUND(R36,0) -> 0
A37: Instructions: Enter data into pale cells. Click on cells for further instructions. Navigate to the data dictionary from the dashboard to obtain detailed descriptions of each of the data points | D37: Summary of ease of access and disclosure rates: | F37: =IFERROR(IF(S37=3,"High",IF(S37=2,"Medium",IF(S37=1,"Low",IF(S37=0,"-")))),0) -> - | G37: =ROUND(COUNTIF(G4:G36,"YES")/33,2) -> 0 | H37: =ROUND(COUNTIF(H4:H36,"YES")/33,2) -> 0 | R37: =AVERAGE(R4:R36) -> 0 | S37: =ROUND(R37,0) -> 0

Sheet Data dictionary Economic (hidden)
C1: Description of project Life Cycle phase | E1: Economic and Financial Sustainability
E2: IDS Element | F2: IDS Description
B3: Identification | C3: It involves the identification of needs for an infrastructure project and the setting of development priorities for the selection of projects and resource allocation. | E3: • Procurement strategy | F3: Disclose the procurement strategy risk assessment. This tends to be part of the decision-making strategy and likely includes discussions regarding capabilities, the delivery model and the rationale for the risk allocation decision. (E.g. [Document]).
B5: Preparation | C5: It entails project planning, including the determination of the feasibility in terms of technical, economic and social aspects, plus drawing up concrete designs and specifications. | E5: • Life-cycle cost | F5: Disclose the life cycle cost of the project, which is the cost of an asset throughout its life cycle while fulfilling the performance requirements (ISO 15686-5:2017) (E.g. [value]).
E6: • Life-cycle cost calculation methodology | F6: Disclose the methodology used to calculate the life-cycle cost. The methodology ought to specify whether income and externalities are included in the calculation and the common date, discount rate and period of analysis used.
E7: • Funding source for preparation | F7: Name the funding organization(s)/sources of funding for Preparation, Implementation and Operation. If the information is not available for any of the stages, select ['funding/budget source not specified'] for the respective stage where the nature of the funding/budget source could not be identified.
E8: • Budget for preparation | F8: Specify the allocated budget for preparation, implementation, operation. If no amount is allocated for each of the stages, select the option 'amount not allocated" (E.g. Preparation [currency and amount], Implementation[currency and amount], Operation [currency and amount]
E9: • Cost-benefit analysis | F9: Disclose the project cost-benefit analysis. This information tends to be part of the appraisal documents. (E.g. [Document]).
E10: • Value for money | F10: A summary of the value for money analysis carried out for the project, along with supporting figures, calculations and business case, based on projected or actual procurement outcomes. This tends to include considerations of economy, efficiency, effectiveness and equity, and is part of the appraisal documents. (E.g. [Document]).
E11: • Asset lifetime | F11: The anticipated lifetime of the asset after this project is completed. This may be provided as either explicit dates or an estimated duration.
E12: • Budget projections | F12: In case of multiyear project implementation, disclose information on budget projection for all years of implementation (E.g. Y1: [currency and amount], Y2: [currency and amount], etc).
B14: Implementation | C14: It involves the physical construction of the infrastructure project according to the plans and specifications developed previously. | E14: • Funding source for implementation | F14: Name the funding organization(s)/sources of funding for Preparation, Implementation and Operation. If the information is not available for any of the stages, select ['funding/budget source not specified'] for the respective stage where the nature of the funding/budget source could not be identified.
E15: • Budget for implementation | F15: In case of multiyear project implementation, disclose information on budget projection for all years of implementation (E.g. Y1: [currency and amount], Y2: [currency and amount], etc).
E16: • Budget shortfall | F16: Disclose any shortfall in the allocated budget (E.g. [currency and amount] and [free text: reasons for the funding shortfall]
B18: Operation and Maintenance | C18: It entails the ongoing operation and maintenance of the infrastructure project to ensure its continued functionality. | E18: • Funding source for maintenance | F18: Name the funding organization(s)/sources of funding for Preparation, Implementation and Operation. If the information is not available for any of the stages, select ['funding/budget source not specified'] for the respective stage where the nature of the funding/budget source could not be identified.
E19: • Budget for maintenance | F19: Specify the allocated budget for preparation, implementation, operation. If no amount is allocated for each of the stages, select the option 'amount not allocated" (E.g. Preparation [currency and amount], Implementation[currency and amount], Operation [currency and amount]
E20: • Maintenance plan or program | F20: This is the documentation that describes work to slow deterioration of the asset

Sheet Data dictionary_Social (hidden)
C3: Descripcion of project Life Cycle phase | E3: Social Sustainability
E4: IDS Element | F4: IDS Description
B5: Identification | C5: It involves the identification of needs for an infrastructure project and the setting of development priorities for the selection of projects and resource allocation. | E5: • Number of beneficiaries | F5: Indicate the number of direct and indirect project beneficiaries (E.g. direct: [number]; indirect: "number"). Beneficiaries are the individuals who benefit directly or indirectly from the project; they are the target group of the infrastructure project and their needs are addressed by the intervention.
E6: • Inclusive design | F6: Clarify whether gender, people with disabilities and vulnerable and disadvantaged populations were considered in the project design (e.g. "free text to explain how the design meets inclusion goals" and document to support - the project design) and project implementation (e.g. "free text to explain implementation practices targeting inclusion goals" and document to support - contractor policy and procedures).
E7: • Indigenous land | F7: Identify whether the project is located or cut through indigenous land. Use the information at the LandMark - Global Platform of Indigenous and Community Lands on both databases Indigenous Lands Acknowledged by Government and Not Acknowledged by Government (customary tenure or with formal land claim submitted) to disclose the information.
E8: • Public consultation meetings | F8: Disclose the occurrence of public meetings with communities and impacted groups including meeting invite, the number of the participants, dates and location of these meetings.
E9: • Land compensation budget | F9: Disclose budget allocated to fund land compensation (E.g. [value]).
B11: Tender Management | C11: It covers the selection of contractors or suppliers for the project, and the negotiation and signing of contracts. | E11: • Labor budget | F11: Disclose the amount allocated by the main contractor to cover for labour costs (E.g. [value]).
E12: • Health and safety certifications | F12: Disclose labour related certifications issued in relation to project contractors and subcontractors such as ISO 45001 for Health and Safety (E.g. [Document]).
B14: Implementation | C14: It involves the physical construction of the infrastructure project according to the plans and specifications developed previously. | E14: • Inclusive implementation
E15: • Public consultation meetings
E16: • Labor obligations | F16: Disclose labour obligations in the construction contract. This can include, without limitation, the following: • Minimum wage • Overtime • Prohibition of forced labour • Prohibition of child labour • Equal opportunity • Non-discrimination • Freedom of association • Grievance mechanism • Working at height • Underground work • Handling of materials/equipment • Monitoring of accidents • Traffic management • Accommodation • Protective equipment • Others (explain)
E17: • Workers’ accidents | F17: Disclose summary statistics on accidents and fatalities involving construction workers, and an explanation of these events.
E18: • Construction materials testing | F18: Disclose construction materials tests performed during project implementation. This can include, without limitation, the following: • Asphalt • Aggregate and rock • Bricks • Cement • Concrete • Coarse and fine aggregate • Masonry • Metallic materials • Mortar • Plywood • Timber • Resin and polymer • Soil • Stone • Others (explain). [Free text to add not mentioned tests] Document
E19: • Building inspections | F19: Disclose building inspections during project implementation (E.g. [Document]).
E20: • Jobs generated | F20: Disclose estimated and actual jobs (direct/indirect) during project implementation and estimated jobs during operation (E.g. [direct: value] [indirect: value]).
B22: Operation and Maintenance | C22: It entails the ongoing operation and maintenance of the infrastructure project to ensure its continued functionality. | E22: • Jobs generated | F22: Disclose actual jobs during operation (E.g. [direct: value] [indirect: value]).

Sheet Data dictionary_Institutional (hidden)
C3: Descripcion of project Life Cycle phase | E3: Institutional Sustainability
E4: IDS Element | F4: IDS Description
B5: Identification | C5: It involves the identification of needs for an infrastructure project and the setting of development priorities for the selection of projects and resource allocation. | E5: • Policy coherence | F5: Disclose documentation that evidences that the project is part of, or aligned with existing plans and policies, providing further details on the project's policy alignment. Consider alignment with: • SDGs • National plan or strategy • Infrastructure plan or strategy • Sector plan or strategy • Procuring entity plan or strategy • Paris Agreement • Nationally Determined Contributions (NDCs) • National Adaptation Plans • Medium-term fiscal frameworks/targets [free text]
E6: • Freedom-of-information requests | F6: Disclose Freedom of Information (FoI) requests that have been presented in relation to the project [E.g. Document]. Note that FoI requests can also be known as access to information requests.
E7: • Answers to freedom-of-information requests | F7: Disclose the responses provided by authorities to Freedom of Information (FoI) requests related to the project (Eg. [Document]). Note that FoI requests may also be known as access to information requests
E8: • Lobbying transparency | F8: Disclose the occurrence of meetings with interest groups, including the meeting agenda and minutes, the number of the participants, dates and location of these meetings (E.g. Meeting 1 [date] [location] [number of participants] [Document], Meeting 2 [date] [location] [number of participants] [Document]).
E9: • Sustainable subsectors | F9: Identify relevant sub-sectors related to the project scope. Select from a list (non-exhaustive): • Renewable energy - Solar - Wind - Hydropower - Biomass - Geothermal • Water and wastewater management • Transport - Low carbon transport • Natural resource management - Flood protection Free text to add not mentioned sub-sectors
B11: Preparation | C11: It entails project planning, including the determination of the feasibility in terms of technical, economic and social aspects, plus drawing up concrete designs and specifications. | E11: • Freedom-of-information requests | F11: Disclose Freedom of Information (FoI) requests that have been presented in relation to the project [E.g. Document]. Note that FoI requests can also be known as access to information requests.
E12: • Answers to freedom-of-information requests | F12: Disclose the responses provided by authorities to Freedom of Information (FoI) requests related to the project (Eg. [Document]). Note that FoI requests may also be known as access to information requests
E13: • Risk management plans | F13: Disclose risk management plans prepared for the project (E.g. [Document]).
B15: Tender Management | C15: It covers the selection of contractors or suppliers for the project, and the negotiation and signing of contracts. | E15: • Freedom-of-information requests | F15: Disclose Freedom of Information (FoI) requests that have been presented in relation to the project [E.g. Document]. Note that FoI requests can also be known as access to information requests.
E16: • Answers to freedom-of-information requests | F16: Disclose the responses provided by authorities to Freedom of Information (FoI) requests related to the project (Eg. [Document]). Note that FoI requests may also be known as access to information requests
E17: • Beneficial ownership | F17: Disclose the beneficial owners of the contractors and suppliers appointed in the project (E.g. [name, identifier]).
E18: • Sustainability criteria
E19: • Anti-corruption certifications | F19: Disclose anti-corruption certifications of the project, such as ISO 37001 on Anti-Bribery Management Systems Standard (E.g. [Document]).
B21: Implementation | C21: It involves the physical construction of the infrastructure project according to the plans and specifications developed previously. | E21: • Freedom-of-information requests | F21: Disclose Freedom of Information (FoI) requests that have been presented in relation to the project [E.g. Document]. Note that FoI requests can also be known as access to information requests.
E22: • Answers to freedom-of-information requests | F22: Disclose the responses provided by authorities to Freedom of Information (FoI) requests related to the project (Eg. [Document]). Note that FoI requests may also be known as access to information requests
E23: • Independent monitoring | F23: Identify the entities acting as independent monitors of the project (E.g. [free text]).
E24: • Performance monitoring | F24: Disclose Key Performance Indicators adopted by the project (E.g. [free text]).
B26: Completion | C26: It includes the finalisation of the works, the formal approval and delivery of the asset. | E26: • Freedom-of-information requests | F26: Disclose Freedom of Information (FoI) requests that have been presented in relation to the project [E.g. Document]. Note that FoI requests can also be known as access to information requests.
E27: • Answers to freedom-of-information requests | F27: Disclose the responses provided by authorities to Freedom of Information (FoI) requests related to the project (Eg. [Document]). Note that FoI requests may also be known as access to information requests
B29: Operation and Maintenance | C29: It entails the ongoing operation and maintenance of the infrastructure project to ensure its continued functionality. | E29: • Freedom-of-information requests | F29: Disclose Freedom of Information (FoI) requests that have been presented in relation to the project [E.g. Document]. Note that FoI requests can also be known as access to information requests.
E30: • Answers to freedom-of-information requests | F30: Disclose the responses provided by authorities to Freedom of Information (FoI) requests related to the project (Eg. [Document]). Note that FoI requests may also be known as access to information requests
B36: Decommission | C36: It involves the transfer, the taking out of assets or sale of them to other entities or the public. | E36: • Freedom-of-information requests | F36: Disclose Freedom of Information (FoI) requests that have been presented in relation to the project [E.g. Document]. Note that FoI requests can also be known as access to information requests.
E37: • Answers to freedom-of-information requests | F37: Disclose the responses provided by authorities to Freedom of Information (FoI) requests related to the project (Eg. [Document]). Note that FoI requests may also be known as access to information requests

Sheet Sustainability Data dictionary (hidden)
Q1: CLIMATE FINANCE INFRASTRUCTURE
Q2: =COUNTIF(Q5:Q53,"*") -> 33
C3: Description of project Life Cycle phase | E3: Economic and Financial Sustainability | H3: Social Sustainability | K3: Institutional Sustainability | N3: Environmental Sustainability | Q3: Climate Finance
E4: IDS Element | F4: IDS Description | H4: IDS Element | I4: IDS Description | K4: IDS Element | L4: IDS Description | Q4: IDS Element | R4: IDS Description
B5: Identification | C5: It involves the identification of needs for an infrastructure project and the setting of development priorities for the selection of projects and resource allocation. | E5: • Procurement strategy | F5: Disclose the procurement strategy risk assessment. This tends to be part of the decision-making strategy and likely includes discussions regarding capabilities, the delivery model and the rationale for the risk allocation decision. (E.g. [Document]). | H5: • Number of beneficiaries | I5: Indicate the number of direct and indirect project beneficiaries (E.g. direct: [number]; indirect: "number"). Beneficiaries are the individuals who benefit directly or indirectly from the project; they are the target group of the infrastructure project and their needs are addressed by the intervention. | K5: • Policy coherence | L5: Disclose documentation that evidences that the project is part of, or aligned with existing plans and policies, providing further details on the project's policy alignment. Consider alignment with: • SDGs • National plan or strategy • Infrastructure plan or strategy • Sector plan or strategy • Procuring entity plan or strategy • Paris Agreement • Nationally Determined Contributions (NDCs) • National Adaptation Plans • Medium-term fiscal frameworks/targets [free text] | Q5: • Climate objective | R5: Disclose the main climate objective that the project addresses. Select from a list: Eg: • mitigation • adaptation • cross-cutting
H6: • Inclusive design | I6: Clarify whether gender, people with disabilities and vulnerable and disadvantaged populations were considered in the project design (e.g. "free text to explain how the design meets inclusion goals" and document to support - the project design) and project implementation (e.g. "free text to explain implementation practices targeting inclusion goals" and document to support - contractor policy and procedures). | K6: • Freedom-of-information requests | L6: Disclose Freedom of Information (FoI) requests that have been presented in relation to the project [E.g. Document]. Note that FoI requests can also be known as access to information requests. | Q6: • Financial instrument | R6: Disclose the financial instrument type from the list: • loan - concessional - non-concessional • grant • equity • guarantees
H7: • Indigenous land | I7: Identify whether the project is located or cut through indigenous land. Use the information at the LandMark - Global Platform of Indigenous and Community Lands on both databases Indigenous Lands Acknowledged by Government and Not Acknowledged by Government (customary tenure or with formal land claim submitted) to disclose the information. | K7: • Answers to freedom-of-information requests | L7: Disclose the responses provided by authorities to Freedom of Information (FoI) requests related to the project (Eg. [Document]). Note that FoI requests may also be known as access to information requests | Q7: • Climate transformation | R7: Clarify the theory of change, systemic transition or transformation that is intended [free text to explain].
H8: • Public consultation meetings | I8: Disclose the occurrence of public meetings with communities and impacted groups including meeting invite, the number of the participants, dates and location of these meetings. | K8: • Lobbying transparency | L8: Disclose the occurrence of meetings with interest groups, including the meeting agenda and minutes, the number of the participants, dates and location of these meetings (E.g. Meeting 1 [date] [location] [number of participants] [Document], Meeting 2 [date] [location] [number of participants] [Document]). | Q8: • Climate finance decision making | R8: Identify who approved the climate finance investment in the country (organization, party, role)
H9: • Land compensation budget | I9: Disclose budget allocated to fund land compensation (E.g. [value]). | K9: • Sustainable subsectors | L9: Identify relevant sub-sectors related to the project scope. Select from a list (non-exhaustive): • Renewable energy - Solar - Wind - Hydropower - Biomass - Geothermal • Water and wastewater management • Transport - Low carbon transport • Natural resource management - Flood protection Free text to add not mentioned sub-sectors | Q9: • Nationally Determined Contributions | R9: Clarify how the investment is aligned with the country's nationally determined contributions. [codelist, free text to explain].
Q10: • Paris Agreement | R10: Clarify how the investment is aligned with the country's Paris Agreement commitments. [codelist, free text to explain].
B12: Preparation | C12: It entails project planning, including the determination of the feasibility in terms of technical, economic and social aspects, plus drawing up concrete designs and specifications. | E12: • Life-cycle cost | F12: Disclose the life cycle cost of the project, which is the cost of an asset throughout its life cycle while fulfilling the performance requirements (ISO 15686-5:2017) (E.g. [value]). | K12: • Freedom-of-information requests | L12: Disclose Freedom of Information (FoI) requests that have been presented in relation to the project [E.g. Document]. Note that FoI requests can also be known as access to information requests. | N12: • Environmental impact category | O12: Indicate the category that reflects the magnitude of environmental impact. Consider the following to rate the project: Category A: projects with potential significant adverse environmental or social risks and/or impacts that are diverse, irreversible, or unprecedented. Category B: projects with potential limited adverse environmental or social risks and/or impacts that are few in number, generally site-specific, largely reversible, and readily addressed through mitigation measures. Category C: projects with minimal or no adverse environmental or social risks and/or impacts. (Select from a list: A/B/C - Specify list as IFC's Environmental and Social Categorization). | Q12: • Beneficiaries | R12: Disclose who is the climate finance investment intended to benefit [free text to explain the beneficiaries] and number of beneficiaries. [Select from the list: Direct Indirect]
E13: • Life-cycle cost calculation methodology | F13: Disclose the methodology used to calculate the life-cycle cost. The methodology ought to specify whether income and externalities are included in the calculation and the common date, discount rate and period of analysis used. | K13: • Answers to freedom-of-information requests | L13: Disclose the responses provided by authorities to Freedom of Information (FoI) requests related to the project (Eg. [Document]). Note that FoI requests may also be known as access to information requests | N13: • Environmental measures | O13: Disclose the measures adopted by the project to mitigate and/or remedy the environmental impact (E.g. [free text justification/explaining the measures adopted] and document). | Q13: • Amount of investments | R13: Disclose the quantum of the climate finance investment [value, currency].
E14: • Funding source for preparation | F14: Name the funding organization(s)/sources of funding for Preparation, Implementation and Operation. If the information is not available for any of the stages, select ['funding/budget source not specified'] for the respective stage where the nature of the funding/budget source could not be identified. | K14: • Risk management plans | L14: Disclose risk management plans prepared for the project (E.g. [Document]). | N14: • Environmental licenses and exemptions | O14: Disclose all exemptions and/or amnesties obtained for the project. (E.g. [Document]). This can be planning, environmental, construction and/or operational related | Q14: • Funding source | R14: Disclose who is providing the finance [party/organization/role].
E15: • Budget for preparation | F15: Specify the allocated budget for preparation, implementation, operation. If no amount is allocated for each of the stages, select the option 'amount not allocated" (E.g. Preparation [currency and amount], Implementation[currency and amount], Operation [currency and amount] | N15: • Protected area | O15: Identify whether the project is located in a protected area. Use the project location/coordinates at the WDPA - World Database of Protected Areas to disclose the information. | Q15: • Green Climate Fund Accredited Entity | R15: For projects financed by the Green Climate Fund, disclose the accredited entities through which GCF resources are accessed.
E16: • Cost-benefit analysis | F16: Disclose the project cost-benefit analysis. This information tends to be part of the appraisal documents. (E.g. [Document]). | N16: • Conservation measures | O16: Disclose and provide further details on the measures adopted by the project to protect and enhance biodiversity. This can comprise, without limitation the following: •avoidance of ecological sitting •buffers for ecological land •nature-based solutions •land restoration •protection to landscape and historical sites •invasive species management •management of wildlife mortality risk •reduce habitat loss •pollution reduction •soil management •hazardous material management]) •others (explain) | Q16: • Accredited entity type | R16: Select from the lists: • Private • Public • non-governmental • sub-national • national • regional • international
E17: • Value for money | F17: A summary of the value for money analysis carried out for the project, along with supporting figures, calculations and business case, based on projected or actual procurement outcomes. This tends to include considerations of economy, efficiency, effectiveness and equity, and is part of the appraisal documents. (E.g. [Document]). | N17: • Climate and disaster risk assessment | O17: Clarify the type of climate and disaster risks to which the project is exposed to (E.g. [document or free text to list and explain risks]). This tends to be part of the appraisal documents. | Q17: • Project preparation costs | R17: Disclose the amounts invested in project preparation [value, currency].
E18: • Asset lifetime | F18: The anticipated lifetime of the asset after this project is completed. This may be provided as either explicit dates or an estimated duration. | N18: • Climate measures | O18: Clarify whether the project design considered climate change mitigation and/or adaptation measures,. disclosing the design demonstrating how the measures were incorporated. This can comprise, without limitation the following: use of lower-emission sources of energy use of lower-emission materials use of recycled and reused materials regenerative design retrofitting design use of carbon capture technology assessment of extreme weather events assessment of precipitation patterns assessment of rising temperatures assessment of rising sea levels others (explain) And [Document]). | Q18: • Project preparation period | R18: Disclose dates for project preparation [start date, end date].
E19: • Budget projections | F19: In case of multiyear project implementation, disclose information on budget projection for all years of implementation (E.g. Y1: [currency and amount], Y2: [currency and amount], etc). | N19: • Forecast of greenhouse gas emissions | O19: Disclose the forecast greenhouse gas emissions related to the project, informing the calculation, the methodology applied and where the calculation can be found (E.g. [amount] and [free text for methodology clarification]) | Q19: • Project approval period | R19: Disclose dates for project approval [submission date, approval date].
Q20: • Ratio of co-finance | R20: Disclose the ratio of co-finance. Select from a list to specify amounts. Eg: Domestic mobilisations [value or NA] Private Finance [value or NA]
Q21: • Terms of climate finance | R21: This includes several financial terms: • maturity (years) • Grace period (years) • annual principal repayment years (% of initial principle) • Interest (%) • Service fee (per annum) • Commitment fee (per annum)
Q22: • Carbon efficiency | R22: Disclose the cost per tonne of CO2 equivalent [value, currency].
Q23: • Non-climate co-benefits | R23: Identify potential non-climate impacts that have been factored into the project planning. Select from the list: • economic • social • environmental • gender empowerment [add free text to explain the co-benefits].
Q24: • Public consultations meetings | R24: Disclose the occurrence of public meetings with communities and impacted groups including the minutes, number of the participants, dates and location of these meetings (E.g. Meeting 1 [date] [location] [number of participants] [Document], Meeting 2 [date] [location] [number of participants], [Document]).
B26: Tender Management | C26: It covers the selection of contractors or suppliers for the project, and the negotiation and signing of contracts. | H26: • Labor budget | I26: Disclose the amount allocated by the main contractor to cover for labour costs (E.g. [value]). | K26: • Freedom-of-information requests | L26: Disclose Freedom of Information (FoI) requests that have been presented in relation to the project [E.g. Document]. Note that FoI requests can also be known as access to information requests. | N26: • Environmental certifications | O26: Disclose environmental and/or climate related certifications issued for contractors and subcontractors such as ISO 14001 for environmental management (E.g. [Document]).
H27: • Health and safety certifications | I27: Disclose labour related certifications issued in relation to project contractors and subcontractors such as ISO 45001 for Health and Safety (E.g. [Document]). | K27: • Answers to freedom-of-information requests | L27: Disclose the responses provided by authorities to Freedom of Information (FoI) requests related to the project (Eg. [Document]). Note that FoI requests may also be known as access to information requests
K28: • Beneficial ownership | L28: Disclose the beneficial owners of the contractors and suppliers appointed in the project (E.g. [name, identifier]).
K29: • Sustainability criteria
K30: • Anti-corruption certifications | L30: Disclose anti-corruption certifications of the project, such as ISO 37001 on Anti-Bribery Management Systems Standard (E.g. [Document]).
B33: Implementation | C33: It involves the physical construction of the infrastructure project according to the plans and specifications developed previously. | E33: • Funding source for implementation | F33: Name the funding organization(s)/sources of funding for Preparation, Implementation and Operation. If the information is not available for any of the stages, select ['funding/budget source not specified'] for the respective stage where the nature of the funding/budget source could not be identified. | H33: • Inclusive implementation | K33: • Freedom-of-information requests | L33: Disclose Freedom of Information (FoI) requests that have been presented in relation to the project [E.g. Document]. Note that FoI requests can also be known as access to information requests. | N33: • Environmental measures | O33: Disclose the measures adopted by the project to mitigate and/or remedy the environmental impact (E.g. [free text justification/explaining the measures adopted] and document). | Q33: • Disbursements records | R33: Disbursements dates according to financial agreement versus actual disbursements dates [value, currency, date].
E34: • Budget for implementation | F34: In case of multiyear project implementation, disclose information on budget projection for all years of implementation (E.g. Y1: [currency and amount], Y2: [currency and amount], etc). | H34: • Public consultation meetings | K34: • Answers to freedom-of-information requests | L34: Disclose the responses provided by authorities to Freedom of Information (FoI) requests related to the project (Eg. [Document]). Note that FoI requests may also be known as access to information requests | N34: • Environmental licenses and exemptions | O34: Disclose all exemptions and/or amnesties obtained for the project. (E.g. [Document]). This can be planning, environmental, construction and/or operational related | Q34: • Type of project monitoring | R34: Select from a list: • internal • external • mixed
E35: • Budget shortfall | F35: Disclose any shortfall in the allocated budget (E.g. [currency and amount] and [free text: reasons for the funding shortfall] | H35: • Labor obligations | I35: Disclose labour obligations in the construction contract. This can include, without limitation, the following: • Minimum wage • Overtime • Prohibition of forced labour • Prohibition of child labour • Equal opportunity • Non-discrimination • Freedom of association • Grievance mechanism • Working at height • Underground work • Handling of materials/equipment • Monitoring of accidents • Traffic management • Accommodation • Protective equipment • Others (explain) | K35: • Independent monitoring | L35: Identify the entities acting as independent monitors of the project (E.g. [free text]). | N35: • Conservation measures | O35: "Disclose and provide further details on the measures adopted by the project to protect and enhance biodiversity. This can comprise, without limitation the following: •avoidance of ecological sitting •buffers for ecological land •nature-based solutions •land restoration •protection to landscape and historical sites •invasive species management •management of wildlife mortality risk •reduce habitat loss •pollution reduction •soil management •hazardous material management]) •others (explain)" | Q35: • Performance monitoring | R35: Disclose Key Performance Indicators adopted by the project (E.g. [free text]).
H36: • Workers’ accidents | I36: Disclose summary statistics on accidents and fatalities involving construction workers, and an explanation of these events. | K36: • Performance monitoring | L36: Disclose Key Performance Indicators adopted by the project (E.g. [free text]). | Q36: • Reporting period | R36: It could be quarterly, annually, biannually, etc. [free text].
H37: • Construction materials testing | I37: Disclose construction materials tests performed during project implementation. This can include, without limitation, the following: • Asphalt • Aggregate and rock • Bricks • Cement • Concrete • Coarse and fine aggregate • Masonry • Metallic materials • Mortar • Plywood • Timber • Resin and polymer • Soil • Stone • Others (explain). [Free text to add not mentioned tests] Document | Q37: • Oversight reports | R37: Disclose oversight reports.[document].
H38: • Building inspections | I38: Disclose building inspections during project implementation (E.g. [Document]). | Q38: • Independent monitoring | R38: Identify the entities acting as independent monitors of the project (E.g. [free text]).
H39: • Jobs generated | I39: Disclose estimated and actual jobs (direct/indirect) during project implementation and estimated jobs during operation (E.g. [direct: value] [indirect: value]). | Q39: • Independent evaluation | R39: Disclose technical audits produced at end of the project (E.g. [free text].
B41: Completion | C41: It includes the finalisation of the works, the formal approval and delivery of the asset. | K41: • Freedom-of-information requests | L41: Disclose Freedom of Information (FoI) requests that have been presented in relation to the project [E.g. Document]. Note that FoI requests can also be known as access to information requests.
K42: • Answers to freedom-of-information requests | L42: Disclose the responses provided by authorities to Freedom of Information (FoI) requests related to the project (Eg. [Document]). Note that FoI requests may also be known as access to information requests
B44: Operation and Maintenance | C44: It entails the ongoing operation and maintenance of the infrastructure project to ensure its continued functionality. | E44: • Funding source for maintenance | F44: Name the funding organization(s)/sources of funding for Preparation, Implementation and Operation. If the information is not available for any of the stages, select ['funding/budget source not specified'] for the respective stage where the nature of the funding/budget source could not be identified. | H44: • Jobs generated | I44: Disclose actual jobs during operation (E.g. [direct: value] [indirect: value]). | K44: • Freedom-of-information requests | L44: Disclose Freedom of Information (FoI) requests that have been presented in relation to the project [E.g. Document]. Note that FoI requests can also be known as access to information requests. | N44: • Environmental licenses and exemptions | O44: Disclose all exemptions and/or amnesties obtained for the project. (E.g. [Document]). This can be planning, environmental, construction and/or operational related | Q44: • Impact measurement | R44: Clarify the methodology or system to measure the long-term impact of the project solution (E.g. [free text].
E45: • Budget for maintenance | F45: Specify the allocated budget for preparation, implementation, operation. If no amount is allocated for each of the stages, select the option 'amount not allocated" (E.g. Preparation [currency and amount], Implementation[currency and amount], Operation [currency and amount] | K45: • Answers to freedom-of-information requests | L45: Disclose the responses provided by authorities to Freedom of Information (FoI) requests related to the project (Eg. [Document]). Note that FoI requests may also be known as access to information requests | N45: • Climate measures | O45: Clarify whether the project design considered climate change mitigation and/or adaptation measures,. disclosing the design demonstrating how the measures were incorporated. This can comprise, without limitation the following: use of lower-emission sources of energy use of lower-emission materials use of recycled and reused materials regenerative design retrofitting design use of carbon capture technology assessment of extreme weather events assessment of precipitation patterns assessment of rising temperatures assessment of rising sea levels others (explain) And [Document]). | Q45: • Carbon footprint | R45: Disclose the carbon footprint of the project, informing the calculation, the methodology applied, and where the calculation can be found. [value, tons CO2 equivalent, free text to describe the methodology used to measure the carbon footprint].
E46: • Maintenance plan or program | F46: This is the documentation that describes work to slow deterioration of the asset
B48: Decommission | C48: It involves the transfer, the taking out of assets or sale of them to other entities or the public. | K48: • Freedom-of-information requests | L48: Disclose Freedom of Information (FoI) requests that have been presented in relation to the project [E.g. Document]. Note that FoI requests can also be known as access to information requests. | N48: • Decommissioning plans | O48: Disclose the decommissioning plans for the project assets [document].. | Q48: • Infrastructure assets to be decommissioned | R48: Identify the asset for disposal purpose [free text].
K49: • Answers to freedom-of-information requests | L49: Disclose the responses provided by authorities to Freedom of Information (FoI) requests related to the project (Eg. [Document]). Note that FoI requests may also be known as access to information requests | N49: • Decommissioning cost forecast | O49: Disclose the forecast decommissioning costs for the project assets [value, currency]. | Q49: • Decommission period | R49: Intended start and end dates of decommissioning.
Q50: • Decommission plan | R50: Disclose the technical plan for decommissioning (E.g.: [Doc]).
Q51: • Carbon decommission savings | R51: Disclose the evaluation of CO2 savings as a result of decommissioning [value, tons CO2 equivalent].
Q52: • Decommission mitigation plan | R52: Disclose mitigation plan for people and communities affected by decommissioning (E.g.: [Doc]).
